Organisation Code,Organisation Label,Effective Date,Organisational Unit,Service Division Label,Category Internal Name,Purpose,Detailed Expenditure Code,Payment Date,Transaction Number,Irrecoverable VAT Amount,Amount,Capital Or Revenue,Benificiary Name,Procurement Card
Http://opendatacommunities.org/id/metropolitan-district-council/leeds,Leeds City Council,31/05/2017,Environment & Housing,Leeds Building Services,Supplies and Services,Operational Materials,205,15/05/2017,1705-00001,0.00,159.83,R,A Andrews & Sons (Marbles & Tiles),No
Http://opendatacommunities.org/id/metropolitan-district-council/leeds,Leeds City Council,31/05/2017,Environment & Housing,Leeds Building Services,Supplies and Services,Operational Materials,205,15/05/2017,1705-00002,0.00,42.80,R,A Andrews & Sons (Marbles & Tiles),No
Http://opendatacommunities.org/id/metropolitan-district-council/leeds,Leeds City Council,31/05/2017,Environment & Housing,Leeds Building Services,Supplies and Services,Operational Materials,205,15/05/2017,1705-00003,0.00,6.60,R,A Andrews & Sons (Marbles & Tiles),No
Http://opendatacommunities.org/id/metropolitan-district-council/leeds,Leeds City Council,31/05/2017,Resources And Housing,HRA Housing Leeds,Capital,Other Costs,7,16/05/2017,1705-00004,0.00,100.00,C,REDACTED PERSONAL DATA,No
Http://opendatacommunities.org/id/metropolitan-district-council/leeds,Leeds City Council,31/05/2017,City Development,Libraries  Arts & Heritage,Supplies and Services,Bought In Professional Services,277,19/05/2017,1705-00005,0.00,120.00,R,A B Jones,No
Http://opendatacommunities.org/id/metropolitan-district-council/leeds,Leeds City Council,31/05/2017,Children And Families,Safeguarding Targeted & Specialist,Third Party Payments,Allowances,546,04/05/2017,1705-00006,0.00,500.00,R,REDACTED PERSONAL DATA,No
Http://opendatacommunities.org/id/metropolitan-district-council/leeds,Leeds City Council,31/05/2017,Resources And Housing,HRA Housing Leeds,Capital,Other Costs,7,25/05/2017,1705-00007,0.00,400.00,C,REDACTED PERSONAL DATA,No
Http://opendatacommunities.org/id/metropolitan-district-council/leeds,Leeds City Council,31/05/2017,Environment & Housing,Parks and Countryside,Supplies and Services,Bought In Professional Services,277,03/05/2017,1705-00008,0.00,5391.10,R,REDACTED COMMERCIAL CONFIDENTIALITY,No
Http://opendatacommunities.org/id/metropolitan-district-council/leeds,Leeds City Council,31/05/2017,Environment & Housing,Parks and Countryside,Supplies and Services,Bought In Professional Services,277,03/05/2017,1705-00009,0.00,5391.10,R,REDACTED COMMERCIAL CONFIDENTIALITY,No
Http://opendatacommunities.org/id/metropolitan-district-council/leeds,Leeds City Council,31/05/2017,City Development,Highways,Capital,Construction,3,18/05/2017,1705-00010,0.00,262587.16,C,A E Yates Ltd,No
Http://opendatacommunities.org/id/metropolitan-district-council/leeds,Leeds City Council,31/05/2017,Civic Enterprise Leeds,Commercial Services  ,Supplies and Services,Food & Drink,231,19/04/2017,1705-00011,0.00,481.38,R,A F Blakemore & Son Ltd,Yes
Http://opendatacommunities.org/id/metropolitan-district-council/leeds,Leeds City Council,31/05/2017,Resources And Housing,HRA Housing Leeds,Capital,Other Costs,7,08/05/2017,1705-00012,0.00,155.32,C,REDACTED PERSONAL DATA,No
Http://opendatacommunities.org/id/metropolitan-district-council/leeds,Leeds City Council,31/05/2017,City Development,Libraries  Arts & Heritage,Supplies and Services,Bought In Professional Services,277,19/05/2017,1705-00013,0.00,640.00,R,A H Fraga,No
Http://opendatacommunities.org/id/metropolitan-district-council/leeds,Leeds City Council,31/05/2017,City Development,Libraries  Arts & Heritage,Supplies and Services,Bought In Professional Services,277,19/05/2017,1705-00014,0.00,1760.00,R,A H Fraga,No
Http://opendatacommunities.org/id/metropolitan-district-council/leeds,Leeds City Council,31/05/2017,Environment & Housing,Leeds Building Services,Supplies and Services,Other Hired And Contracted Services,265,03/05/2017,1705-00015,0.00,180.00,R,A J H  Pump Supply & Repair Ltd,No
Http://opendatacommunities.org/id/metropolitan-district-council/leeds,Leeds City Council,31/05/2017,Environment & Housing,Leeds Building Services,Supplies and Services,Operational Furniture And Equipment,203,05/05/2017,1705-00016,0.00,85.00,R,A J H  Pump Supply & Repair Ltd,No
Http://opendatacommunities.org/id/metropolitan-district-council/leeds,Leeds City Council,31/05/2017,Environment & Housing,Leeds Building Services,Supplies and Services,Operational Materials,205,15/05/2017,1705-00017,0.00,40.47,R,A J H  Pump Supply & Repair Ltd,No
Http://opendatacommunities.org/id/metropolitan-district-council/leeds,Leeds City Council,31/05/2017,Environment & Housing,Leeds Building Services,Supplies and Services,Operational Materials,205,15/05/2017,1705-00018,0.00,432.41,R,A J H  Pump Supply & Repair Ltd,No
Http://opendatacommunities.org/id/metropolitan-district-council/leeds,Leeds City Council,31/05/2017,Environment & Housing,Leeds Building Services,Supplies and Services,Operational Materials,205,15/05/2017,1705-00019,0.00,215.98,R,A J H  Pump Supply & Repair Ltd,No
Http://opendatacommunities.org/id/metropolitan-district-council/leeds,Leeds City Council,31/05/2017,Environment & Housing,Leeds Building Services,Supplies and Services,Operational Materials,205,15/05/2017,1705-00020,0.00,21.91,R,A J H  Pump Supply & Repair Ltd,No
Http://opendatacommunities.org/id/metropolitan-district-council/leeds,Leeds City Council,31/05/2017,Environment & Housing,Leeds Building Services,Supplies and Services,Operational Materials,205,15/05/2017,1705-00021,0.00,275.00,R,A J H  Pump Supply & Repair Ltd,No
Http://opendatacommunities.org/id/metropolitan-district-council/leeds,Leeds City Council,31/05/2017,Environment & Housing,Leeds Building Services,Supplies and Services,Other Hired And Contracted Services,265,16/05/2017,1705-00022,0.00,886.00,R,A J H  Pump Supply & Repair Ltd,No
Http://opendatacommunities.org/id/metropolitan-district-council/leeds,Leeds City Council,31/05/2017,Environment & Housing,Leeds Building Services,Supplies and Services,Operational Materials,205,19/05/2017,1705-00023,0.00,33.41,R,A J H  Pump Supply & Repair Ltd,No
Http://opendatacommunities.org/id/metropolitan-district-council/leeds,Leeds City Council,31/05/2017,Environment & Housing,Leeds Building Services,Supplies and Services,Operational Materials,205,19/05/2017,1705-00024,0.00,105.00,R,A J H  Pump Supply & Repair Ltd,No
Http://opendatacommunities.org/id/metropolitan-district-council/leeds,Leeds City Council,31/05/2017,Environment & Housing,Leeds Building Services,Supplies and Services,Operational Materials,205,19/05/2017,1705-00025,0.00,181.47,R,A J H  Pump Supply & Repair Ltd,No
Http://opendatacommunities.org/id/metropolitan-district-council/leeds,Leeds City Council,31/05/2017,Environment & Housing,Leeds Building Services,Supplies and Services,Operational Materials,205,19/05/2017,1705-00026,0.00,71.31,R,A J H  Pump Supply & Repair Ltd,No
Http://opendatacommunities.org/id/metropolitan-district-council/leeds,Leeds City Council,31/05/2017,Environment & Housing,Leeds Building Services,Supplies and Services,Operational Materials,205,19/05/2017,1705-00027,0.00,182.27,R,A J H  Pump Supply & Repair Ltd,No
Http://opendatacommunities.org/id/metropolitan-district-council/leeds,Leeds City Council,31/05/2017,Environment & Housing,Leeds Building Services,Supplies and Services,Operational Materials,205,19/05/2017,1705-00028,0.00,29.76,R,A J H  Pump Supply & Repair Ltd,No
Http://opendatacommunities.org/id/metropolitan-district-council/leeds,Leeds City Council,31/05/2017,Environment & Housing,Leeds Building Services,Supplies and Services,Operational Materials,205,19/05/2017,1705-00029,0.00,273.45,R,A J H  Pump Supply & Repair Ltd,No
Http://opendatacommunities.org/id/metropolitan-district-council/leeds,Leeds City Council,31/05/2017,Environment & Housing,Leeds Building Services,Supplies and Services,Operational Materials,205,19/05/2017,1705-00030,0.00,12.68,R,A J H  Pump Supply & Repair Ltd,No
Http://opendatacommunities.org/id/metropolitan-district-council/leeds,Leeds City Council,31/05/2017,Environment & Housing,Leeds Building Services,Supplies and Services,Operational Materials,205,19/05/2017,1705-00031,0.00,54.15,R,A J H  Pump Supply & Repair Ltd,No
Http://opendatacommunities.org/id/metropolitan-district-council/leeds,Leeds City Council,31/05/2017,Environment & Housing,Leeds Building Services,Supplies and Services,Operational Materials,205,19/05/2017,1705-00032,0.00,496.50,R,A J H  Pump Supply & Repair Ltd,No
Http://opendatacommunities.org/id/metropolitan-district-council/leeds,Leeds City Council,31/05/2017,Environment & Housing,Leeds Building Services,Supplies and Services,Operational Materials,205,19/05/2017,1705-00033,0.00,7.95,R,A J H  Pump Supply & Repair Ltd,No
Http://opendatacommunities.org/id/metropolitan-district-council/leeds,Leeds City Council,31/05/2017,Environment & Housing,Leeds Building Services,Supplies and Services,Operational Materials,205,19/05/2017,1705-00034,0.00,127.20,R,A J H  Pump Supply & Repair Ltd,No
Http://opendatacommunities.org/id/metropolitan-district-council/leeds,Leeds City Council,31/05/2017,Environment & Housing,Leeds Building Services,Supplies and Services,Operational Materials,205,19/05/2017,1705-00035,0.00,32.06,R,A J H  Pump Supply & Repair Ltd,No
Http://opendatacommunities.org/id/metropolitan-district-council/leeds,Leeds City Council,31/05/2017,Environment & Housing,Leeds Building Services,Supplies and Services,Operational Materials,205,19/05/2017,1705-00036,0.00,137.35,R,A J H  Pump Supply & Repair Ltd,No
Http://opendatacommunities.org/id/metropolitan-district-council/leeds,Leeds City Council,31/05/2017,Environment & Housing,Leeds Building Services,Supplies and Services,Operational Materials,205,19/05/2017,1705-00037,0.00,10.50,R,A J H  Pump Supply & Repair Ltd,No
Http://opendatacommunities.org/id/metropolitan-district-council/leeds,Leeds City Council,31/05/2017,Environment & Housing,Leeds Building Services,Supplies and Services,Operational Materials,205,19/05/2017,1705-00038,0.00,42.00,R,A J H  Pump Supply & Repair Ltd,No
Http://opendatacommunities.org/id/metropolitan-district-council/leeds,Leeds City Council,31/05/2017,Environment & Housing,Leeds Building Services,Supplies and Services,Operational Materials,205,19/05/2017,1705-00039,0.00,218.00,R,A J H  Pump Supply & Repair Ltd,No
Http://opendatacommunities.org/id/metropolitan-district-council/leeds,Leeds City Council,31/05/2017,Environment & Housing,Leeds Building Services,Supplies and Services,Operational Materials,205,19/05/2017,1705-00040,0.00,114.99,R,A J H  Pump Supply & Repair Ltd,No
Http://opendatacommunities.org/id/metropolitan-district-council/leeds,Leeds City Council,31/05/2017,Environment & Housing,Leeds Building Services,Supplies and Services,Operational Materials,205,19/05/2017,1705-00041,0.00,105.00,R,A J H  Pump Supply & Repair Ltd,No
Http://opendatacommunities.org/id/metropolitan-district-council/leeds,Leeds City Council,31/05/2017,Environment & Housing,Leeds Building Services,Supplies and Services,Operational Materials,205,19/05/2017,1705-00042,0.00,29.50,R,A J H  Pump Supply & Repair Ltd,No
Http://opendatacommunities.org/id/metropolitan-district-council/leeds,Leeds City Council,31/05/2017,Environment & Housing,Leeds Building Services,Supplies and Services,Operational Materials,205,19/05/2017,1705-00043,0.00,105.00,R,A J H  Pump Supply & Repair Ltd,No
Http://opendatacommunities.org/id/metropolitan-district-council/leeds,Leeds City Council,31/05/2017,Environment & Housing,Leeds Building Services,Supplies and Services,Operational Materials,205,19/05/2017,1705-00044,0.00,221.98,R,A J H  Pump Supply & Repair Ltd,No
Http://opendatacommunities.org/id/metropolitan-district-council/leeds,Leeds City Council,31/05/2017,Environment & Housing,Leeds Building Services,Supplies and Services,Operational Materials,205,19/05/2017,1705-00045,0.00,58.00,R,A J H  Pump Supply & Repair Ltd,No
Http://opendatacommunities.org/id/metropolitan-district-council/leeds,Leeds City Council,31/05/2017,Environment & Housing,Leeds Building Services,Supplies and Services,Operational Materials,205,19/05/2017,1705-00046,0.00,105.00,R,A J H  Pump Supply & Repair Ltd,No
Http://opendatacommunities.org/id/metropolitan-district-council/leeds,Leeds City Council,31/05/2017,Environment & Housing,Leeds Building Services,Supplies and Services,Operational Materials,205,26/05/2017,1705-00047,0.00,4381.00,R,A J H  Pump Supply & Repair Ltd,No
Http://opendatacommunities.org/id/metropolitan-district-council/leeds,Leeds City Council,31/05/2017,Environment & Housing,Leeds Building Services,Supplies and Services,Operational Materials,205,26/05/2017,1705-00048,0.00,413.00,R,A J H  Pump Supply & Repair Ltd,No
Http://opendatacommunities.org/id/metropolitan-district-council/leeds,Leeds City Council,31/05/2017,Environment & Housing,Leeds Building Services,Supplies and Services,Operational Materials,205,31/05/2017,1705-00049,0.00,35.00,R,A J H  Pump Supply & Repair Ltd,No
Http://opendatacommunities.org/id/metropolitan-district-council/leeds,Leeds City Council,31/05/2017,Environment & Housing,Leeds Building Services,Supplies and Services,Operational Materials,205,31/05/2017,1705-00050,0.00,52.65,R,A J H  Pump Supply & Repair Ltd,No
Http://opendatacommunities.org/id/metropolitan-district-council/leeds,Leeds City Council,31/05/2017,Environment & Housing,Leeds Building Services,Supplies and Services,Operational Materials,205,31/05/2017,1705-00051,0.00,162.95,R,A J H  Pump Supply & Repair Ltd,No
Http://opendatacommunities.org/id/metropolitan-district-council/leeds,Leeds City Council,31/05/2017,Environment & Housing,Leeds Building Services,Supplies and Services,Operational Materials,205,31/05/2017,1705-00052,0.00,439.71,R,A J H  Pump Supply & Repair Ltd,No
Http://opendatacommunities.org/id/metropolitan-district-council/leeds,Leeds City Council,31/05/2017,Environment & Housing,Leeds Building Services,Supplies and Services,Operational Materials,205,31/05/2017,1705-00053,0.00,78.70,R,A J H  Pump Supply & Repair Ltd,No
Http://opendatacommunities.org/id/metropolitan-district-council/leeds,Leeds City Council,31/05/2017,Environment & Housing,Leeds Building Services,Supplies and Services,Operational Materials,205,31/05/2017,1705-00054,0.00,105.00,R,A J H  Pump Supply & Repair Ltd,No
Http://opendatacommunities.org/id/metropolitan-district-council/leeds,Leeds City Council,31/05/2017,Environment & Housing,Leeds Building Services,Supplies and Services,Operational Materials,205,31/05/2017,1705-00055,0.00,51.47,R,A J H  Pump Supply & Repair Ltd,No
Http://opendatacommunities.org/id/metropolitan-district-council/leeds,Leeds City Council,31/05/2017,Environment & Housing,Leeds Building Services,Supplies and Services,Operational Materials,205,31/05/2017,1705-00056,0.00,109.00,R,A J H  Pump Supply & Repair Ltd,No
Http://opendatacommunities.org/id/metropolitan-district-council/leeds,Leeds City Council,31/05/2017,Environment & Housing,Leeds Building Services,Supplies and Services,Operational Materials,205,31/05/2017,1705-00057,0.00,282.15,R,A J H  Pump Supply & Repair Ltd,No
Http://opendatacommunities.org/id/metropolitan-district-council/leeds,Leeds City Council,31/05/2017,Environment & Housing,Leeds Building Services,Supplies and Services,Operational Materials,205,31/05/2017,1705-00058,0.00,31.50,R,A J H  Pump Supply & Repair Ltd,No
Http://opendatacommunities.org/id/metropolitan-district-council/leeds,Leeds City Council,31/05/2017,Environment & Housing,Leeds Building Services,Supplies and Services,Operational Materials,205,31/05/2017,1705-00059,0.00,61.50,R,A J H  Pump Supply & Repair Ltd,No
Http://opendatacommunities.org/id/metropolitan-district-council/leeds,Leeds City Council,31/05/2017,Environment & Housing,Leeds Building Services,Supplies and Services,Operational Materials,205,31/05/2017,1705-00060,0.00,71.50,R,A J H  Pump Supply & Repair Ltd,No
Http://opendatacommunities.org/id/metropolitan-district-council/leeds,Leeds City Council,31/05/2017,Environment & Housing,Leeds Building Services,Supplies and Services,Operational Materials,205,31/05/2017,1705-00061,0.00,59.01,R,A J H  Pump Supply & Repair Ltd,No
Http://opendatacommunities.org/id/metropolitan-district-council/leeds,Leeds City Council,31/05/2017,Environment & Housing,Leeds Building Services,Supplies and Services,Operational Materials,205,31/05/2017,1705-00062,0.00,66.65,R,A J H  Pump Supply & Repair Ltd,No
Http://opendatacommunities.org/id/metropolitan-district-council/leeds,Leeds City Council,31/05/2017,Environment & Housing,Leeds Building Services,Supplies and Services,Operational Materials,205,31/05/2017,1705-00063,0.00,115.00,R,A J H  Pump Supply & Repair Ltd,No
Http://opendatacommunities.org/id/metropolitan-district-council/leeds,Leeds City Council,31/05/2017,Environment & Housing,Leeds Building Services,Supplies and Services,Operational Materials,205,31/05/2017,1705-00064,0.00,27.95,R,A J H  Pump Supply & Repair Ltd,No
Http://opendatacommunities.org/id/metropolitan-district-council/leeds,Leeds City Council,31/05/2017,Environment & Housing,Leeds Building Services,Supplies and Services,Operational Materials,205,31/05/2017,1705-00065,0.00,109.00,R,A J H  Pump Supply & Repair Ltd,No
Http://opendatacommunities.org/id/metropolitan-district-council/leeds,Leeds City Council,31/05/2017,Environment & Housing,Leeds Building Services,Supplies and Services,Operational Materials,205,31/05/2017,1705-00066,0.00,135.56,R,A J H  Pump Supply & Repair Ltd,No
Http://opendatacommunities.org/id/metropolitan-district-council/leeds,Leeds City Council,31/05/2017,Environment & Housing,Leeds Building Services,Supplies and Services,Operational Materials,205,31/05/2017,1705-00067,0.00,34.13,R,A J H  Pump Supply & Repair Ltd,No
Http://opendatacommunities.org/id/metropolitan-district-council/leeds,Leeds City Council,31/05/2017,Environment & Housing,Leeds Building Services,Supplies and Services,Operational Materials,205,31/05/2017,1705-00068,0.00,44.90,R,A J H  Pump Supply & Repair Ltd,No
Http://opendatacommunities.org/id/metropolitan-district-council/leeds,Leeds City Council,31/05/2017,Environment & Housing,Leeds Building Services,Supplies and Services,Operational Materials,205,31/05/2017,1705-00069,0.00,23.08,R,A J H  Pump Supply & Repair Ltd,No
Http://opendatacommunities.org/id/metropolitan-district-council/leeds,Leeds City Council,31/05/2017,Environment & Housing,Leeds Building Services,Supplies and Services,Operational Materials,205,31/05/2017,1705-00070,0.00,25.20,R,A J H  Pump Supply & Repair Ltd,No
Http://opendatacommunities.org/id/metropolitan-district-council/leeds,Leeds City Council,31/05/2017,Environment & Housing,Leeds Building Services,Supplies and Services,Operational Materials,205,31/05/2017,1705-00071,0.00,127.95,R,A J H  Pump Supply & Repair Ltd,No
Http://opendatacommunities.org/id/metropolitan-district-council/leeds,Leeds City Council,31/05/2017,Environment & Housing,Leeds Building Services,Supplies and Services,Operational Materials,205,31/05/2017,1705-00072,0.00,254.00,R,A J H  Pump Supply & Repair Ltd,No
Http://opendatacommunities.org/id/metropolitan-district-council/leeds,Leeds City Council,31/05/2017,Communities And Environment,Customer Access,Supplies and Services,Resaleable Materials,204,11/05/2017,1705-00073,0.00,216.10,R,A J Promotions,No
Http://opendatacommunities.org/id/metropolitan-district-council/leeds,Leeds City Council,31/05/2017,Adults And Health,Public Health,Third Party Payments,Public Health Commissioned Services,526,18/05/2017,1705-00074,0.00,772.00,R,A Khan & K Muneer,No
Http://opendatacommunities.org/id/metropolitan-district-council/leeds,Leeds City Council,31/05/2017,Children And Families,Safeguarding Targeted & Specialist,Third Party Payments,Services Rendered By Other Organisations,511,26/05/2017,1705-00075,0.00,412.50,R,A Little Something Extra Ltd,No
Http://opendatacommunities.org/id/metropolitan-district-council/leeds,Leeds City Council,31/05/2017,Children And Families,Safeguarding Targeted & Specialist,Third Party Payments,Services Rendered By Voluntary Sector,505,26/05/2017,1705-00076,0.00,772.50,R,A Little Something Extra Ltd,No
Http://opendatacommunities.org/id/metropolitan-district-council/leeds,Leeds City Council,31/05/2017,Communities And Environment,Customer Access,Supplies and Services,Other Hired And Contracted Services,265,04/05/2017,1705-00077,0.00,83.25,R,A Musalam,No
Http://opendatacommunities.org/id/metropolitan-district-council/leeds,Leeds City Council,31/05/2017,Communities And Environment,Customer Access,Supplies and Services,Other Hired And Contracted Services,265,08/05/2017,1705-00078,0.00,581.49,R,A Namaki,No
Http://opendatacommunities.org/id/metropolitan-district-council/leeds,Leeds City Council,31/05/2017,Environment & Housing,Parks and Countryside,Supplies and Services,Operational Materials,205,03/05/2017,1705-00079,0.00,405.00,R,A Newton,No
Http://opendatacommunities.org/id/metropolitan-district-council/leeds,Leeds City Council,31/05/2017,Adults And Health,Public Health,Third Party Payments,Public Health Commissioned Services,526,19/05/2017,1705-00080,0.00,4100.35,R,A P Health,No
Http://opendatacommunities.org/id/metropolitan-district-council/leeds,Leeds City Council,31/05/2017,Resources And Housing,HRA Housing Leeds,Capital,Other Costs,7,23/05/2017,1705-00081,0.00,130.00,C,REDACTED PERSONAL DATA,No
Http://opendatacommunities.org/id/metropolitan-district-council/leeds,Leeds City Council,31/05/2017,Civic Enterprise Leeds,Shared Services,Supplies and Services,Other Hired And Contracted Services,265,19/05/2017,1705-00082,0.00,46.25,R,A Star Couriers Ltd,No
Http://opendatacommunities.org/id/metropolitan-district-council/leeds,Leeds City Council,31/05/2017,Resources And Housing,HRA Housing Leeds,Capital,Other Costs,7,25/05/2017,1705-00083,0.00,350.00,C,REDACTED PERSONAL DATA,No
Http://opendatacommunities.org/id/metropolitan-district-council/leeds,Leeds City Council,31/05/2017,Insurance,Insurance,Supplies and Services,Insurance Claims,248,12/05/2017,1705-00084,0.00,250.00,R,REDACTED PERSONAL DATA,No
Http://opendatacommunities.org/id/metropolitan-district-council/leeds,Leeds City Council,31/05/2017,Resources And Housing,HRA Housing Leeds,Capital,Other Costs,7,11/05/2017,1705-00085,0.00,350.00,C,REDACTED PERSONAL DATA,No
Http://opendatacommunities.org/id/metropolitan-district-council/leeds,Leeds City Council,31/05/2017,Environment & Housing,Waste Management,Supplies and Services,Furniture And Equipment,5,05/05/2017,1705-00086,0.00,1375.00,C,A&C Weber Uk Ltd,No
Http://opendatacommunities.org/id/metropolitan-district-council/leeds,Leeds City Council,31/05/2017,Environment & Housing,Waste Management,Supplies and Services,Furniture And Equipment,5,05/05/2017,1705-00087,0.00,1375.00,C,A&C Weber Uk Ltd,No
Http://opendatacommunities.org/id/metropolitan-district-council/leeds,Leeds City Council,31/05/2017,Adults And Health,Public Health,Third Party Payments,Public Health Commissioned Services,526,26/05/2017,1705-00088,0.00,16.24,R,Aaa Healthcare Ltd,No
Http://opendatacommunities.org/id/metropolitan-district-council/leeds,Leeds City Council,31/05/2017,Environment & Housing,Leeds Building Services,Supplies and Services,Operational Materials,205,22/05/2017,1705-00089,0.00,102.00,R,Aalco Leeds,No
Http://opendatacommunities.org/id/metropolitan-district-council/leeds,Leeds City Council,31/05/2017,Environment & Housing,Leeds Building Services,Supplies and Services,Operational Materials,205,22/05/2017,1705-00090,0.00,96.50,R,Aalco Leeds,No
Http://opendatacommunities.org/id/metropolitan-district-council/leeds,Leeds City Council,31/05/2017,Environment & Housing,Leeds Building Services,Supplies and Services,Operational Materials,205,26/05/2017,1705-00091,0.00,60.00,R,Aalco Leeds,No
Http://opendatacommunities.org/id/metropolitan-district-council/leeds,Leeds City Council as Accountable Body,31/05/2017,Social Services Pooled Budgets,Leeds Community Equip Store Pooled Budgt,Supplies and Services,Other Equipment,203,03/05/2017,1705-00092,0.00,410.00,R,Aat (Gb) Ltd,No
Http://opendatacommunities.org/id/metropolitan-district-council/leeds,Leeds City Council as Accountable Body,31/05/2017,Social Services Pooled Budgets,Leeds Community Equip Store Pooled Budgt,Supplies and Services,Other Equipment,203,03/05/2017,1705-00093,0.00,410.00,R,Aat (Gb) Ltd,No
Http://opendatacommunities.org/id/metropolitan-district-council/leeds,Leeds City Council as Accountable Body,31/05/2017,Social Services Pooled Budgets,Leeds Community Equip Store Pooled Budgt,Supplies and Services,Other Equipment,203,03/05/2017,1705-00094,0.00,614.00,R,Aat (Gb) Ltd,No
Http://opendatacommunities.org/id/metropolitan-district-council/leeds,Leeds City Council as Accountable Body,31/05/2017,Social Services Pooled Budgets,Leeds Community Equip Store Pooled Budgt,Supplies and Services,Other Equipment,203,03/05/2017,1705-00095,0.00,614.00,R,Aat (Gb) Ltd,No
Http://opendatacommunities.org/id/metropolitan-district-council/leeds,Leeds City Council as Accountable Body,31/05/2017,Social Services Pooled Budgets,Leeds Community Equip Store Pooled Budgt,Supplies and Services,Other Equipment,203,03/05/2017,1705-00096,0.00,804.00,R,Aat (Gb) Ltd,No
Http://opendatacommunities.org/id/metropolitan-district-council/leeds,Leeds City Council as Accountable Body,31/05/2017,Social Services Pooled Budgets,Leeds Community Equip Store Pooled Budgt,Supplies and Services,Other Equipment,203,03/05/2017,1705-00097,0.00,799.00,R,Aat (Gb) Ltd,No
Http://opendatacommunities.org/id/metropolitan-district-council/leeds,Leeds City Council as Accountable Body,31/05/2017,Social Services Pooled Budgets,Leeds Community Equip Store Pooled Budgt,Supplies and Services,Other Equipment,203,03/05/2017,1705-00098,0.00,799.00,R,Aat (Gb) Ltd,No
Http://opendatacommunities.org/id/metropolitan-district-council/leeds,Leeds City Council as Accountable Body,31/05/2017,Social Services Pooled Budgets,Leeds Community Equip Store Pooled Budgt,Supplies and Services,Other Equipment,203,10/05/2017,1705-00099,0.00,979.00,R,Aat (Gb) Ltd,No
Http://opendatacommunities.org/id/metropolitan-district-council/leeds,Leeds City Council as Accountable Body,31/05/2017,Social Services Pooled Budgets,Leeds Community Equip Store Pooled Budgt,Supplies and Services,Other Equipment,203,26/05/2017,1705-00100,0.00,614.00,R,Aat (Gb) Ltd,No
Http://opendatacommunities.org/id/metropolitan-district-council/leeds,Leeds City Council,31/05/2017,Environment & Housing,Streetscene Environmental Services  ,Supplies and Services,Postages,212,25/04/2017,1705-00101,0.00,13.50,R,Abacus Express,Yes
Http://opendatacommunities.org/id/metropolitan-district-council/leeds,Leeds City Council,31/05/2017,City Development,Libraries  Arts & Heritage,Supplies and Services,Operational Materials,205,12/05/2017,1705-00102,0.00,16.88,R,Abacus Express Limited,No
Http://opendatacommunities.org/id/metropolitan-district-council/leeds,Leeds City Council,31/05/2017,Children And Families,Safeguarding Targeted & Specialist,Support Services,Legal Disbursements,411,22/05/2017,1705-00103,0.00,15.59,R,Abacus Express Limited,No
Http://opendatacommunities.org/id/metropolitan-district-council/leeds,Leeds City Council,31/05/2017,Children And Families,Safeguarding Targeted & Specialist,Support Services,Legal Disbursements,411,24/05/2017,1705-00104,0.00,31.02,R,Abacus Express Limited,No
Http://opendatacommunities.org/id/metropolitan-district-council/leeds,Leeds City Council,31/05/2017,Children And Families,Safeguarding Targeted & Specialist,Support Services,Legal Disbursements,411,24/05/2017,1705-00105,0.00,31.02,R,Abacus Express Limited,No
Http://opendatacommunities.org/id/metropolitan-district-council/leeds,Leeds City Council,31/05/2017,Children And Families,Safeguarding Targeted & Specialist,Support Services,Legal Disbursements,411,24/05/2017,1705-00106,0.00,31.02,R,Abacus Express Limited,No
Http://opendatacommunities.org/id/metropolitan-district-council/leeds,Leeds City Council,31/05/2017,Children And Families,Safeguarding Targeted & Specialist,Support Services,Legal Disbursements,411,25/05/2017,1705-00107,0.00,31.02,R,Abacus Express Limited,No
Http://opendatacommunities.org/id/metropolitan-district-council/leeds,Leeds City Council,31/05/2017,Children And Families,Safeguarding Targeted & Specialist,Support Services,Legal Disbursements,411,25/05/2017,1705-00108,0.00,26.77,R,Abacus Express Limited,No
Http://opendatacommunities.org/id/metropolitan-district-council/leeds,Leeds City Council,31/05/2017,Children And Families,Safeguarding Targeted & Specialist,Support Services,Legal Disbursements,411,25/05/2017,1705-00109,0.00,26.77,R,Abacus Express Limited,No
Http://opendatacommunities.org/id/metropolitan-district-council/leeds,Leeds City Council,31/05/2017,Children And Families,Safeguarding Targeted & Specialist,Support Services,Legal Disbursements,411,25/05/2017,1705-00110,0.00,31.02,R,Abacus Express Limited,No
Http://opendatacommunities.org/id/metropolitan-district-council/leeds,Leeds City Council,31/05/2017,Children And Families,Safeguarding Targeted & Specialist,Support Services,Legal Disbursements,411,25/05/2017,1705-00111,0.00,15.59,R,Abacus Express Limited,No
Http://opendatacommunities.org/id/metropolitan-district-council/leeds,Leeds City Council,31/05/2017,Children And Families,Safeguarding Targeted & Specialist,Support Services,Legal Disbursements,411,25/05/2017,1705-00112,0.00,15.59,R,Abacus Express Limited,No
Http://opendatacommunities.org/id/metropolitan-district-council/leeds,Leeds City Council,31/05/2017,Children And Families,Safeguarding Targeted & Specialist,Support Services,Legal Disbursements,411,25/05/2017,1705-00113,0.00,15.59,R,Abacus Express Limited,No
Http://opendatacommunities.org/id/metropolitan-district-council/leeds,Leeds City Council,31/05/2017,Children And Families,Safeguarding Targeted & Specialist,Support Services,Legal Disbursements,411,25/05/2017,1705-00114,0.00,17.20,R,Abacus Express Limited,No
Http://opendatacommunities.org/id/metropolitan-district-council/leeds,Leeds City Council,31/05/2017,Children And Families,Safeguarding Targeted & Specialist,Support Services,Legal Disbursements,411,25/05/2017,1705-00115,0.00,15.59,R,Abacus Express Limited,No
Http://opendatacommunities.org/id/metropolitan-district-council/leeds,Leeds City Council,31/05/2017,Children And Families,Safeguarding Targeted & Specialist,Support Services,Legal Disbursements,411,25/05/2017,1705-00116,0.00,18.28,R,Abacus Express Limited,No
Http://opendatacommunities.org/id/metropolitan-district-council/leeds,Leeds City Council,31/05/2017,Adults And Health,Services For Older People - 65 And Over,Third Party Payments,Nursing Care Dementia,574,03/05/2017,1705-00117,0.00,1556.00,R,Abbendon Nursing Home,No
Http://opendatacommunities.org/id/metropolitan-district-council/leeds,Leeds City Council,31/05/2017,Adults And Health,Services For Older People - 65 And Over,Third Party Payments,Nursing Care Dementia,574,31/05/2017,1705-00118,0.00,1556.00,R,Abbendon Nursing Home,No
Http://opendatacommunities.org/id/metropolitan-district-council/leeds,Leeds City Council,31/05/2017,Children And Families,Learning Skills & Universal,Supplies and Services,Other Hired And Contracted Services,265,30/05/2017,1705-00119,0.00,525.00,R,Abbey Grange C Of E Academy Trust,No
Http://opendatacommunities.org/id/metropolitan-district-council/leeds,Leeds City Council,31/05/2017,Adults And Health,Public Health,Third Party Payments,Public Health Commissioned Services,526,18/05/2017,1705-00120,0.00,4946.49,R,Abbey Grange Medical Practice,No
Http://opendatacommunities.org/id/metropolitan-district-council/leeds,Leeds City Council,31/05/2017,City Development,Libraries  Arts & Heritage  ,Supplies and Services,Food & Drink,231,20/04/2017,1705-00121,0.00,3.29,R,Abbey House Museum Caf,Yes
Http://opendatacommunities.org/id/metropolitan-district-council/leeds,Leeds City Council,31/05/2017,Environment & Housing,Parks and Countryside,Supplies and Services,Other Hired And Contracted Services,265,02/05/2017,1705-00122,0.00,525.00,R,Abbotts Memorials,No
Http://opendatacommunities.org/id/metropolitan-district-council/leeds,Leeds City Council,31/05/2017,Communities And Environment,Customer Access,Supplies and Services,Other Hired And Contracted Services,265,08/05/2017,1705-00123,0.00,134.50,R,Abdul Wadood Kazizadha,No
Http://opendatacommunities.org/id/metropolitan-district-council/leeds,Leeds City Council,31/05/2017,Communities And Environment,Customer Access,Supplies and Services,Other Hired And Contracted Services,265,08/05/2017,1705-00124,0.00,228.00,R,Abdulahad Denha,No
Http://opendatacommunities.org/id/metropolitan-district-council/leeds,Leeds City Council,31/05/2017,Communities And Environment,Customer Access,Supplies and Services,Other Hired And Contracted Services,265,08/05/2017,1705-00125,0.00,5.00,R,Abdulahad Denha,No
Http://opendatacommunities.org/id/metropolitan-district-council/leeds,Leeds City Council,31/05/2017,Communities And Environment,Customer Access,Supplies and Services,Other Hired And Contracted Services,265,08/05/2017,1705-00126,0.00,465.40,R,Abdur Rahman Khan,No
Http://opendatacommunities.org/id/metropolitan-district-council/leeds,Leeds City Council,31/05/2017,Adults And Health,Services For Older People - 65 And Over,Third Party Payments,Nursing Home,570,03/05/2017,1705-00127,0.00,32955.70,R,Aberford Hall,No
Http://opendatacommunities.org/id/metropolitan-district-council/leeds,Leeds City Council,31/05/2017,Adults And Health,Services For Older People - 65 And Over,Third Party Payments,Nursing Care Dementia,574,03/05/2017,1705-00128,0.00,1486.20,R,Aberford Hall,No
Http://opendatacommunities.org/id/metropolitan-district-council/leeds,Leeds City Council,31/05/2017,Adults And Health,Services For Older People - 65 And Over,Third Party Payments,Residential,580,03/05/2017,1705-00129,0.00,1471.89,R,Aberford Hall,No
Http://opendatacommunities.org/id/metropolitan-district-council/leeds,Leeds City Council,31/05/2017,Adults And Health,Services For Older People - 65 And Over,Third Party Payments,Nursing Home,570,22/05/2017,1705-00130,0.00,371.30,R,Aberford Hall,No
Http://opendatacommunities.org/id/metropolitan-district-council/leeds,Leeds City Council,31/05/2017,Adults And Health,Services For Older People - 65 And Over,Third Party Payments,Nursing Home,570,31/05/2017,1705-00131,0.00,31743.30,R,Aberford Hall,No
Http://opendatacommunities.org/id/metropolitan-district-council/leeds,Leeds City Council,31/05/2017,Adults And Health,Services For Older People - 65 And Over,Third Party Payments,Nursing Care Dementia,574,31/05/2017,1705-00132,0.00,1486.20,R,Aberford Hall,No
Http://opendatacommunities.org/id/metropolitan-district-council/leeds,Leeds City Council,31/05/2017,Adults And Health,Services For Older People - 65 And Over,Third Party Payments,Residential,580,31/05/2017,1705-00133,0.00,2665.28,R,Aberford Hall,No
Http://opendatacommunities.org/id/metropolitan-district-council/leeds,Leeds City Council,31/05/2017,Environment & Housing,Leeds Building Services,Supplies and Services,Operational Materials,205,05/05/2017,1705-00134,0.00,225.00,R,Abi Garage Doors Ltd,No
Http://opendatacommunities.org/id/metropolitan-district-council/leeds,Leeds City Council,31/05/2017,Environment & Housing,Leeds Building Services,Supplies and Services,Operational Materials,205,05/05/2017,1705-00135,0.00,225.00,R,Abi Garage Doors Ltd,No
Http://opendatacommunities.org/id/metropolitan-district-council/leeds,Leeds City Council,31/05/2017,Environment & Housing,Leeds Building Services,Supplies and Services,Operational Materials,205,05/05/2017,1705-00136,0.00,225.00,R,Abi Garage Doors Ltd,No
Http://opendatacommunities.org/id/metropolitan-district-council/leeds,Leeds City Council,31/05/2017,Environment & Housing,Leeds Building Services,Supplies and Services,Stores - Central And Other Depots,005,11/05/2017,1705-00137,0.00,109.50,R,Abi Garage Doors Ltd,No
Http://opendatacommunities.org/id/metropolitan-district-council/leeds,Leeds City Council,31/05/2017,Environment & Housing,Leeds Building Services,Supplies and Services,Operational Materials,205,22/05/2017,1705-00138,0.00,225.00,R,Abi Garage Doors Ltd,No
Http://opendatacommunities.org/id/metropolitan-district-council/leeds,Leeds City Council,31/05/2017,Children And Families,Safeguarding Targeted & Specialist,Supplies and Services,Telephones,213,11/05/2017,1705-00139,0.00,2.80,R,REDACTED PERSONAL DATA,No
Http://opendatacommunities.org/id/metropolitan-district-council/leeds,Leeds City Council,31/05/2017,Children And Families,Safeguarding Targeted & Specialist,#N/A,Food & Drink,231,11/05/2017,1705-00140,0.00,22.84,R,REDACTED PERSONAL DATA,No
Http://opendatacommunities.org/id/metropolitan-district-council/leeds,Leeds City Council,31/05/2017,Children And Families,Safeguarding Targeted & Specialist,Transport,Public Transport Expenses,310,11/05/2017,1705-00141,0.00,10.80,R,REDACTED PERSONAL DATA,No
Http://opendatacommunities.org/id/metropolitan-district-council/leeds,Leeds City Council,31/05/2017,Children And Families,Safeguarding Targeted & Specialist,Transport,Car & Motorcycle Allowances,311,11/05/2017,1705-00142,0.00,9.00,R,REDACTED PERSONAL DATA,No
Http://opendatacommunities.org/id/metropolitan-district-council/leeds,Leeds City Council,31/05/2017,City Development,Libraries  Arts & Heritage  ,Supplies and Services,Food & Drink,231,14/04/2017,1705-00143,0.00,157.71,R,Abo Leeds,Yes
Http://opendatacommunities.org/id/metropolitan-district-council/leeds,Leeds City Council,31/05/2017,Environment & Housing,Parks and Countryside,Supplies and Services,Operational Materials,205,24/05/2017,1705-00144,0.00,1440.00,R,Abram Pulmans & Sons Ltd,No
Http://opendatacommunities.org/id/metropolitan-district-council/leeds,Leeds City Council,31/05/2017,City Development,Economic Development,Supplies and Services,Publication And Promotion,267,04/05/2017,1705-00145,0.00,55.00,R,Absolute Media Ltd,No
Http://opendatacommunities.org/id/metropolitan-district-council/leeds,Leeds City Council,31/05/2017,City Development,Economic Development,Supplies and Services,Publication And Promotion,267,04/05/2017,1705-00146,0.00,55.00,R,Absolute Media Ltd,No
Http://opendatacommunities.org/id/metropolitan-district-council/leeds,Leeds City Council,31/05/2017,City Development,Economic Development,Supplies and Services,Publication And Promotion,267,09/05/2017,1705-00147,0.00,5720.00,R,Absolute Media Ltd,No
Http://opendatacommunities.org/id/metropolitan-district-council/leeds,Leeds City Council,31/05/2017,Children And Families,Safeguarding Targeted & Specialist  ,Transfer Payments,Leaving Care Allowances,634,13/04/2017,1705-00148,0.00,30.13,R,Abu Bakar Ltd,Yes
Http://opendatacommunities.org/id/metropolitan-district-council/leeds,Leeds City Council,31/05/2017,Insurance,Insurance,Supplies and Services,Insurance Claims,248,09/05/2017,1705-00149,0.00,4500.00,R,REDACTED PERSONAL DATA,No
Http://opendatacommunities.org/id/metropolitan-district-council/leeds,Leeds City Council,31/05/2017,Children And Families,Safeguarding Targeted & Specialist,Employees,Agency Staff,8,25/05/2017,1705-00150,0.00,1184.22,R,Academic Appointments Ltd,No
Http://opendatacommunities.org/id/metropolitan-district-council/leeds,Leeds City Council,31/05/2017,Environment & Housing,Community Safety,Supplies and Services,Operational Materials,205,26/05/2017,1705-00151,0.00,1160.00,R,Access Hire Nationwide Ltd,No
Http://opendatacommunities.org/id/metropolitan-district-council/leeds,Leeds City Council,31/05/2017,Environment & Housing,Leeds Building Services,Supplies and Services,Other Hired And Contracted Services,265,31/05/2017,1705-00152,0.00,5223.75,R,Access Lift Consultants Ltd,No
Http://opendatacommunities.org/id/metropolitan-district-council/leeds,Leeds City Council,31/05/2017,City Development,Employment & Skills  ,Supplies and Services,Operational Materials,205,30/03/2017,1705-00153,0.00,18.28,R,Access Locksmiths,Yes
Http://opendatacommunities.org/id/metropolitan-district-council/leeds,Leeds City Council,31/05/2017,Environment & Housing,Parks And Countryside  ,Supplies and Services,Operational Materials,205,30/03/2017,1705-00154,0.00,274.95,R,Access Locksmiths,Yes
Http://opendatacommunities.org/id/metropolitan-district-council/leeds,Leeds City Council,31/05/2017,Strategic Landlord,Housing Management  ,Supplies and Services,Office Consumables,210,31/03/2017,1705-00155,0.00,10.17,R,Access Locksmiths,Yes
Http://opendatacommunities.org/id/metropolitan-district-council/leeds,Leeds City Council,31/05/2017,Civic Enterprise Leeds,Commercial Services  ,Supplies and Services,Operational Materials,205,13/04/2017,1705-00156,0.00,324.81,R,Access Locksmiths,Yes
Http://opendatacommunities.org/id/metropolitan-district-council/leeds,Leeds City Council,31/05/2017,Strategic Landlord,Property and Contracts,Premises,General Maintenance,104,05/05/2017,1705-00157,0.00,89.88,R,Access Locksmiths (Leeds) Limited,No
Http://opendatacommunities.org/id/metropolitan-district-council/leeds,Leeds City Council,31/05/2017,Strategic Landlord,Property and Contracts,Premises,General Maintenance,104,05/05/2017,1705-00158,0.00,89.88,R,Access Locksmiths (Leeds) Limited,No
Http://opendatacommunities.org/id/metropolitan-district-council/leeds,Leeds City Council,31/05/2017,Strategic Landlord,Housing Management,Premises,General Maintenance,104,05/05/2017,1705-00159,0.00,136.80,R,Access Locksmiths (Leeds) Limited,No
Http://opendatacommunities.org/id/metropolitan-district-council/leeds,Leeds City Council,31/05/2017,Strategic Landlord,Housing Management,Premises,General Maintenance,104,05/05/2017,1705-00160,0.00,136.80,R,Access Locksmiths (Leeds) Limited,No
Http://opendatacommunities.org/id/metropolitan-district-council/leeds,Leeds City Council,31/05/2017,Strategic Landlord,Housing Management,Premises,General Maintenance,104,05/05/2017,1705-00161,0.00,684.00,R,Access Locksmiths (Leeds) Limited,No
Http://opendatacommunities.org/id/metropolitan-district-council/leeds,Leeds City Council,31/05/2017,Strategic Landlord,Housing Management,Premises,General Maintenance,104,05/05/2017,1705-00162,0.00,684.00,R,Access Locksmiths (Leeds) Limited,No
Http://opendatacommunities.org/id/metropolitan-district-council/leeds,Leeds City Council,31/05/2017,Strategic Landlord,Property and Contracts,Premises,General Maintenance,104,05/05/2017,1705-00163,0.00,114.00,R,Access Locksmiths (Leeds) Limited,No
Http://opendatacommunities.org/id/metropolitan-district-council/leeds,Leeds City Council,31/05/2017,Strategic Landlord,Property and Contracts,Premises,General Maintenance,104,05/05/2017,1705-00164,0.00,114.00,R,Access Locksmiths (Leeds) Limited,No
Http://opendatacommunities.org/id/metropolitan-district-council/leeds,Leeds City Council,31/05/2017,Strategic Landlord,Property and Contracts,Premises,General Maintenance,104,05/05/2017,1705-00165,0.00,169.50,R,Access Locksmiths (Leeds) Limited,No
Http://opendatacommunities.org/id/metropolitan-district-council/leeds,Leeds City Council,31/05/2017,Strategic Landlord,Property and Contracts,Premises,General Maintenance,104,05/05/2017,1705-00166,0.00,169.50,R,Access Locksmiths (Leeds) Limited,No
Http://opendatacommunities.org/id/metropolitan-district-council/leeds,Leeds City Council,31/05/2017,Strategic Landlord,Property and Contracts,Premises,General Maintenance,104,05/05/2017,1705-00167,0.00,231.71,R,Access Locksmiths (Leeds) Limited,No
Http://opendatacommunities.org/id/metropolitan-district-council/leeds,Leeds City Council,31/05/2017,Strategic Landlord,Property and Contracts,Premises,General Maintenance,104,05/05/2017,1705-00168,0.00,231.71,R,Access Locksmiths (Leeds) Limited,No
Http://opendatacommunities.org/id/metropolitan-district-council/leeds,Leeds City Council,31/05/2017,Strategic Landlord,Housing Management,Premises,General Maintenance,104,05/05/2017,1705-00169,0.00,45.60,R,Access Locksmiths (Leeds) Limited,No
Http://opendatacommunities.org/id/metropolitan-district-council/leeds,Leeds City Council,31/05/2017,Strategic Landlord,Housing Management,Premises,General Maintenance,104,05/05/2017,1705-00170,0.00,45.60,R,Access Locksmiths (Leeds) Limited,No
Http://opendatacommunities.org/id/metropolitan-district-council/leeds,Leeds City Council,31/05/2017,Strategic Landlord,Property and Contracts,Premises,General Maintenance,104,05/05/2017,1705-00171,0.00,138.96,R,Access Locksmiths (Leeds) Limited,No
Http://opendatacommunities.org/id/metropolitan-district-council/leeds,Leeds City Council,31/05/2017,Strategic Landlord,Property and Contracts,Premises,General Maintenance,104,05/05/2017,1705-00172,0.00,138.96,R,Access Locksmiths (Leeds) Limited,No
Http://opendatacommunities.org/id/metropolitan-district-council/leeds,Leeds City Council,31/05/2017,Strategic Landlord,Property and Contracts,Premises,General Maintenance,104,12/05/2017,1705-00173,0.00,18.28,R,Access Locksmiths (Leeds) Limited,No
Http://opendatacommunities.org/id/metropolitan-district-council/leeds,Leeds City Council,31/05/2017,Strategic Landlord,Property and Contracts,Premises,General Maintenance,104,24/05/2017,1705-00174,0.00,107.89,R,Access Locksmiths (Leeds) Limited,No
Http://opendatacommunities.org/id/metropolitan-district-council/leeds,Leeds City Council,31/05/2017,Strategic Landlord,Property and Contracts,Premises,General Maintenance,104,24/05/2017,1705-00175,0.00,114.02,R,Access Locksmiths (Leeds) Limited,No
Http://opendatacommunities.org/id/metropolitan-district-council/leeds,Leeds City Council,31/05/2017,Strategic Landlord,Property and Contracts,Premises,General Maintenance,104,24/05/2017,1705-00176,0.00,141.53,R,Access Locksmiths (Leeds) Limited,No
Http://opendatacommunities.org/id/metropolitan-district-council/leeds,Leeds City Council,31/05/2017,Environment & Housing,Leeds Building Services,Supplies and Services,Operational Materials,205,26/05/2017,1705-00177,0.00,118.70,R,Access Locksmiths (Leeds) Limited,No
Http://opendatacommunities.org/id/metropolitan-district-council/leeds,Leeds City Council,31/05/2017,Environment & Housing,Leeds Building Services,Supplies and Services,Operational Furniture And Equipment,203,26/05/2017,1705-00178,0.00,30.10,R,Access Locksmiths (Leeds) Limited,No
Http://opendatacommunities.org/id/metropolitan-district-council/leeds,Leeds City Council,31/05/2017,Environment & Housing,Leeds Building Services,Supplies and Services,Operational Materials,205,26/05/2017,1705-00179,0.00,16.40,R,Access Locksmiths (Leeds) Limited,No
Http://opendatacommunities.org/id/metropolitan-district-council/leeds,Leeds City Council,31/05/2017,Environment & Housing,Leeds Building Services,Supplies and Services,Operational Materials,205,26/05/2017,1705-00180,0.00,31.91,R,Access Locksmiths (Leeds) Limited,No
Http://opendatacommunities.org/id/metropolitan-district-council/leeds,Leeds City Council,31/05/2017,Environment & Housing,Leeds Building Services,Supplies and Services,Operational Materials,205,26/05/2017,1705-00181,0.00,138.55,R,Access Locksmiths (Leeds) Limited,No
Http://opendatacommunities.org/id/metropolitan-district-council/leeds,Leeds City Council,31/05/2017,Environment & Housing,Leeds Building Services,Supplies and Services,Operational Materials,205,26/05/2017,1705-00182,0.00,6.75,R,Access Locksmiths (Leeds) Limited,No
Http://opendatacommunities.org/id/metropolitan-district-council/leeds,Leeds City Council,31/05/2017,Environment & Housing,Leeds Building Services,Supplies and Services,Operational Materials,205,26/05/2017,1705-00183,0.00,37.76,R,Access Locksmiths (Leeds) Limited,No
Http://opendatacommunities.org/id/metropolitan-district-council/leeds,Leeds City Council,31/05/2017,Environment & Housing,Leeds Building Services,Supplies and Services,Operational Materials,205,26/05/2017,1705-00184,0.00,153.92,R,Access Locksmiths (Leeds) Limited,No
Http://opendatacommunities.org/id/metropolitan-district-council/leeds,Leeds City Council,31/05/2017,Environment & Housing,Leeds Building Services,Supplies and Services,Other Hired And Contracted Services,265,05/05/2017,1705-00185,0.00,91.25,R,Access Opening Systems Limited,No
Http://opendatacommunities.org/id/metropolitan-district-council/leeds,Leeds City Council,31/05/2017,Environment & Housing,Leeds Building Services,Supplies and Services,Other Hired And Contracted Services,265,19/05/2017,1705-00186,0.00,11662.00,R,Access Opening Systems Limited,No
Http://opendatacommunities.org/id/metropolitan-district-council/leeds,Leeds City Council as Accountable Body,31/05/2017,Social Services Pooled Budgets,Jcs For People With Learning Disabilitie,Supplies and Services,Other Equipment,203,19/05/2017,1705-00187,0.00,1354.00,R,Accora,No
Http://opendatacommunities.org/id/metropolitan-district-council/leeds,Leeds City Council,31/05/2017,Insurance,Insurance,Supplies and Services,Insurance Claims,248,18/05/2017,1705-00188,0.00,6750.00,R,Accountant General Of The Senior Courts,No
Http://opendatacommunities.org/id/metropolitan-district-council/leeds,Leeds City Council,31/05/2017,Insurance,Insurance,Supplies and Services,Insurance Claims,248,25/05/2017,1705-00189,0.00,1500.00,R,Accountant General Of The Senior Courts,No
Http://opendatacommunities.org/id/metropolitan-district-council/leeds,Leeds City Council,31/05/2017,City Development,Recreation,Supplies and Services,Other Hired And Contracted Services,265,09/05/2017,1705-00190,0.00,135.00,R,Ace Container Services Limited,No
Http://opendatacommunities.org/id/metropolitan-district-council/leeds,Leeds City Council,31/05/2017,Children And Families,Learning Skills & Universal,Supplies and Services,Teaching Furniture & Equipment,207,12/05/2017,1705-00191,0.00,1985.00,R,Ace Container Services Limited,No
Http://opendatacommunities.org/id/metropolitan-district-council/leeds,Leeds City Council,31/05/2017,City Development,Recreation,Transport,External Hire -Occasional,304,30/05/2017,1705-00192,0.00,128.65,R,Ace Container Services Limited,No
Http://opendatacommunities.org/id/metropolitan-district-council/leeds,Leeds City Council,31/05/2017,Children And Families,Learning Places,Capital,Other Costs,7,18/05/2017,1705-00193,0.00,120.00,C,Ace Leaflet Distribution & Print Ltd,No
Http://opendatacommunities.org/id/metropolitan-district-council/leeds,Leeds City Council,31/05/2017,City Development,Asset Management Services,Employees,Training & Development,70,09/05/2017,1705-00194,0.00,60.00,R,Aces (North East Branch ),No
Http://opendatacommunities.org/id/metropolitan-district-council/leeds,Leeds City Council,31/05/2017,Children And Families,Partnerships,Third Party Payments,SEN Placements,566,12/05/2017,1705-00195,0.00,17457.00,R,Ackworth School,No
Http://opendatacommunities.org/id/metropolitan-district-council/leeds,Leeds City Council,31/05/2017,Children And Families,Partnerships  ,Supplies and Services,Conference Meetings,253,20/04/2017,1705-00196,0.00,139.00,R,Acm Training,Yes
Http://opendatacommunities.org/id/metropolitan-district-council/leeds,Leeds City Council,31/05/2017,Children And Families,Partnerships  ,Supplies and Services,Conference Meetings,253,20/04/2017,1705-00197,0.00,139.00,R,Acm Training,Yes
Http://opendatacommunities.org/id/metropolitan-district-council/leeds,Leeds City Council,31/05/2017,Adults And Health,Services For Older People - 65 And Over,Third Party Payments,Nursing Care Dementia,574,03/05/2017,1705-00198,0.00,1466.76,R,Acorn Nursing Home,No
Http://opendatacommunities.org/id/metropolitan-district-council/leeds,Leeds City Council,31/05/2017,Adults And Health,Services For Older People - 65 And Over,Third Party Payments,Nursing Care Dementia,574,31/05/2017,1705-00199,0.00,1466.76,R,Acorn Nursing Home,No
Http://opendatacommunities.org/id/metropolitan-district-council/leeds,Leeds City Council,31/05/2017,Adult Social Care,Other Adult Services,Third Party Payments,Residential - Drugs & Alcohol,583,05/05/2017,1705-00200,0.00,2435.71,R,Acorn Treatment & Housing,No
Http://opendatacommunities.org/id/metropolitan-district-council/leeds,Leeds City Council,31/05/2017,Adult Social Care,Other Adult Services,Third Party Payments,Residential - Drugs & Alcohol,583,05/05/2017,1705-00201,0.00,2435.71,R,Acorn Treatment & Housing,No
Http://opendatacommunities.org/id/metropolitan-district-council/leeds,Leeds City Council,31/05/2017,Adults And Health,Services For Older People - 65 And Over,Third Party Payments,Nursing Home,570,03/05/2017,1705-00202,0.00,27004.57,R,Acre Green,No
Http://opendatacommunities.org/id/metropolitan-district-council/leeds,Leeds City Council,31/05/2017,Adults And Health,Services For Older People Under 65 P/Dis,Third Party Payments,Nursing Home,570,03/05/2017,1705-00203,0.00,5682.64,R,Acre Green,No
Http://opendatacommunities.org/id/metropolitan-district-council/leeds,Leeds City Council,31/05/2017,Adults And Health,Services For Older People - 65 And Over,Third Party Payments,Residential Care Dementia,571,03/05/2017,1705-00204,0.00,4553.90,R,Acre Green,No
Http://opendatacommunities.org/id/metropolitan-district-council/leeds,Leeds City Council,31/05/2017,Adults And Health,Services For Older People - 65 And Over,Third Party Payments,Nursing Care Dementia,574,03/05/2017,1705-00205,0.00,1099.96,R,Acre Green,No
Http://opendatacommunities.org/id/metropolitan-district-council/leeds,Leeds City Council,31/05/2017,Adults And Health,Services For Adults Under 65 Mental/Dis,Third Party Payments,Residential,580,03/05/2017,1705-00206,0.00,-1407.09,R,Acre Green,No
Http://opendatacommunities.org/id/metropolitan-district-council/leeds,Leeds City Council,31/05/2017,Adults And Health,Services For Older People - 65 And Over,Third Party Payments,Residential,580,03/05/2017,1705-00207,0.00,3386.55,R,Acre Green,No
Http://opendatacommunities.org/id/metropolitan-district-council/leeds,Leeds City Council,31/05/2017,Adults And Health,Services For Older People Under 65 P/Dis,Third Party Payments,Residential,580,03/05/2017,1705-00208,0.00,3145.20,R,Acre Green,No
Http://opendatacommunities.org/id/metropolitan-district-council/leeds,Leeds City Council,31/05/2017,Adults And Health,Services For Older People - 65 And Over,Third Party Payments,Nursing Home,570,31/05/2017,1705-00209,0.00,32498.88,R,Acre Green,No
Http://opendatacommunities.org/id/metropolitan-district-council/leeds,Leeds City Council,31/05/2017,Adults And Health,Services For Older People Under 65 P/Dis,Third Party Payments,Nursing Home,570,31/05/2017,1705-00210,0.00,5682.64,R,Acre Green,No
Http://opendatacommunities.org/id/metropolitan-district-council/leeds,Leeds City Council,31/05/2017,Adults And Health,Services For Older People - 65 And Over,Third Party Payments,Nursing Care Dementia,574,31/05/2017,1705-00211,0.00,1099.96,R,Acre Green,No
Http://opendatacommunities.org/id/metropolitan-district-council/leeds,Leeds City Council,31/05/2017,Adults And Health,Services For Older People - 65 And Over,Third Party Payments,Residential,580,31/05/2017,1705-00212,0.00,5874.60,R,Acre Green,No
Http://opendatacommunities.org/id/metropolitan-district-council/leeds,Leeds City Council,31/05/2017,Adults And Health,Services For Older People Under 65 P/Dis,Third Party Payments,Residential,580,31/05/2017,1705-00213,0.00,3145.20,R,Acre Green,No
Http://opendatacommunities.org/id/metropolitan-district-council/leeds,Leeds City Council,31/05/2017,Children And Families,Safeguarding Targeted & Specialist,Third Party Payments,Services Rendered By Voluntary Sector,505,10/05/2017,1705-00214,0.00,3276.00,R,Acre Wood Day Nursery,No
Http://opendatacommunities.org/id/metropolitan-district-council/leeds,Leeds City Council,31/05/2017,City Development,Support Services  ,Employees,Best Value Training,70,31/03/2017,1705-00215,0.00,449.00,R,Act Now Training,Yes
Http://opendatacommunities.org/id/metropolitan-district-council/leeds,Leeds City Council,31/05/2017,Environment & Housing,Leeds Building Services,Supplies and Services,Operational Materials,205,30/05/2017,1705-00216,0.00,80.00,R,Actavo Uk Limited,No
Http://opendatacommunities.org/id/metropolitan-district-council/leeds,Leeds City Council as Accountable Body,31/05/2017,Social Services Pooled Budgets,Jcs For People With Learning Disabilitie,Supplies and Services,Other Equipment,203,05/05/2017,1705-00217,0.00,8005.00,R,Action Assist Ltd,No
Http://opendatacommunities.org/id/metropolitan-district-council/leeds,Leeds City Council,31/05/2017,Adults And Health,Services For Adults Under 65 Mental/Dis,Third Party Payments,Fees - Level 4,520,09/05/2017,1705-00218,0.00,350.00,R,Action First Recruitment Ltd,No
Http://opendatacommunities.org/id/metropolitan-district-council/leeds,Leeds City Council,31/05/2017,Adults And Health,Services For Adults Under 65 Mental/Dis,Third Party Payments,Fees - Level 4,520,09/05/2017,1705-00219,0.00,1400.00,R,Action First Recruitment Ltd,No
Http://opendatacommunities.org/id/metropolitan-district-council/leeds,Leeds City Council,31/05/2017,Adults And Health,Services For Adults Under 65 Mental/Dis,Third Party Payments,Fees - Level 4,520,09/05/2017,1705-00220,0.00,700.00,R,Action First Recruitment Ltd,No
Http://opendatacommunities.org/id/metropolitan-district-council/leeds,Leeds City Council,31/05/2017,Adults And Health,Services For Adults Under 65 Mental/Dis,Third Party Payments,Fees - Level 4,520,09/05/2017,1705-00221,0.00,700.00,R,Action First Recruitment Ltd,No
Http://opendatacommunities.org/id/metropolitan-district-council/leeds,Leeds City Council,31/05/2017,Children And Families,Safeguarding Targeted & Specialist,Third Party Payments,Independent Fostering Agencies,509,15/05/2017,1705-00222,0.00,4313.07,R,Action For Children,No
Http://opendatacommunities.org/id/metropolitan-district-council/leeds,Leeds City Council,31/05/2017,Children And Families,Safeguarding Targeted & Specialist,Third Party Payments,Independent Fostering Agencies,509,15/05/2017,1705-00223,0.00,1522.26,R,Action For Children,No
Http://opendatacommunities.org/id/metropolitan-district-council/leeds,Leeds City Council,31/05/2017,Environment & Housing,Environmental Action (East North East),Supplies and Services,Bought In Professional Services,277,08/05/2017,1705-00224,0.00,110.00,R,Acumen Waste Services Ltd,No
Http://opendatacommunities.org/id/metropolitan-district-council/leeds,Leeds City Council,31/05/2017,Environment & Housing,Environmental Action (South),Premises,Removal Of Workplace Waste,126,09/05/2017,1705-00225,0.00,220.00,R,Acumen Waste Services Ltd,No
Http://opendatacommunities.org/id/metropolitan-district-council/leeds,Leeds City Council,31/05/2017,Environment & Housing,Environmental Action (East North East),Supplies and Services,Bought In Professional Services,277,09/05/2017,1705-00226,0.00,110.00,R,Acumen Waste Services Ltd,No
Http://opendatacommunities.org/id/metropolitan-district-council/leeds,Leeds City Council,31/05/2017,Environment & Housing,Waste Management,Supplies and Services,Recycling & Reuse Charges,234,11/05/2017,1705-00227,0.00,980.21,R,Acumen Waste Services Ltd,No
Http://opendatacommunities.org/id/metropolitan-district-council/leeds,Leeds City Council,31/05/2017,Environment & Housing,Waste Management,Supplies and Services,Recycling & Reuse Charges,234,12/05/2017,1705-00228,0.00,9601.77,R,Acumen Waste Services Ltd,No
Http://opendatacommunities.org/id/metropolitan-district-council/leeds,Leeds City Council,31/05/2017,Environment & Housing,Environmental Action (South),Premises,Removal Of Workplace Waste,126,12/05/2017,1705-00229,0.00,330.00,R,Acumen Waste Services Ltd,No
Http://opendatacommunities.org/id/metropolitan-district-council/leeds,Leeds City Council,31/05/2017,Environment & Housing,Environmental Action (South),Premises,Removal Of Workplace Waste,126,12/05/2017,1705-00230,0.00,220.00,R,Acumen Waste Services Ltd,No
Http://opendatacommunities.org/id/metropolitan-district-council/leeds,Leeds City Council,31/05/2017,Environment & Housing,Environmental Action (South),Premises,Removal Of Workplace Waste,126,12/05/2017,1705-00231,0.00,330.00,R,Acumen Waste Services Ltd,No
Http://opendatacommunities.org/id/metropolitan-district-council/leeds,Leeds City Council,31/05/2017,Environment & Housing,Waste Management,Supplies and Services,Recycling & Reuse Charges,234,19/05/2017,1705-00232,0.00,7809.52,R,Acumen Waste Services Ltd,No
Http://opendatacommunities.org/id/metropolitan-district-council/leeds,Leeds City Council,31/05/2017,Environment & Housing,Waste Management,Supplies and Services,Recycling & Reuse Charges,234,19/05/2017,1705-00233,0.00,1896.77,R,Acumen Waste Services Ltd,No
Http://opendatacommunities.org/id/metropolitan-district-council/leeds,Leeds City Council,31/05/2017,Environment & Housing,Waste Management,Supplies and Services,Recycling & Reuse Charges,234,25/05/2017,1705-00234,0.00,18023.00,R,Acumen Waste Services Ltd,No
Http://opendatacommunities.org/id/metropolitan-district-council/leeds,Leeds City Council,31/05/2017,Environment & Housing,Environmental Action (South),Premises,Removal Of Workplace Waste,126,26/05/2017,1705-00235,0.00,440.00,R,Acumen Waste Services Ltd,No
Http://opendatacommunities.org/id/metropolitan-district-council/leeds,Leeds City Council,31/05/2017,Environment & Housing,Environmental Action (South),Premises,Removal Of Workplace Waste,126,26/05/2017,1705-00236,0.00,220.00,R,Acumen Waste Services Ltd,No
Http://opendatacommunities.org/id/metropolitan-district-council/leeds,Leeds City Council,31/05/2017,Environment & Housing,Environmental Action (South),Premises,Removal Of Workplace Waste,126,26/05/2017,1705-00237,0.00,110.00,R,Acumen Waste Services Ltd,No
Http://opendatacommunities.org/id/metropolitan-district-council/leeds,Leeds City Council,31/05/2017,Environment & Housing,Environmental Action (South),Premises,Removal Of Workplace Waste,126,26/05/2017,1705-00238,0.00,220.00,R,Acumen Waste Services Ltd,No
Http://opendatacommunities.org/id/metropolitan-district-council/leeds,Leeds City Council,31/05/2017,Environment & Housing,Environmental Action (East North East),Supplies and Services,Bought In Professional Services,277,26/05/2017,1705-00239,0.00,110.00,R,Acumen Waste Services Ltd,No
Http://opendatacommunities.org/id/metropolitan-district-council/leeds,Leeds City Council,31/05/2017,Environment & Housing,Environmental Action (East North East),Supplies and Services,Bought In Professional Services,277,26/05/2017,1705-00240,0.00,330.00,R,Acumen Waste Services Ltd,No
Http://opendatacommunities.org/id/metropolitan-district-council/leeds,Leeds City Council,31/05/2017,Environment & Housing,Parks and Countryside,Supplies and Services,Resaleable Materials,204,12/05/2017,1705-00241,0.00,274.50,R,Acushnet Europe Limited,No
Http://opendatacommunities.org/id/metropolitan-district-council/leeds,Leeds City Council,31/05/2017,Environment & Housing,Parks and Countryside,Supplies and Services,Resaleable Materials,204,18/05/2017,1705-00242,0.00,185.00,R,Acushnet Europe Limited,No
Http://opendatacommunities.org/id/metropolitan-district-council/leeds,Leeds City Council,31/05/2017,Environment & Housing,Parks and Countryside,Supplies and Services,Resaleable Materials,204,22/05/2017,1705-00243,0.00,183.00,R,Acushnet Europe Limited,No
Http://opendatacommunities.org/id/metropolitan-district-council/leeds,Leeds City Council,31/05/2017,Environment & Housing,Parks and Countryside,Supplies and Services,Resaleable Materials,204,22/05/2017,1705-00244,0.00,-6.01,R,Acushnet Europe Limited,No
Http://opendatacommunities.org/id/metropolitan-district-council/leeds,Leeds City Council,31/05/2017,Environment & Housing,Parks and Countryside,Supplies and Services,Resaleable Materials,204,26/05/2017,1705-00245,0.00,135.01,R,Acushnet Europe Limited,No
Http://opendatacommunities.org/id/metropolitan-district-council/leeds,Leeds City Council,31/05/2017,Civic Enterprise Leeds,Shared Services,Supplies and Services,Other Hired And Contracted Services,265,12/05/2017,1705-00246,0.00,52.17,R,Ad3 Envelope Printers Limited,No
Http://opendatacommunities.org/id/metropolitan-district-council/leeds,Leeds City Council,31/05/2017,Civic Enterprise Leeds,Shared Services,Supplies and Services,Operational Materials,205,18/05/2017,1705-00247,0.00,645.00,R,Ad3 Envelope Printers Limited,No
Http://opendatacommunities.org/id/metropolitan-district-council/leeds,Leeds City Council,31/05/2017,Civic Enterprise Leeds,Shared Services,Supplies and Services,Other Hired And Contracted Services,265,19/05/2017,1705-00248,0.00,96.44,R,Ad3 Envelope Printers Limited,No
Http://opendatacommunities.org/id/metropolitan-district-council/leeds,Leeds City Council,31/05/2017,City Development,Libraries  Arts & Heritage,Supplies and Services,Bought In Professional Services,277,12/05/2017,1705-00249,0.00,57.91,R,Adam Clarke,No
Http://opendatacommunities.org/id/metropolitan-district-council/leeds,Leeds City Council,31/05/2017,City Development,Libraries  Arts & Heritage,Supplies and Services,Bought In Professional Services,277,18/05/2017,1705-00250,0.00,1000.00,R,Adam Clarke,No
Http://opendatacommunities.org/id/metropolitan-district-council/leeds,Leeds City Council,31/05/2017,Adults And Health,Services For Older People - 65 And Over,Third Party Payments,Nursing Home,570,03/05/2017,1705-00251,0.00,2120.00,R,Adbolton Hall,No
Http://opendatacommunities.org/id/metropolitan-district-council/leeds,Leeds City Council,31/05/2017,Adults And Health,Services For Older People - 65 And Over,Third Party Payments,Nursing Home,570,31/05/2017,1705-00252,0.00,2120.00,R,Adbolton Hall,No
Http://opendatacommunities.org/id/metropolitan-district-council/leeds,Leeds City Council,31/05/2017,Resources And Housing,HRA Housing Leeds,Capital,Internal Fees,6,30/05/2017,1705-00253,0.00,1915.50,C,Addleshaw Goddard Llp,No
Http://opendatacommunities.org/id/metropolitan-district-council/leeds,Leeds City Council,31/05/2017,Resources And Housing,Sustainable Energy & Climate Change,Capital,Other Costs,7,30/05/2017,1705-00254,0.00,1915.50,C,Addleshaw Goddard Llp,No
Http://opendatacommunities.org/id/metropolitan-district-council/leeds,Leeds City Council,31/05/2017,Adults And Health,Public Health,Third Party Payments,Public Health Commissioned Services,526,18/05/2017,1705-00255,0.00,4617.93,R,Addlestone & Partners,No
Http://opendatacommunities.org/id/metropolitan-district-council/leeds,Leeds City Council,31/05/2017,Resources And Housing,Technology  ,Employees,Agency Staff,8,31/03/2017,1705-00256,0.00,5336.40,R,Adecco Alfred Marks,Yes
Http://opendatacommunities.org/id/metropolitan-district-council/leeds,Leeds City Council,31/05/2017,Resources And Housing,Technology  ,Employees,Agency Staff,8,26/04/2017,1705-00257,0.00,3428.50,R,Adecco Alfred Marks,Yes
Http://opendatacommunities.org/id/metropolitan-district-council/leeds,Leeds City Council,31/05/2017,Resources And Housing,Technology  ,Employees,Agency Staff,8,26/04/2017,1705-00258,0.00,2300.00,R,Adecco Alfred Marks,Yes
Http://opendatacommunities.org/id/metropolitan-district-council/leeds,Leeds City Council,31/05/2017,Resources And Housing,Technology  ,Employees,Agency Staff,8,26/04/2017,1705-00259,0.00,3362.71,R,Adecco Alfred Marks,Yes
Http://opendatacommunities.org/id/metropolitan-district-council/leeds,Leeds City Council,31/05/2017,Resources And Housing,Technology  ,Employees,Agency Staff,8,26/04/2017,1705-00260,0.00,627.15,R,Adecco Alfred Marks,Yes
Http://opendatacommunities.org/id/metropolitan-district-council/leeds,Leeds City Council,31/05/2017,Children And Families,Safeguarding Targeted & Specialist,#N/A,Food & Drink,231,23/05/2017,1705-00261,0.00,156.00,R,Adel & Ireland Wood Community,No
Http://opendatacommunities.org/id/metropolitan-district-council/leeds,Leeds City Council,31/05/2017,Children And Families,Safeguarding Targeted & Specialist,Third Party Payments,Services Rendered By Voluntary Sector,505,10/05/2017,1705-00262,0.00,1404.00,R,Adel Pre School,No
Http://opendatacommunities.org/id/metropolitan-district-council/leeds,Leeds City Council,31/05/2017,Children And Families,Safeguarding Targeted & Specialist,#N/A,Food & Drink,231,26/05/2017,1705-00263,0.00,270.00,R,Adel Quaker Meeting,No
Http://opendatacommunities.org/id/metropolitan-district-council/leeds,Leeds City Council,31/05/2017,Adults And Health,Services For Older People - 65 And Over,Third Party Payments,Nursing Home,570,03/05/2017,1705-00264,0.00,1114.72,R,Aden House,No
Http://opendatacommunities.org/id/metropolitan-district-council/leeds,Leeds City Council,31/05/2017,Adults And Health,Services For Older People - 65 And Over,Third Party Payments,Nursing Home,570,31/05/2017,1705-00265,0.00,1114.72,R,Aden House,No
Http://opendatacommunities.org/id/metropolitan-district-council/leeds,Leeds City Council,31/05/2017,Environment & Housing,Leeds Building Services,Supplies and Services,Operational Materials,205,02/05/2017,1705-00266,0.00,351.72,R,Adi Global,No
Http://opendatacommunities.org/id/metropolitan-district-council/leeds,Leeds City Council,31/05/2017,Environment & Housing,Leeds Building Services,Supplies and Services,Operational Materials,205,03/05/2017,1705-00267,0.00,5167.80,R,Adi Global,No
Http://opendatacommunities.org/id/metropolitan-district-council/leeds,Leeds City Council,31/05/2017,Environment & Housing,Community Safety,Supplies and Services,Other Hired And Contracted Services,265,03/05/2017,1705-00268,0.00,10422.92,R,Adi Global,No
Http://opendatacommunities.org/id/metropolitan-district-council/leeds,Leeds City Council,31/05/2017,Environment & Housing,Leeds Building Services,Supplies and Services,Operational Materials,205,05/05/2017,1705-00269,0.00,38.07,R,Adi Global,No
Http://opendatacommunities.org/id/metropolitan-district-council/leeds,Leeds City Council,31/05/2017,Environment & Housing,Leeds Building Services,Supplies and Services,Operational Materials,205,05/05/2017,1705-00270,0.00,111.93,R,Adi Global,No
Http://opendatacommunities.org/id/metropolitan-district-council/leeds,Leeds City Council,31/05/2017,Environment & Housing,Leeds Building Services,Supplies and Services,Operational Materials,205,05/05/2017,1705-00271,0.00,21.89,R,Adi Global,No
Http://opendatacommunities.org/id/metropolitan-district-council/leeds,Leeds City Council,31/05/2017,Environment & Housing,Leeds Building Services,Supplies and Services,Operational Materials,205,05/05/2017,1705-00272,0.00,44.88,R,Adi Global,No
Http://opendatacommunities.org/id/metropolitan-district-council/leeds,Leeds City Council,31/05/2017,Environment & Housing,Leeds Building Services,Supplies and Services,Operational Materials,205,05/05/2017,1705-00273,0.00,10.61,R,Adi Global,No
Http://opendatacommunities.org/id/metropolitan-district-council/leeds,Leeds City Council,31/05/2017,Environment & Housing,Leeds Building Services,Supplies and Services,Operational Materials,205,15/05/2017,1705-00274,0.00,11.47,R,Adi Global,No
Http://opendatacommunities.org/id/metropolitan-district-council/leeds,Leeds City Council,31/05/2017,Environment & Housing,Leeds Building Services,Supplies and Services,Operational Materials,205,15/05/2017,1705-00275,0.00,61.76,R,Adi Global,No
Http://opendatacommunities.org/id/metropolitan-district-council/leeds,Leeds City Council,31/05/2017,Environment & Housing,Leeds Building Services,Supplies and Services,Operational Materials,205,15/05/2017,1705-00276,0.00,80.90,R,Adi Global,No
Http://opendatacommunities.org/id/metropolitan-district-council/leeds,Leeds City Council,31/05/2017,Environment & Housing,Leeds Building Services,Supplies and Services,Operational Materials,205,15/05/2017,1705-00277,0.00,61.76,R,Adi Global,No
Http://opendatacommunities.org/id/metropolitan-district-council/leeds,Leeds City Council,31/05/2017,Environment & Housing,Leeds Building Services,Supplies and Services,Operational Materials,205,15/05/2017,1705-00278,0.00,781.56,R,Adi Global,No
Http://opendatacommunities.org/id/metropolitan-district-council/leeds,Leeds City Council,31/05/2017,Environment & Housing,Leeds Building Services,Supplies and Services,Operational Materials,205,26/05/2017,1705-00279,0.00,23.84,R,Adi Global,No
Http://opendatacommunities.org/id/metropolitan-district-council/leeds,Leeds City Council,31/05/2017,Environment & Housing,Leeds Building Services,Supplies and Services,Operational Materials,205,26/05/2017,1705-00280,0.00,138.17,R,Adi Global,No
Http://opendatacommunities.org/id/metropolitan-district-council/leeds,Leeds City Council,31/05/2017,Environment & Housing,Leeds Building Services,Supplies and Services,Operational Materials,205,26/05/2017,1705-00281,0.00,72.09,R,Adi Global,No
Http://opendatacommunities.org/id/metropolitan-district-council/leeds,Leeds City Council,31/05/2017,Environment & Housing,Leeds Building Services,Supplies and Services,Operational Materials,205,31/05/2017,1705-00282,0.00,29.07,R,Adi Global,No
Http://opendatacommunities.org/id/metropolitan-district-council/leeds,Leeds City Council,31/05/2017,Environment & Housing,Leeds Building Services,Supplies and Services,Operational Materials,205,31/05/2017,1705-00283,0.00,29.07,R,Adi Global,No
Http://opendatacommunities.org/id/metropolitan-district-council/leeds,Leeds City Council,31/05/2017,Environment & Housing,Leeds Building Services,Supplies and Services,Operational Materials,205,31/05/2017,1705-00284,0.00,29.07,R,Adi Global,No
Http://opendatacommunities.org/id/metropolitan-district-council/leeds,Leeds City Council,31/05/2017,Environment & Housing,Leeds Building Services,Supplies and Services,Operational Materials,205,31/05/2017,1705-00285,0.00,29.07,R,Adi Global,No
Http://opendatacommunities.org/id/metropolitan-district-council/leeds,Leeds City Council,31/05/2017,Children And Families,Safeguarding Targeted & Specialist,Third Party Payments,Independent Fostering Agencies,509,04/05/2017,1705-00286,0.00,2945.00,R,Adolescent And Childrens Trust,No
Http://opendatacommunities.org/id/metropolitan-district-council/leeds,Leeds City Council,31/05/2017,Children And Families,Safeguarding Targeted & Specialist,Third Party Payments,Independent Fostering Agencies,509,04/05/2017,1705-00287,0.00,2945.00,R,Adolescent And Childrens Trust,No
Http://opendatacommunities.org/id/metropolitan-district-council/leeds,Leeds City Council,31/05/2017,Children And Families,Safeguarding Targeted & Specialist,Third Party Payments,Independent Fostering Agencies,509,08/05/2017,1705-00288,0.00,2945.00,R,Adolescent And Childrens Trust,No
Http://opendatacommunities.org/id/metropolitan-district-council/leeds,Leeds City Council,31/05/2017,Children And Families,Safeguarding Targeted & Specialist,Third Party Payments,Independent Fostering Agencies,509,08/05/2017,1705-00289,0.00,2945.00,R,Adolescent And Childrens Trust,No
Http://opendatacommunities.org/id/metropolitan-district-council/leeds,Leeds City Council,31/05/2017,Children And Families,Safeguarding Targeted & Specialist,Third Party Payments,Independent Fostering Agencies,509,08/05/2017,1705-00290,0.00,2945.00,R,Adolescent And Childrens Trust,No
Http://opendatacommunities.org/id/metropolitan-district-council/leeds,Leeds City Council,31/05/2017,Children And Families,Safeguarding Targeted & Specialist,Third Party Payments,Independent Fostering Agencies,509,08/05/2017,1705-00291,0.00,3100.00,R,Adolescent And Childrens Trust,No
Http://opendatacommunities.org/id/metropolitan-district-council/leeds,Leeds City Council,31/05/2017,Children And Families,Safeguarding Targeted & Specialist,Third Party Payments,Independent Fostering Agencies,509,08/05/2017,1705-00292,0.00,3100.00,R,Adolescent And Childrens Trust,No
Http://opendatacommunities.org/id/metropolitan-district-council/leeds,Leeds City Council,31/05/2017,Children And Families,Safeguarding Targeted & Specialist,Third Party Payments,Placement Support,550,04/05/2017,1705-00293,0.00,7056.67,R,Adoption Matters Northwest,No
Http://opendatacommunities.org/id/metropolitan-district-council/leeds,Leeds City Council,31/05/2017,Communities And Environment,Customer Access,Supplies and Services,Other Hired And Contracted Services,265,08/05/2017,1705-00294,0.00,86.50,R,Adrien Kaponczai,No
Http://opendatacommunities.org/id/metropolitan-district-council/leeds,Leeds City Council,31/05/2017,City Development,Planning & Sustainable Development,Income,Planning Fees,939,04/05/2017,1705-00295,0.00,98.00,R,Ads (Yorkshire) Ltd,No
Http://opendatacommunities.org/id/metropolitan-district-council/leeds,Leeds City Council,31/05/2017,Strategic Landlord,Housing Management,Premises,Cleaning Maintenance & Toiletries,127,03/05/2017,1705-00296,0.00,142.20,R,Adt Fire And Security Plc,No
Http://opendatacommunities.org/id/metropolitan-district-council/leeds,Leeds City Council,31/05/2017,Civic Enterprise Leeds,Corporate Property Management,Premises,Maintenance Of Buildings,101,24/05/2017,1705-00297,0.00,153.63,R,Adt Fire And Security Plc,No
Http://opendatacommunities.org/id/metropolitan-district-council/leeds,Leeds City Council,31/05/2017,Civic Enterprise Leeds,Corporate Property Management,Premises,Maintenance Of Buildings,101,24/05/2017,1705-00298,0.00,682.74,R,Adt Fire And Security Plc,No
Http://opendatacommunities.org/id/metropolitan-district-council/leeds,Leeds City Council,31/05/2017,Civic Enterprise Leeds,Corporate Property Management,Premises,Maintenance Of Buildings,101,24/05/2017,1705-00299,0.00,755.22,R,Adt Fire And Security Plc,No
Http://opendatacommunities.org/id/metropolitan-district-council/leeds,Leeds City Council,31/05/2017,Civic Enterprise Leeds,Facilities Management  ,Supplies and Services,Other Hired And Contracted Services,265,21/04/2017,1705-00300,0.00,463.57,R,Adt Leeds Cc,Yes
Http://opendatacommunities.org/id/metropolitan-district-council/leeds,Leeds City Council,31/05/2017,Civic Enterprise Leeds,Facilities Management  ,Supplies and Services,Other Hired And Contracted Services,265,21/04/2017,1705-00301,0.00,235.94,R,Adt Leeds Cc,Yes
Http://opendatacommunities.org/id/metropolitan-district-council/leeds,Leeds City Council as Accountable Body,31/05/2017,Social Services Pooled Budgets,Jcs For People With Learning Disabilitie,Third Party Payments,Sheltered Accommodation,569,24/05/2017,1705-00302,0.00,1332.20,R,Adult Placement Services,No
Http://opendatacommunities.org/id/metropolitan-district-council/leeds,Leeds City Council,31/05/2017,Adults And Health,Services For Adults Under 65 Mental/Dis,Third Party Payments,Nursing Home,570,03/05/2017,1705-00303,0.00,1541.96,R,Adult Supported Living Ltd,No
Http://opendatacommunities.org/id/metropolitan-district-council/leeds,Leeds City Council,31/05/2017,Adults And Health,Services For Adults Under 65 Mental/Dis,Third Party Payments,Nursing Home,570,31/05/2017,1705-00304,0.00,1541.96,R,Adult Supported Living Ltd,No
Http://opendatacommunities.org/id/metropolitan-district-council/leeds,Leeds City Council,31/05/2017,City Development,Libraries  Arts & Heritage,Supplies and Services,External Audit Fees,261,04/05/2017,1705-00305,0.00,90.00,R,Advance Stocks Ltd,No
Http://opendatacommunities.org/id/metropolitan-district-council/leeds,Leeds City Council,31/05/2017,City Development,Libraries  Arts & Heritage,Supplies and Services,External Audit Fees,261,04/05/2017,1705-00306,0.00,85.00,R,Advance Stocks Ltd,No
Http://opendatacommunities.org/id/metropolitan-district-council/leeds,Leeds City Council,31/05/2017,City Development,Libraries  Arts & Heritage,Supplies and Services,External Audit Fees,261,04/05/2017,1705-00307,0.00,85.00,R,Advance Stocks Ltd,No
Http://opendatacommunities.org/id/metropolitan-district-council/leeds,Leeds City Council,31/05/2017,City Development,Libraries  Arts & Heritage,Supplies and Services,External Audit Fees,261,05/05/2017,1705-00308,0.00,90.00,R,Advance Stocks Ltd,No
Http://opendatacommunities.org/id/metropolitan-district-council/leeds,Leeds City Council,31/05/2017,City Development,Recreation,Supplies and Services,External Audit Fees,261,26/05/2017,1705-00309,0.00,235.00,R,Advance Stocks Ltd,No
Http://opendatacommunities.org/id/metropolitan-district-council/leeds,Leeds City Council,31/05/2017,City Development,Recreation,Supplies and Services,External Audit Fees,261,26/05/2017,1705-00310,0.00,85.00,R,Advance Stocks Ltd,No
Http://opendatacommunities.org/id/metropolitan-district-council/leeds,Leeds City Council,31/05/2017,Environment & Housing,Leeds Building Services,Supplies and Services,Operational Materials,205,05/05/2017,1705-00311,0.00,139.00,R,Advanced Labelling Limited,No
Http://opendatacommunities.org/id/metropolitan-district-council/leeds,Leeds City Council,31/05/2017,Adults And Health,Social Services Support Services,Employees,Training Costs,71,19/05/2017,1705-00312,0.00,510.00,R,Advinia Healthcare Ltd,No
Http://opendatacommunities.org/id/metropolitan-district-council/leeds,Leeds City Council as Accountable Body,31/05/2017,Social Services Pooled Budgets,Jcs For People With Learning Disabilitie,Third Party Payments,Residential,580,03/05/2017,1705-00313,0.00,20183.88,R,Advitam Ltd,No
Http://opendatacommunities.org/id/metropolitan-district-council/leeds,Leeds City Council as Accountable Body,31/05/2017,Social Services Pooled Budgets,Jcs For People With Learning Disabilitie,Third Party Payments,Residential,580,31/05/2017,1705-00314,0.00,20183.88,R,Advitam Ltd,No
Http://opendatacommunities.org/id/metropolitan-district-council/leeds,Leeds City Council as Accountable Body,31/05/2017,Social Services Pooled Budgets,Jcs For People With Learning Disabilitie,Third Party Payments,Other Agency Services,561,16/05/2017,1705-00315,0.00,11372.30,R,Advonet,No
Http://opendatacommunities.org/id/metropolitan-district-council/leeds,Leeds City Council as Accountable Body,31/05/2017,Social Services Pooled Budgets,Jcs For People With Learning Disabilitie,Third Party Payments,Other Agency Services,561,16/05/2017,1705-00316,0.00,11372.30,R,Advonet,No
Http://opendatacommunities.org/id/metropolitan-district-council/leeds,Leeds City Council as Accountable Body,31/05/2017,Social Services Pooled Budgets,Jcs For People With Learning Disabilitie,Third Party Payments,Other Agency Services,561,16/05/2017,1705-00317,0.00,6567.66,R,Advonet,No
Http://opendatacommunities.org/id/metropolitan-district-council/leeds,Leeds City Council as Accountable Body,31/05/2017,Social Services Pooled Budgets,Jcs For People With Learning Disabilitie,Third Party Payments,Other Agency Services,561,16/05/2017,1705-00318,0.00,6567.66,R,Advonet,No
Http://opendatacommunities.org/id/metropolitan-district-council/leeds,Leeds City Council,31/05/2017,Adults And Health,Services For Older People - 65 And Over,Third Party Payments,Payments To Voluntary Organisations,561,19/05/2017,1705-00319,0.00,83435.70,R,Advonet,No
Http://opendatacommunities.org/id/metropolitan-district-council/leeds,Leeds City Council,31/05/2017,City Development,Highways,Capital,Construction,3,03/05/2017,1705-00320,0.00,32000.00,C,Aecom Limited,No
Http://opendatacommunities.org/id/metropolitan-district-council/leeds,Leeds City Council,31/05/2017,Insurance,Insurance,Supplies and Services,Insurance Claims,248,11/05/2017,1705-00321,0.00,555.00,R,Aequitas Legal Solicitors Limited,No
Http://opendatacommunities.org/id/metropolitan-district-council/leeds,Leeds City Council,31/05/2017,Adults And Health,Services For Older People - 65 And Over,Third Party Payments,Home Care,568,02/05/2017,1705-00322,0.00,-50.44,R,Affinity Trust,No
Http://opendatacommunities.org/id/metropolitan-district-council/leeds,Leeds City Council,31/05/2017,Adults And Health,Services For Older People - 65 And Over,Third Party Payments,Home Care,568,02/05/2017,1705-00323,0.00,319.60,R,Affinity Trust,No
Http://opendatacommunities.org/id/metropolitan-district-council/leeds,Leeds City Council,31/05/2017,Adults And Health,Services For Older People - 65 And Over,Third Party Payments,Home Care,568,02/05/2017,1705-00324,0.00,319.60,R,Affinity Trust,No
Http://opendatacommunities.org/id/metropolitan-district-council/leeds,Leeds City Council as Accountable Body,31/05/2017,Social Services Pooled Budgets,Jcs For People With Learning Disabilitie,Third Party Payments,Home Care,568,05/05/2017,1705-00325,0.00,360.00,R,Affinity Trust,No
Http://opendatacommunities.org/id/metropolitan-district-council/leeds,Leeds City Council,31/05/2017,Adults And Health,Services For Older People Under 65 P/Dis,Third Party Payments,Home Care,568,05/05/2017,1705-00326,0.00,403.68,R,Affinity Trust,No
Http://opendatacommunities.org/id/metropolitan-district-council/leeds,Leeds City Council,31/05/2017,Adults And Health,Services For Older People Under 65 P/Dis,Third Party Payments,Home Care,568,10/05/2017,1705-00327,0.00,319.60,R,Affinity Trust,No
Http://opendatacommunities.org/id/metropolitan-district-council/leeds,Leeds City Council,31/05/2017,Adults And Health,Services For Older People - 65 And Over,Third Party Payments,Home Care,568,10/05/2017,1705-00328,0.00,1076.48,R,Affinity Trust,No
Http://opendatacommunities.org/id/metropolitan-district-council/leeds,Leeds City Council,31/05/2017,Adults And Health,Services For Older People - 65 And Over,Third Party Payments,Home Care,568,11/05/2017,1705-00329,0.00,319.60,R,Affinity Trust,No
Http://opendatacommunities.org/id/metropolitan-district-council/leeds,Leeds City Council as Accountable Body,31/05/2017,Social Services Pooled Budgets,Jcs For People With Learning Disabilitie,Third Party Payments,Day Centre,564,18/05/2017,1705-00330,0.00,17538.00,R,Affinity Trust,No
Http://opendatacommunities.org/id/metropolitan-district-council/leeds,Leeds City Council as Accountable Body,31/05/2017,Social Services Pooled Budgets,Jcs For People With Learning Disabilitie,Third Party Payments,Day Centre,564,18/05/2017,1705-00331,0.00,14162.33,R,Affinity Trust,No
Http://opendatacommunities.org/id/metropolitan-district-council/leeds,Leeds City Council as Accountable Body,31/05/2017,Social Services Pooled Budgets,Jcs For People With Learning Disabilitie,Third Party Payments,Day Centre,564,18/05/2017,1705-00332,0.00,14162.33,R,Affinity Trust,No
Http://opendatacommunities.org/id/metropolitan-district-council/leeds,Leeds City Council as Accountable Body,31/05/2017,Social Services Pooled Budgets,Jcs For People With Learning Disabilitie,Third Party Payments,Day Centre,564,18/05/2017,1705-00333,0.00,17538.00,R,Affinity Trust,No
Http://opendatacommunities.org/id/metropolitan-district-council/leeds,Leeds City Council as Accountable Body,31/05/2017,Social Services Pooled Budgets,Jcs For People With Learning Disabilitie,Third Party Payments,Day Centre,564,18/05/2017,1705-00334,0.00,17538.00,R,Affinity Trust,No
Http://opendatacommunities.org/id/metropolitan-district-council/leeds,Leeds City Council as Accountable Body,31/05/2017,Social Services Pooled Budgets,Jcs For People With Learning Disabilitie,Third Party Payments,Day Centre,564,18/05/2017,1705-00335,0.00,14162.33,R,Affinity Trust,No
Http://opendatacommunities.org/id/metropolitan-district-council/leeds,Leeds City Council,31/05/2017,Adults And Health,Services For Older People Under 65 P/Dis,Third Party Payments,Home Care,568,19/05/2017,1705-00336,0.00,134.56,R,Affinity Trust,No
Http://opendatacommunities.org/id/metropolitan-district-council/leeds,Leeds City Council,31/05/2017,Adults And Health,Services For Older People Under 65 P/Dis,Third Party Payments,Home Care,568,19/05/2017,1705-00337,0.00,386.86,R,Affinity Trust,No
Http://opendatacommunities.org/id/metropolitan-district-council/leeds,Leeds City Council,31/05/2017,Adults And Health,Services For Older People Under 65 P/Dis,Third Party Payments,Home Care,568,24/05/2017,1705-00338,0.00,526.68,R,Affinity Trust,No
Http://opendatacommunities.org/id/metropolitan-district-council/leeds,Leeds City Council,31/05/2017,Adults And Health,Assessment And Care Management,Third Party Payments,Home Care,568,25/05/2017,1705-00339,0.00,335.58,R,Affinity Trust,No
Http://opendatacommunities.org/id/metropolitan-district-council/leeds,Leeds City Council as Accountable Body,31/05/2017,Social Services Pooled Budgets,Jcs For People With Learning Disabilitie,Third Party Payments,Sheltered Accommodation,569,03/05/2017,1705-00340,0.00,116077.23,R,Affinity Trust North Divisional Office,No
Http://opendatacommunities.org/id/metropolitan-district-council/leeds,Leeds City Council as Accountable Body,31/05/2017,Social Services Pooled Budgets,Jcs For People With Learning Disabilitie,Third Party Payments,Sheltered Accommodation,569,31/05/2017,1705-00341,0.00,120933.84,R,Affinity Trust North Divisional Office,No
Http://opendatacommunities.org/id/metropolitan-district-council/leeds,Leeds City Council,31/05/2017,Environment & Housing,Parks And Countryside  ,Transport,Hire Of Movable Plant & Machinery,315,27/04/2017,1705-00342,0.00,3800.00,R,Afi Uplift Ltd,Yes
Http://opendatacommunities.org/id/metropolitan-district-council/leeds,Leeds City Council,31/05/2017,Children And Families,Safeguarding Targeted & Specialist,Third Party Payments,Placement Support,550,08/05/2017,1705-00343,0.00,5492.46,R,After Adoption,No
Http://opendatacommunities.org/id/metropolitan-district-council/leeds,Leeds City Council,31/05/2017,Resources And Housing,Strategic Housing Partnerships,Capital,Construction,3,19/05/2017,1705-00344,0.00,8000.00,C,Afzal & Co,No
Http://opendatacommunities.org/id/metropolitan-district-council/leeds,Leeds City Council,31/05/2017,City Development,Recreation,Supplies and Services,Other Hired And Contracted Services,265,04/05/2017,1705-00345,0.00,2707.34,R,Age Uk Leeds,No
Http://opendatacommunities.org/id/metropolitan-district-council/leeds,Leeds City Council,31/05/2017,City Development,Recreation,Supplies and Services,Other Hired And Contracted Services,265,04/05/2017,1705-00346,0.00,3269.00,R,Age Uk Leeds,No
Http://opendatacommunities.org/id/metropolitan-district-council/leeds,Leeds City Council,31/05/2017,City Development,Libraries  Arts & Heritage,Supplies and Services,Bought In Professional Services,277,11/05/2017,1705-00347,0.00,1250.00,R,Agere Learning,No
Http://opendatacommunities.org/id/metropolitan-district-council/leeds,Leeds City Council,31/05/2017,Childrens Services,Learning Skills & Universal,Supplies and Services,Teaching Materials,202,05/05/2017,1705-00348,0.00,23.46,R,Aid Training & Operations Ltd,No
Http://opendatacommunities.org/id/metropolitan-district-council/leeds,Leeds City Council,31/05/2017,Childrens Services,Learning Skills & Universal,Supplies and Services,Teaching Materials,202,05/05/2017,1705-00349,0.00,23.46,R,Aid Training & Operations Ltd,No
Http://opendatacommunities.org/id/metropolitan-district-council/leeds,Leeds City Council,31/05/2017,Childrens Services,Learning Skills & Universal,Supplies and Services,Teaching Materials,202,05/05/2017,1705-00350,0.00,24.96,R,Aid Training & Operations Ltd,No
Http://opendatacommunities.org/id/metropolitan-district-council/leeds,Leeds City Council,31/05/2017,Childrens Services,Learning Skills & Universal,Supplies and Services,Teaching Materials,202,05/05/2017,1705-00351,0.00,24.96,R,Aid Training & Operations Ltd,No
Http://opendatacommunities.org/id/metropolitan-district-council/leeds,Leeds City Council,31/05/2017,Children And Families,Learning Skills & Universal,Supplies and Services,Teaching Materials,202,18/05/2017,1705-00352,0.00,46.26,R,Aid Training & Operations Ltd,No
Http://opendatacommunities.org/id/metropolitan-district-council/leeds,Leeds City Council as Accountable Body,31/05/2017,Social Services Pooled Budgets,Leeds Community Equip Store Pooled Budgt,Supplies and Services,Other Equipment,203,05/05/2017,1705-00353,0.00,5121.00,R,Aidapt Bathrooms Ltd,No
Http://opendatacommunities.org/id/metropolitan-district-council/leeds,Leeds City Council as Accountable Body,31/05/2017,Social Services Pooled Budgets,Leeds Community Equip Store Pooled Budgt,Supplies and Services,Other Equipment,203,10/05/2017,1705-00354,0.00,62.00,R,Aidapt Bathrooms Ltd,No
Http://opendatacommunities.org/id/metropolitan-district-council/leeds,Leeds City Council as Accountable Body,31/05/2017,Social Services Pooled Budgets,Leeds Community Equip Store Pooled Budgt,Supplies and Services,Other Equipment,203,12/05/2017,1705-00355,0.00,549.70,R,Aidapt Bathrooms Ltd,No
Http://opendatacommunities.org/id/metropolitan-district-council/leeds,Leeds City Council as Accountable Body,31/05/2017,Social Services Pooled Budgets,Leeds Community Equip Store Pooled Budgt,Supplies and Services,Other Equipment,203,12/05/2017,1705-00356,0.00,549.70,R,Aidapt Bathrooms Ltd,No
Http://opendatacommunities.org/id/metropolitan-district-council/leeds,Leeds City Council as Accountable Body,31/05/2017,Social Services Pooled Budgets,Leeds Community Equip Store Pooled Budgt,Supplies and Services,Other Equipment,203,18/05/2017,1705-00357,0.00,1405.00,R,Aidapt Bathrooms Ltd,No
Http://opendatacommunities.org/id/metropolitan-district-council/leeds,Leeds City Council as Accountable Body,31/05/2017,Social Services Pooled Budgets,Leeds Community Equip Store Pooled Budgt,Supplies and Services,Other Equipment,203,18/05/2017,1705-00358,0.00,1075.00,R,Aidapt Bathrooms Ltd,No
Http://opendatacommunities.org/id/metropolitan-district-council/leeds,Leeds City Council as Accountable Body,31/05/2017,Social Services Pooled Budgets,Leeds Community Equip Store Pooled Budgt,Supplies and Services,Other Equipment,203,18/05/2017,1705-00359,0.00,54.97,R,Aidapt Bathrooms Ltd,No
Http://opendatacommunities.org/id/metropolitan-district-council/leeds,Leeds City Council as Accountable Body,31/05/2017,Social Services Pooled Budgets,Leeds Community Equip Store Pooled Budgt,Supplies and Services,Other Equipment,203,26/05/2017,1705-00360,0.00,955.00,R,Aidapt Bathrooms Ltd,No
Http://opendatacommunities.org/id/metropolitan-district-council/leeds,Leeds City Council as Accountable Body,31/05/2017,Social Services Pooled Budgets,Leeds Community Equip Store Pooled Budgt,Supplies and Services,Other Equipment,203,26/05/2017,1705-00361,0.00,1374.25,R,Aidapt Bathrooms Ltd,No
Http://opendatacommunities.org/id/metropolitan-district-council/leeds,Leeds City Council as Accountable Body,31/05/2017,Social Services Pooled Budgets,Jcs For People With Learning Disabilitie,Supplies and Services,Other Equipment,203,17/05/2017,1705-00362,0.00,205.00,R,Aidservice Ltd,No
Http://opendatacommunities.org/id/metropolitan-district-council/leeds,Leeds City Council as Accountable Body,31/05/2017,Social Services Pooled Budgets,Jcs For People With Learning Disabilitie,Supplies and Services,Other Equipment,203,17/05/2017,1705-00363,0.00,180.00,R,Aidservice Ltd,No
Http://opendatacommunities.org/id/metropolitan-district-council/leeds,Leeds City Council as Accountable Body,31/05/2017,Social Services Pooled Budgets,Jcs For People With Learning Disabilitie,Supplies and Services,Other Equipment,203,17/05/2017,1705-00364,0.00,394.00,R,Aidservice Ltd,No
Http://opendatacommunities.org/id/metropolitan-district-council/leeds,Leeds City Council as Accountable Body,31/05/2017,Social Services Pooled Budgets,Jcs For People With Learning Disabilitie,Supplies and Services,Other Equipment,203,17/05/2017,1705-00365,0.00,734.00,R,Aidservice Ltd,No
Http://opendatacommunities.org/id/metropolitan-district-council/leeds,Leeds City Council as Accountable Body,31/05/2017,Social Services Pooled Budgets,Jcs For People With Learning Disabilitie,Supplies and Services,Other Equipment,203,17/05/2017,1705-00366,0.00,149.00,R,Aidservice Ltd,No
Http://opendatacommunities.org/id/metropolitan-district-council/leeds,Leeds City Council,31/05/2017,City Development,Libraries  Arts & Heritage,Supplies and Services,Other Hired And Contracted Services,265,04/05/2017,1705-00367,0.00,150.00,R,Aimee Grundell,No
Http://opendatacommunities.org/id/metropolitan-district-council/leeds,Leeds City Council,31/05/2017,Environment & Housing,Leeds Building Services,Supplies and Services,Operational Materials,205,03/05/2017,1705-00368,0.00,1795.55,R,Air Conditioning Accessories,No
Http://opendatacommunities.org/id/metropolitan-district-council/leeds,Leeds City Council,31/05/2017,Environment & Housing,Leeds Building Services,Supplies and Services,Operational Materials,205,03/05/2017,1705-00369,0.00,57.00,R,Air Conditioning Accessories,No
Http://opendatacommunities.org/id/metropolitan-district-council/leeds,Leeds City Council,31/05/2017,Environment & Housing,Leeds Building Services,Supplies and Services,Operational Materials,205,05/05/2017,1705-00370,0.00,9.87,R,Air Conditioning Accessories,No
Http://opendatacommunities.org/id/metropolitan-district-council/leeds,Leeds City Council,31/05/2017,Environment & Housing,Leeds Building Services,Supplies and Services,Operational Materials,205,05/05/2017,1705-00371,0.00,60.79,R,Air Conditioning Accessories,No
Http://opendatacommunities.org/id/metropolitan-district-council/leeds,Leeds City Council,31/05/2017,Environment & Housing,Leeds Building Services,Supplies and Services,Operational Materials,205,05/05/2017,1705-00372,0.00,73.70,R,Air Conditioning Accessories,No
Http://opendatacommunities.org/id/metropolitan-district-council/leeds,Leeds City Council,31/05/2017,Environment & Housing,Leeds Building Services,Supplies and Services,Operational Materials,205,05/05/2017,1705-00373,0.00,60.00,R,Air Conditioning Accessories,No
Http://opendatacommunities.org/id/metropolitan-district-council/leeds,Leeds City Council,31/05/2017,Environment & Housing,Leeds Building Services,Supplies and Services,Operational Materials,205,15/05/2017,1705-00374,0.00,95.60,R,Air Conditioning Accessories,No
Http://opendatacommunities.org/id/metropolitan-district-council/leeds,Leeds City Council,31/05/2017,Environment & Housing,Leeds Building Services,Supplies and Services,Operational Materials,205,15/05/2017,1705-00375,0.00,127.51,R,Air Conditioning Accessories,No
Http://opendatacommunities.org/id/metropolitan-district-council/leeds,Leeds City Council,31/05/2017,Environment & Housing,Leeds Building Services,Supplies and Services,Operational Materials,205,15/05/2017,1705-00376,0.00,96.74,R,Air Conditioning Accessories,No
Http://opendatacommunities.org/id/metropolitan-district-council/leeds,Leeds City Council,31/05/2017,Civic Enterprise Leeds,Commercial Services  ,Supplies and Services,Operational Materials,205,03/04/2017,1705-00377,0.00,12.50,R,Air Force Pneumati,Yes
Http://opendatacommunities.org/id/metropolitan-district-council/leeds,Leeds City Council,31/05/2017,Environment & Housing,Leeds Building Services,Supplies and Services,Operational Materials,205,31/05/2017,1705-00378,0.00,7.50,R,Air Force Pneumatics & Hydraulics,No
Http://opendatacommunities.org/id/metropolitan-district-council/leeds,Leeds City Council,31/05/2017,Environment & Housing,Leeds Building Services,Supplies and Services,Other Hired And Contracted Services,265,03/05/2017,1705-00379,0.00,10.00,R,Air Liquide Uk,No
Http://opendatacommunities.org/id/metropolitan-district-council/leeds,Leeds City Council,31/05/2017,Environment & Housing,Environmental Health,Supplies and Services,Operational Furniture And Equipment,203,08/05/2017,1705-00380,0.00,9.39,R,Air Liquide Uk,No
Http://opendatacommunities.org/id/metropolitan-district-council/leeds,Leeds City Council,31/05/2017,Environment & Housing,Environmental Health,Supplies and Services,Operational Furniture And Equipment,203,24/05/2017,1705-00381,0.00,14.31,R,Air Liquide Uk,No
Http://opendatacommunities.org/id/metropolitan-district-council/leeds,Leeds City Council,31/05/2017,Environment & Housing,Environmental Health,Supplies and Services,Operational Furniture And Equipment,203,24/05/2017,1705-00382,0.00,75.12,R,Air Liquide Uk,No
Http://opendatacommunities.org/id/metropolitan-district-council/leeds,Leeds City Council,31/05/2017,Adults And Health,Services For Adults Under 65 Mental/Dis,Third Party Payments,Residential,580,03/05/2017,1705-00383,0.00,6028.00,R,Aire House,No
Http://opendatacommunities.org/id/metropolitan-district-council/leeds,Leeds City Council as Accountable Body,31/05/2017,Social Services Pooled Budgets,Jcs For People With Learning Disabilitie,Third Party Payments,Residential,580,03/05/2017,1705-00384,0.00,3059.84,R,Aire House,No
Http://opendatacommunities.org/id/metropolitan-district-council/leeds,Leeds City Council,31/05/2017,Adults And Health,Services For Adults Under 65 Mental/Dis,Third Party Payments,Residential,580,31/05/2017,1705-00385,0.00,6028.00,R,Aire House,No
Http://opendatacommunities.org/id/metropolitan-district-council/leeds,Leeds City Council as Accountable Body,31/05/2017,Social Services Pooled Budgets,Jcs For People With Learning Disabilitie,Third Party Payments,Residential,580,31/05/2017,1705-00386,0.00,3059.84,R,Aire House,No
Http://opendatacommunities.org/id/metropolitan-district-council/leeds,Leeds City Council,31/05/2017,Adults And Health,Services For Older People - 65 And Over,Third Party Payments,Residential Care Dementia,571,03/05/2017,1705-00387,0.00,38422.46,R,Aire View Residential Home,No
Http://opendatacommunities.org/id/metropolitan-district-council/leeds,Leeds City Council,31/05/2017,Adults And Health,Services For Older People - 65 And Over,Third Party Payments,Residential,580,03/05/2017,1705-00388,0.00,13264.70,R,Aire View Residential Home,No
Http://opendatacommunities.org/id/metropolitan-district-council/leeds,Leeds City Council,31/05/2017,Adults And Health,Services For Older People - 65 And Over,Third Party Payments,Residential Care Dementia,571,31/05/2017,1705-00389,0.00,38166.19,R,Aire View Residential Home,No
Http://opendatacommunities.org/id/metropolitan-district-council/leeds,Leeds City Council,31/05/2017,Adults And Health,Services For Older People - 65 And Over,Third Party Payments,Residential,580,31/05/2017,1705-00390,0.00,12909.40,R,Aire View Residential Home,No
Http://opendatacommunities.org/id/metropolitan-district-council/leeds,Leeds City Council,31/05/2017,Adults And Health,Public Health,Third Party Payments,Public Health Commissioned Services,526,18/05/2017,1705-00391,0.00,4245.99,R,Aireborough Family Practice,No
Http://opendatacommunities.org/id/metropolitan-district-council/leeds,Leeds City Council,31/05/2017,Children And Families,Partnerships,Third Party Payments,Services Rendered By Voluntary Sector,505,26/05/2017,1705-00392,0.00,29620.00,R,Aireborough Supported Activities Scheme,No
Http://opendatacommunities.org/id/metropolitan-district-council/leeds,Leeds City Council,31/05/2017,Adults And Health,Services For Older People - 65 And Over,Third Party Payments,Residential Care Dementia,571,03/05/2017,1705-00393,0.00,4842.93,R,Airedale (Goldsborough),No
Http://opendatacommunities.org/id/metropolitan-district-council/leeds,Leeds City Council,31/05/2017,Adults And Health,Services For Older People - 65 And Over,Third Party Payments,Residential,580,03/05/2017,1705-00394,0.00,26997.66,R,Airedale (Goldsborough),No
Http://opendatacommunities.org/id/metropolitan-district-council/leeds,Leeds City Council,31/05/2017,Adults And Health,Services For Older People - 65 And Over,Third Party Payments,Residential Care Dementia,571,31/05/2017,1705-00395,0.00,4918.63,R,Airedale (Goldsborough),No
Http://opendatacommunities.org/id/metropolitan-district-council/leeds,Leeds City Council,31/05/2017,Adults And Health,Services For Older People - 65 And Over,Third Party Payments,Residential,580,31/05/2017,1705-00396,0.00,33991.74,R,Airedale (Goldsborough),No
Http://opendatacommunities.org/id/metropolitan-district-council/leeds,Leeds City Council,31/05/2017,Civic Enterprise Leeds,Commercial Services,Supplies and Services,Operational Materials,205,25/05/2017,1705-00397,0.00,3115.00,R,Airedale Catering Equipment Ltd,No
Http://opendatacommunities.org/id/metropolitan-district-council/leeds,Leeds City Council,31/05/2017,Adults And Health,Assessment And Care Management,Employees,Training Costs,71,12/05/2017,1705-00398,0.00,150.00,R,Airedale Community Trading (Act) Ltd,No
Http://opendatacommunities.org/id/metropolitan-district-council/leeds,Leeds City Council,31/05/2017,Adults And Health,Assessment And Care Management,Employees,Training Costs,71,26/05/2017,1705-00399,0.00,120.00,R,Airedale Community Trading (Act) Ltd,No
Http://opendatacommunities.org/id/metropolitan-district-council/leeds,Leeds City Council,31/05/2017,City Development,Economic Development,Supplies and Services,Grants To Businesses,243,12/05/2017,1705-00400,0.00,35103.00,R,Airedale House Ltd,No
Http://opendatacommunities.org/id/metropolitan-district-council/leeds,Leeds City Council,31/05/2017,Civic Enterprise Leeds,Commercial Services,Supplies and Services,Other Hired And Contracted Services,265,04/05/2017,1705-00401,0.00,180.00,R,Air-Weigh Europe Limited,No
Http://opendatacommunities.org/id/metropolitan-district-council/leeds,Leeds City Council,31/05/2017,Civic Enterprise Leeds,Commercial Services,Supplies and Services,Other Hired And Contracted Services,265,12/05/2017,1705-00402,0.00,180.00,R,Air-Weigh Europe Limited,No
Http://opendatacommunities.org/id/metropolitan-district-council/leeds,Leeds City Council,31/05/2017,Civic Enterprise Leeds,Commercial Services,Supplies and Services,Other Hired And Contracted Services,265,26/05/2017,1705-00403,0.00,342.50,R,Air-Weigh Europe Limited,No
Http://opendatacommunities.org/id/metropolitan-district-council/leeds,Leeds City Council,31/05/2017,Civic Enterprise Leeds,Commercial Services,Supplies and Services,Other Hired And Contracted Services,265,26/05/2017,1705-00404,0.00,292.50,R,Air-Weigh Europe Limited,No
Http://opendatacommunities.org/id/metropolitan-district-council/leeds,Leeds City Council,31/05/2017,Children And Families,Safeguarding Targeted & Specialist,Transfer Payments,Leaving Care Allowances,634,19/05/2017,1705-00405,0.00,60.00,R,REDACTED PERSONAL DATA,No
Http://opendatacommunities.org/id/metropolitan-district-council/leeds,Leeds City Council,31/05/2017,Children And Families,Safeguarding Targeted & Specialist,Transfer Payments,Leaving Care Allowances,634,19/05/2017,1705-00406,0.00,60.00,R,REDACTED PERSONAL DATA,No
Http://opendatacommunities.org/id/metropolitan-district-council/leeds,Leeds City Council,31/05/2017,Children And Families,Safeguarding Targeted & Specialist,Transfer Payments,Leaving Care Allowances,634,19/05/2017,1705-00407,0.00,60.00,R,REDACTED PERSONAL DATA,No
Http://opendatacommunities.org/id/metropolitan-district-council/leeds,Leeds City Council,31/05/2017,Children And Families,Safeguarding Targeted & Specialist,Transfer Payments,Leaving Care Allowances,634,26/05/2017,1705-00408,0.00,60.00,R,REDACTED PERSONAL DATA,No
Http://opendatacommunities.org/id/metropolitan-district-council/leeds,Leeds City Council,31/05/2017,Adults And Health,Services For Adults Under 65 Mental/Dis,Third Party Payments,Fees - Level 4,520,05/05/2017,1705-00409,0.00,175.00,R,Ait Mitra,No
Http://opendatacommunities.org/id/metropolitan-district-council/leeds,Leeds City Council,31/05/2017,Adults And Health,Services For Adults Under 65 Mental/Dis,Third Party Payments,Fees - Level 4,520,05/05/2017,1705-00410,0.00,214.00,R,Ait Mitra,No
Http://opendatacommunities.org/id/metropolitan-district-council/leeds,Leeds City Council,31/05/2017,Adults And Health,Services For Adults Under 65 Mental/Dis,Third Party Payments,Fees - Level 4,520,05/05/2017,1705-00411,0.00,175.00,R,Ait Mitra,No
Http://opendatacommunities.org/id/metropolitan-district-council/leeds,Leeds City Council,31/05/2017,Adults And Health,Services For Adults Under 65 Mental/Dis,Third Party Payments,Fees - Level 4,520,19/05/2017,1705-00412,0.00,239.50,R,Ait Mitra,No
Http://opendatacommunities.org/id/metropolitan-district-council/leeds,Leeds City Council,31/05/2017,Adults And Health,Services For Adults Under 65 Mental/Dis,Third Party Payments,Fees - Level 4,520,19/05/2017,1705-00413,0.00,175.00,R,Ait Mitra,No
Http://opendatacommunities.org/id/metropolitan-district-council/leeds,Leeds City Council,31/05/2017,Adults And Health,Services For Adults Under 65 Mental/Dis,Third Party Payments,Fees - Level 4,520,24/05/2017,1705-00414,0.00,175.00,R,Ait Mitra,No
Http://opendatacommunities.org/id/metropolitan-district-council/leeds,Leeds City Council,31/05/2017,Adults And Health,Services For Adults Under 65 Mental/Dis,Third Party Payments,Fees - Level 4,520,26/05/2017,1705-00415,0.00,175.00,R,Ait Mitra,No
Http://opendatacommunities.org/id/metropolitan-district-council/leeds,Leeds City Council,31/05/2017,Adults And Health,Services For Adults Under 65 Mental/Dis,Third Party Payments,Fees - Level 4,520,26/05/2017,1705-00416,0.00,175.00,R,Ait Mitra,No
Http://opendatacommunities.org/id/metropolitan-district-council/leeds,Leeds City Council,31/05/2017,Adults And Health,Services For Adults Under 65 Mental/Dis,Third Party Payments,Fees - Level 4,520,26/05/2017,1705-00417,0.00,175.00,R,Ait Mitra,No
Http://opendatacommunities.org/id/metropolitan-district-council/leeds,Leeds City Council,31/05/2017,Adults And Health,Services For Adults Under 65 Mental/Dis,Third Party Payments,Fees - Level 4,520,26/05/2017,1705-00418,0.00,175.00,R,Ait Mitra,No
Http://opendatacommunities.org/id/metropolitan-district-council/leeds,Leeds City Council,31/05/2017,Adults And Health,Services For Adults Under 65 Mental/Dis,Third Party Payments,Fees - Level 4,520,31/05/2017,1705-00419,0.00,175.00,R,Ait Mitra,No
Http://opendatacommunities.org/id/metropolitan-district-council/leeds,Leeds City Council,31/05/2017,Adults And Health,Services For Adults Under 65 Mental/Dis,Third Party Payments,Fees - Level 4,520,31/05/2017,1705-00420,0.00,175.00,R,Ait Mitra,No
Http://opendatacommunities.org/id/metropolitan-district-council/leeds,Leeds City Council,31/05/2017,Adults And Health,Services For Adults Under 65 Mental/Dis,Third Party Payments,Fees - Level 4,520,31/05/2017,1705-00421,0.00,175.00,R,Ait Mitra,No
Http://opendatacommunities.org/id/metropolitan-district-council/leeds,Leeds City Council,31/05/2017,Adults And Health,Services For Adults Under 65 Mental/Dis,Third Party Payments,Fees - Level 4,520,31/05/2017,1705-00422,0.00,175.00,R,Ait Mitra,No
Http://opendatacommunities.org/id/metropolitan-district-council/leeds,Leeds City Council,31/05/2017,Adults And Health,Services For Adults Under 65 Mental/Dis,Third Party Payments,Fees - Level 4,520,31/05/2017,1705-00423,0.00,175.00,R,Ait Mitra,No
Http://opendatacommunities.org/id/metropolitan-district-council/leeds,Leeds City Council as Accountable Body,31/05/2017,Social Services Pooled Budgets,Jcs For People With Learning Disabilitie,Third Party Payments,Residential,580,03/05/2017,1705-00424,0.00,6173.24,R,Aitch Care Homes,No
Http://opendatacommunities.org/id/metropolitan-district-council/leeds,Leeds City Council as Accountable Body,31/05/2017,Social Services Pooled Budgets,Jcs For People With Learning Disabilitie,Third Party Payments,Residential,580,31/05/2017,1705-00425,0.00,6173.24,R,Aitch Care Homes,No
Http://opendatacommunities.org/id/metropolitan-district-council/leeds,Leeds City Council,31/05/2017,Environment & Housing,Parks and Countryside,Supplies and Services,Operational Materials,205,03/05/2017,1705-00426,0.00,522.00,R,Aitkens Sportsturf Ltd,No
Http://opendatacommunities.org/id/metropolitan-district-council/leeds,Leeds City Council,31/05/2017,Environment & Housing,Parks and Countryside,Supplies and Services,Operational Materials,205,03/05/2017,1705-00427,0.00,12.87,R,Aitkens Sportsturf Ltd,No
Http://opendatacommunities.org/id/metropolitan-district-council/leeds,Leeds City Council,31/05/2017,Environment & Housing,Parks and Countryside,Supplies and Services,Operational Materials,205,10/05/2017,1705-00428,0.00,204.95,R,Aitkens Sportsturf Ltd,No
Http://opendatacommunities.org/id/metropolitan-district-council/leeds,Leeds City Council,31/05/2017,Environment & Housing,Parks and Countryside,Supplies and Services,Operational Materials,205,12/05/2017,1705-00429,0.00,237.00,R,Aitkens Sportsturf Ltd,No
Http://opendatacommunities.org/id/metropolitan-district-council/leeds,Leeds City Council,31/05/2017,Environment & Housing,Parks and Countryside,Supplies and Services,Operational Materials,205,24/05/2017,1705-00430,0.00,9.26,R,Aitkens Sportsturf Ltd,No
Http://opendatacommunities.org/id/metropolitan-district-council/leeds,Leeds City Council,31/05/2017,Environment & Housing,Parks and Countryside,Supplies and Services,Operational Materials,205,26/05/2017,1705-00431,0.00,600.00,R,Aitkens Sportsturf Ltd,No
Http://opendatacommunities.org/id/metropolitan-district-council/leeds,Leeds City Council,31/05/2017,Civic Enterprise Leeds,Commercial Services,Supplies and Services,Other Hired And Contracted Services,265,23/05/2017,1705-00432,0.00,675.00,R,REDACTED PERSONAL DATA,No
Http://opendatacommunities.org/id/metropolitan-district-council/leeds,Leeds City Council,31/05/2017,Civic Enterprise Leeds,Commercial Services,Supplies and Services,Other Hired And Contracted Services,265,23/05/2017,1705-00433,0.00,450.00,R,REDACTED PERSONAL DATA,No
Http://opendatacommunities.org/id/metropolitan-district-council/leeds,Leeds City Council,31/05/2017,Adults And Health,Services For Older People Under 65 P/Dis,Third Party Payments,Home Care,568,03/05/2017,1705-00434,0.00,199.75,R,Aj Community Care Ltd,No
Http://opendatacommunities.org/id/metropolitan-district-council/leeds,Leeds City Council,31/05/2017,Adults And Health,Services For Older People Under 65 P/Dis,Third Party Payments,Home Care,568,03/05/2017,1705-00435,0.00,295.83,R,Aj Community Care Ltd,No
Http://opendatacommunities.org/id/metropolitan-district-council/leeds,Leeds City Council,31/05/2017,Adults And Health,Services For Older People - 65 And Over,Third Party Payments,Home Care,568,25/05/2017,1705-00436,0.00,50.43,R,Aj Community Care Ltd,No
Http://opendatacommunities.org/id/metropolitan-district-council/leeds,Leeds City Council,31/05/2017,Adults And Health,Services For Older People - 65 And Over,Third Party Payments,Home Care,568,26/05/2017,1705-00437,0.00,407.49,R,Aj Community Care Ltd,No
Http://opendatacommunities.org/id/metropolitan-district-council/leeds,Leeds City Council,31/05/2017,Adults And Health,Services For Older People Under 65 P/Dis,Third Party Payments,Home Care,568,26/05/2017,1705-00438,0.00,1342.32,R,Aj Community Care Ltd,No
Http://opendatacommunities.org/id/metropolitan-district-council/leeds,Leeds City Council,31/05/2017,Adults And Health,Services For Older People - 65 And Over,Third Party Payments,Home Care,568,26/05/2017,1705-00439,0.00,201.74,R,Aj Community Care Ltd,No
Http://opendatacommunities.org/id/metropolitan-district-council/leeds,Leeds City Council,31/05/2017,Adults And Health,Services For Older People - 65 And Over,Third Party Payments,Home Care,568,26/05/2017,1705-00440,0.00,5922.22,R,Aj Community Care Ltd,No
Http://opendatacommunities.org/id/metropolitan-district-council/leeds,Leeds City Council,31/05/2017,Adults And Health,Services For Older People Under 65 P/Dis,Third Party Payments,Home Care,568,26/05/2017,1705-00441,0.00,4200.52,R,Aj Community Care Ltd,No
Http://opendatacommunities.org/id/metropolitan-district-council/leeds,Leeds City Council,31/05/2017,Adults And Health,Services For Older People - 65 And Over,Third Party Payments,Home Care,568,26/05/2017,1705-00442,0.00,367.54,R,Aj Community Care Ltd,No
Http://opendatacommunities.org/id/metropolitan-district-council/leeds,Leeds City Council,31/05/2017,Adults And Health,Services For Older People Under 65 P/Dis,Third Party Payments,Home Care,568,26/05/2017,1705-00443,0.00,1342.32,R,Aj Community Care Ltd,No
Http://opendatacommunities.org/id/metropolitan-district-council/leeds,Leeds City Council,31/05/2017,Adults And Health,Services For Older People - 65 And Over,Third Party Payments,Home Care,568,26/05/2017,1705-00444,0.00,6600.93,R,Aj Community Care Ltd,No
Http://opendatacommunities.org/id/metropolitan-district-council/leeds,Leeds City Council,31/05/2017,Adults And Health,Services For Older People Under 65 P/Dis,Third Party Payments,Home Care,568,26/05/2017,1705-00445,0.00,4236.54,R,Aj Community Care Ltd,No
Http://opendatacommunities.org/id/metropolitan-district-council/leeds,Leeds City Council,31/05/2017,Adults And Health,Services For Older People - 65 And Over,Third Party Payments,Home Care,568,26/05/2017,1705-00446,0.00,7.21,R,Aj Community Care Ltd,No
Http://opendatacommunities.org/id/metropolitan-district-council/leeds,Leeds City Council,31/05/2017,Environment & Housing,Leeds Building Services,Supplies and Services,Stores - Central And Other Depots,005,05/05/2017,1705-00447,0.00,661.42,R,Ajm Fixings & Power Tools Ltd,No
Http://opendatacommunities.org/id/metropolitan-district-council/leeds,Leeds City Council,31/05/2017,Environment & Housing,Leeds Building Services,Supplies and Services,Stores - Central And Other Depots,005,12/05/2017,1705-00448,0.00,237.60,R,Ajm Fixings & Power Tools Ltd,No
Http://opendatacommunities.org/id/metropolitan-district-council/leeds,Leeds City Council,31/05/2017,Environment & Housing,Leeds Building Services,Supplies and Services,Operational Materials,205,15/05/2017,1705-00449,0.00,144.00,R,Ajm Fixings & Power Tools Ltd,No
Http://opendatacommunities.org/id/metropolitan-district-council/leeds,Leeds City Council,31/05/2017,Environment & Housing,Leeds Building Services,Supplies and Services,Operational Materials,205,26/05/2017,1705-00450,0.00,15.06,R,Ajm Fixings & Power Tools Ltd,No
Http://opendatacommunities.org/id/metropolitan-district-council/leeds,Leeds City Council,31/05/2017,Environment & Housing,Leeds Building Services,Supplies and Services,Operational Furniture And Equipment,203,30/05/2017,1705-00451,0.00,147.00,R,Ajm Fixings & Power Tools Ltd,No
Http://opendatacommunities.org/id/metropolitan-district-council/leeds,Leeds City Council,31/05/2017,Environment & Housing,Leeds Building Services,Supplies and Services,Operational Furniture And Equipment,203,30/05/2017,1705-00452,0.00,59.00,R,Ajm Fixings & Power Tools Ltd,No
Http://opendatacommunities.org/id/metropolitan-district-council/leeds,Leeds City Council,31/05/2017,Environment & Housing,Leeds Building Services,Supplies and Services,Stores - Central And Other Depots,005,30/05/2017,1705-00453,0.00,63.25,R,Ajm Fixings & Power Tools Ltd,No
Http://opendatacommunities.org/id/metropolitan-district-council/leeds,Leeds City Council,31/05/2017,Environment & Housing,Leeds Building Services,Supplies and Services,Stores - Central And Other Depots,005,30/05/2017,1705-00454,0.00,325.00,R,Ajm Fixings & Power Tools Ltd,No
Http://opendatacommunities.org/id/metropolitan-district-council/leeds,Leeds City Council,31/05/2017,Adults And Health,Services For Older People - 65 And Over,Third Party Payments,Nursing Home,570,03/05/2017,1705-00455,0.00,1247.60,R,Akari Care Ltd,No
Http://opendatacommunities.org/id/metropolitan-district-council/leeds,Leeds City Council,31/05/2017,Adults And Health,Services For Older People - 65 And Over,Third Party Payments,Nursing Home,570,31/05/2017,1705-00456,0.00,1247.60,R,Akari Care Ltd,No
Http://opendatacommunities.org/id/metropolitan-district-council/leeds,Leeds City Council,31/05/2017,Children And Families,Safeguarding Targeted & Specialist,Supplies and Services,General Amenity For Clients/Residents,285,02/05/2017,1705-00457,0.00,7.40,R,REDACTED PERSONAL DATA,No
Http://opendatacommunities.org/id/metropolitan-district-council/leeds,Leeds City Council,31/05/2017,Children And Families,Safeguarding Targeted & Specialist,Transport,Public Transport Expenses,310,02/05/2017,1705-00458,0.00,32.00,R,REDACTED PERSONAL DATA,No
Http://opendatacommunities.org/id/metropolitan-district-council/leeds,Leeds City Council,31/05/2017,Adults And Health,Social Services Support Services,Employees,Training & Development,70,10/05/2017,1705-00459,0.00,7500.00,R,Akd Solutions Ltd,No
Http://opendatacommunities.org/id/metropolitan-district-council/leeds,Leeds City Council,31/05/2017,Environment & Housing,Environmental Action (West North West),Supplies and Services,Other Hired And Contracted Services,265,12/05/2017,1705-00460,0.00,182.10,R,Akua Uk Ltd,No
Http://opendatacommunities.org/id/metropolitan-district-council/leeds,Leeds City Council,31/05/2017,Environment & Housing,Leeds Building Services,Supplies and Services,Operational Materials,205,05/05/2017,1705-00461,0.00,52.57,R,Akw Medicare Ltd,No
Http://opendatacommunities.org/id/metropolitan-district-council/leeds,Leeds City Council,31/05/2017,Environment & Housing,Leeds Building Services,Supplies and Services,Operational Materials,205,05/05/2017,1705-00462,0.00,52.57,R,Akw Medicare Ltd,No
Http://opendatacommunities.org/id/metropolitan-district-council/leeds,Leeds City Council,31/05/2017,Environment & Housing,Leeds Building Services,Supplies and Services,Operational Materials,205,05/05/2017,1705-00463,0.00,52.57,R,Akw Medicare Ltd,No
Http://opendatacommunities.org/id/metropolitan-district-council/leeds,Leeds City Council,31/05/2017,Environment & Housing,Leeds Building Services,Supplies and Services,Operational Materials,205,05/05/2017,1705-00464,0.00,64.57,R,Akw Medicare Ltd,No
Http://opendatacommunities.org/id/metropolitan-district-council/leeds,Leeds City Council,31/05/2017,Environment & Housing,Leeds Building Services,Supplies and Services,Operational Materials,205,05/05/2017,1705-00465,0.00,54.67,R,Akw Medicare Ltd,No
Http://opendatacommunities.org/id/metropolitan-district-council/leeds,Leeds City Council,31/05/2017,Environment & Housing,Leeds Building Services,Supplies and Services,Operational Materials,205,22/05/2017,1705-00466,0.00,54.67,R,Akw Medicare Ltd,No
Http://opendatacommunities.org/id/metropolitan-district-council/leeds,Leeds City Council,31/05/2017,Environment & Housing,Leeds Building Services,Supplies and Services,Operational Materials,205,26/05/2017,1705-00467,0.00,54.67,R,Akw Medicare Ltd,No
Http://opendatacommunities.org/id/metropolitan-district-council/leeds,Leeds City Council,31/05/2017,Adults And Health,Public Health,Third Party Payments,Public Health Commissioned Services,526,19/05/2017,1705-00468,0.00,4180.95,R,Al Shafa Pharmacy,No
Http://opendatacommunities.org/id/metropolitan-district-council/leeds,Leeds City Council,31/05/2017,Adults And Health,Public Health,Third Party Payments,Public Health Commissioned Services,526,31/05/2017,1705-00469,0.00,4430.20,R,Al Shafa Pharmacy,No
Http://opendatacommunities.org/id/metropolitan-district-council/leeds,Leeds City Council,31/05/2017,Adults And Health,Public Health,Third Party Payments,Public Health Commissioned Services,526,31/05/2017,1705-00470,0.00,4927.70,R,Al Shafa Pharmacy,No
Http://opendatacommunities.org/id/metropolitan-district-council/leeds,Leeds City Council,31/05/2017,Resources And Housing,Human Resources  ,Supplies and Services,Conference Meetings,253,25/04/2017,1705-00471,0.00,60.00,R,Alan Brown Flowers,Yes
Http://opendatacommunities.org/id/metropolitan-district-council/leeds,Leeds City Council as Accountable Body,31/05/2017,Social Services Pooled Budgets,Leeds Community Equip Store Pooled Budgt,Supplies and Services,Other Equipment,203,05/05/2017,1705-00472,0.00,396.90,R,Albion Electric Stores Ltd,No
Http://opendatacommunities.org/id/metropolitan-district-council/leeds,Leeds City Council,31/05/2017,Children And Families,Safeguarding Targeted & Specialist  ,Transfer Payments,Leaving Care Grants,635,19/04/2017,1705-00473,0.00,7.18,R,Aldi,Yes
Http://opendatacommunities.org/id/metropolitan-district-council/leeds,Leeds City Council,31/05/2017,Children And Families,Safeguarding Targeted & Specialist  ,Supplies and Services,Food & Drink,231,27/04/2017,1705-00474,0.00,33.21,R,Aldi,Yes
Http://opendatacommunities.org/id/metropolitan-district-council/leeds,Leeds City Council,31/05/2017,Children And Families,Learning Skills & Universal,Supplies and Services,Bought In Professional Services,277,19/05/2017,1705-00475,0.00,354.75,R,Alec Williams,No
Http://opendatacommunities.org/id/metropolitan-district-council/leeds,Leeds City Council,31/05/2017,Children And Families,Safeguarding Targeted & Specialist,Support Services,Legal Disbursements,411,05/05/2017,1705-00476,0.00,449.00,R,Alere Toxicology Plc,No
Http://opendatacommunities.org/id/metropolitan-district-council/leeds,Leeds City Council,31/05/2017,City Development,Employment & Skills,Supplies and Services,Training Allowances,257,05/05/2017,1705-00477,0.00,53.00,R,REDACTED PERSONAL DATA,No
Http://opendatacommunities.org/id/metropolitan-district-council/leeds,Leeds City Council,31/05/2017,Children And Families,Safeguarding Targeted & Specialist,Support Services,Legal Disbursements,411,23/05/2017,1705-00478,0.00,469.00,R,Alex Taylor,No
Http://opendatacommunities.org/id/metropolitan-district-council/leeds,Leeds City Council,31/05/2017,Children And Families,Safeguarding Targeted & Specialist,Support Services,Legal Disbursements,411,24/05/2017,1705-00479,0.00,361.00,R,Alex Taylor,No
Http://opendatacommunities.org/id/metropolitan-district-council/leeds,Leeds City Council,31/05/2017,Communities And Environment,Elections  Licensing and Registration,Income,Admissions  Booking Fees & Ticket Sales,933,11/05/2017,1705-00480,0.00,70.00,R,REDACTED PERSONAL DATA,No
Http://opendatacommunities.org/id/metropolitan-district-council/leeds,Leeds City Council,31/05/2017,Adults And Health,Services For Older People - 65 And Over,Third Party Payments,Residential Care Dementia,571,03/05/2017,1705-00481,0.00,12721.51,R,Alexander Residential Home,No
Http://opendatacommunities.org/id/metropolitan-district-council/leeds,Leeds City Council,31/05/2017,Adults And Health,Services For Older People - 65 And Over,Third Party Payments,Residential,580,03/05/2017,1705-00482,0.00,17092.92,R,Alexander Residential Home,No
Http://opendatacommunities.org/id/metropolitan-district-council/leeds,Leeds City Council,31/05/2017,Adults And Health,Services For Older People Under 65 P/Dis,Third Party Payments,Residential,580,03/05/2017,1705-00483,0.00,1573.47,R,Alexander Residential Home,No
Http://opendatacommunities.org/id/metropolitan-district-council/leeds,Leeds City Council,31/05/2017,Adults And Health,Services For Older People - 65 And Over,Third Party Payments,Residential Care Dementia,571,31/05/2017,1705-00484,0.00,9193.43,R,Alexander Residential Home,No
Http://opendatacommunities.org/id/metropolitan-district-council/leeds,Leeds City Council,31/05/2017,Adults And Health,Services For Older People - 65 And Over,Third Party Payments,Residential,580,31/05/2017,1705-00485,0.00,14392.30,R,Alexander Residential Home,No
Http://opendatacommunities.org/id/metropolitan-district-council/leeds,Leeds City Council,31/05/2017,Communities And Environment,Customer Access,Supplies and Services,Other Hired And Contracted Services,265,08/05/2017,1705-00486,0.00,265.50,R,Alexandra Costenco,No
Http://opendatacommunities.org/id/metropolitan-district-council/leeds,Leeds City Council,31/05/2017,Adults And Health,Services For Older People - 65 And Over,Third Party Payments,Residential Care Dementia,571,03/05/2017,1705-00487,0.00,1497.96,R,Alexandra Court,No
Http://opendatacommunities.org/id/metropolitan-district-council/leeds,Leeds City Council,31/05/2017,Adults And Health,Services For Older People - 65 And Over,Third Party Payments,Residential,580,03/05/2017,1705-00488,0.00,12019.56,R,Alexandra Court,No
Http://opendatacommunities.org/id/metropolitan-district-council/leeds,Leeds City Council,31/05/2017,Adults And Health,Services For Older People - 65 And Over,Third Party Payments,Residential Care Dementia,571,31/05/2017,1705-00489,0.00,1497.96,R,Alexandra Court,No
Http://opendatacommunities.org/id/metropolitan-district-council/leeds,Leeds City Council,31/05/2017,Adults And Health,Services For Older People - 65 And Over,Third Party Payments,Residential,580,31/05/2017,1705-00490,0.00,12019.56,R,Alexandra Court,No
Http://opendatacommunities.org/id/metropolitan-district-council/leeds,Leeds City Council,31/05/2017,Communities And Environment,Customer Access,Supplies and Services,Other Hired And Contracted Services,265,08/05/2017,1705-00491,0.00,146.50,R,Alexandra Hirst,No
Http://opendatacommunities.org/id/metropolitan-district-council/leeds,Leeds City Council,31/05/2017,Communities And Environment,Customer Access,Supplies and Services,Bought In Professional Services,277,05/05/2017,1705-00492,0.00,123.00,R,Alexia Blohm-Pain,No
Http://opendatacommunities.org/id/metropolitan-district-council/leeds,Leeds City Council,31/05/2017,Environment & Housing,Leeds Building Services,Supplies and Services,Other Hired And Contracted Services,265,02/05/2017,1705-00493,0.00,125.00,R,Alfred Bagnall & Sons (Leeds) Ltd,No
Http://opendatacommunities.org/id/metropolitan-district-council/leeds,Leeds City Council,31/05/2017,Environment & Housing,Leeds Building Services,Supplies and Services,Other Hired And Contracted Services,265,02/05/2017,1705-00494,0.00,160.00,R,Alfred Bagnall & Sons (Leeds) Ltd,No
Http://opendatacommunities.org/id/metropolitan-district-council/leeds,Leeds City Council,31/05/2017,Environment & Housing,Leeds Building Services,Supplies and Services,Other Hired And Contracted Services,265,02/05/2017,1705-00495,0.00,2115.00,R,Alfred Bagnall & Sons (Leeds) Ltd,No
Http://opendatacommunities.org/id/metropolitan-district-council/leeds,Leeds City Council,31/05/2017,Environment & Housing,Leeds Building Services,Supplies and Services,Other Hired And Contracted Services,265,02/05/2017,1705-00496,0.00,3218.03,R,Alfred Bagnall & Sons (Leeds) Ltd,No
Http://opendatacommunities.org/id/metropolitan-district-council/leeds,Leeds City Council,31/05/2017,Environment & Housing,Leeds Building Services,Supplies and Services,Other Hired And Contracted Services,265,02/05/2017,1705-00497,0.00,10479.00,R,Alfred Bagnall & Sons (Leeds) Ltd,No
Http://opendatacommunities.org/id/metropolitan-district-council/leeds,Leeds City Council,31/05/2017,Environment & Housing,Leeds Building Services,Supplies and Services,Other Hired And Contracted Services,265,02/05/2017,1705-00498,0.00,11974.80,R,Alfred Bagnall & Sons (Leeds) Ltd,No
Http://opendatacommunities.org/id/metropolitan-district-council/leeds,Leeds City Council,31/05/2017,Adult Social Care,Services For Older People - 65 And Over,Supplies and Services,Operational Furniture And Equipment,203,04/05/2017,1705-00499,0.00,725.00,R,Alfred Bagnall & Sons (Leeds) Ltd,No
Http://opendatacommunities.org/id/metropolitan-district-council/leeds,Leeds City Council,31/05/2017,Adult Social Care,Services For Older People - 65 And Over,Supplies and Services,Operational Furniture And Equipment,203,04/05/2017,1705-00500,0.00,725.00,R,Alfred Bagnall & Sons (Leeds) Ltd,No
Http://opendatacommunities.org/id/metropolitan-district-council/leeds,Leeds City Council,31/05/2017,Environment & Housing,Leeds Building Services,Supplies and Services,Other Hired And Contracted Services,265,26/05/2017,1705-00501,0.00,231.10,R,Alfred Bagnall & Sons (Leeds) Ltd,No
Http://opendatacommunities.org/id/metropolitan-district-council/leeds,Leeds City Council,31/05/2017,Environment & Housing,Leeds Building Services,Supplies and Services,Other Hired And Contracted Services,265,30/05/2017,1705-00502,0.00,2135.00,R,Alfred Bagnall & Sons (Leeds) Ltd,No
Http://opendatacommunities.org/id/metropolitan-district-council/leeds,Leeds City Council,31/05/2017,Environment & Housing,Leeds Building Services,Supplies and Services,Other Hired And Contracted Services,265,30/05/2017,1705-00503,0.00,180.00,R,Alfred Bagnall & Sons (Leeds) Ltd,No
Http://opendatacommunities.org/id/metropolitan-district-council/leeds,Leeds City Council,31/05/2017,Environment & Housing,Leeds Building Services,Supplies and Services,Other Hired And Contracted Services,265,30/05/2017,1705-00504,0.00,940.00,R,Alfred Bagnall & Sons (Leeds) Ltd,No
Http://opendatacommunities.org/id/metropolitan-district-council/leeds,Leeds City Council,31/05/2017,Environment & Housing,Leeds Building Services,Supplies and Services,Other Hired And Contracted Services,265,31/05/2017,1705-00505,0.00,2037.52,R,Alfred Bagnall & Sons (Leeds) Ltd,No
Http://opendatacommunities.org/id/metropolitan-district-council/leeds,Leeds City Council,31/05/2017,City Development,Libraries  Arts & Heritage  ,Supplies and Services,Computer Software & Equipment,214,02/04/2017,1705-00506,0.00,479.43,R,Algolia Algolia Starte,Yes
Http://opendatacommunities.org/id/metropolitan-district-council/leeds,Leeds City Council,31/05/2017,Children And Families,Safeguarding Targeted & Specialist,Third Party Payments,Section 17,551,05/05/2017,1705-00507,0.00,147.80,R,REDACTED PERSONAL DATA,No
Http://opendatacommunities.org/id/metropolitan-district-council/leeds,Leeds City Council,31/05/2017,Children And Families,Safeguarding Targeted & Specialist,Third Party Payments,Section 17,551,12/05/2017,1705-00508,0.00,147.80,R,REDACTED PERSONAL DATA,No
Http://opendatacommunities.org/id/metropolitan-district-council/leeds,Leeds City Council,31/05/2017,Children And Families,Safeguarding Targeted & Specialist,Third Party Payments,Section 17,551,19/05/2017,1705-00509,0.00,147.80,R,REDACTED PERSONAL DATA,No
Http://opendatacommunities.org/id/metropolitan-district-council/leeds,Leeds City Council,31/05/2017,Children And Families,Safeguarding Targeted & Specialist,Third Party Payments,Section 17,551,26/05/2017,1705-00510,0.00,147.80,R,REDACTED PERSONAL DATA,No
Http://opendatacommunities.org/id/metropolitan-district-council/leeds,Leeds City Council,31/05/2017,Children And Families,Safeguarding Targeted & Specialist,Transfer Payments,Leaving Care Allowances,634,26/05/2017,1705-00511,0.00,275.00,R,All Abode,No
Http://opendatacommunities.org/id/metropolitan-district-council/leeds,Leeds City Council,31/05/2017,Environment & Housing,Leeds Building Services,Supplies and Services,Other Hired And Contracted Services,265,02/05/2017,1705-00512,0.00,295.00,R,All Clear Solutions Ltd,No
Http://opendatacommunities.org/id/metropolitan-district-council/leeds,Leeds City Council,31/05/2017,Environment & Housing,Leeds Building Services,Supplies and Services,Other Hired And Contracted Services,265,02/05/2017,1705-00513,0.00,195.00,R,All Clear Solutions Ltd,No
Http://opendatacommunities.org/id/metropolitan-district-council/leeds,Leeds City Council,31/05/2017,Environment & Housing,Leeds Building Services,Supplies and Services,Other Hired And Contracted Services,265,19/05/2017,1705-00514,0.00,195.00,R,All Clear Solutions Ltd,No
Http://opendatacommunities.org/id/metropolitan-district-council/leeds,Leeds City Council,31/05/2017,Environment & Housing,Leeds Building Services,Supplies and Services,Other Hired And Contracted Services,265,19/05/2017,1705-00515,0.00,250.00,R,All Clear Solutions Ltd,No
Http://opendatacommunities.org/id/metropolitan-district-council/leeds,Leeds City Council,31/05/2017,Environment & Housing,Leeds Building Services,Supplies and Services,Other Hired And Contracted Services,265,19/05/2017,1705-00516,0.00,195.00,R,All Clear Solutions Ltd,No
Http://opendatacommunities.org/id/metropolitan-district-council/leeds,Leeds City Council,31/05/2017,Environment & Housing,Leeds Building Services,Supplies and Services,Other Hired And Contracted Services,265,26/05/2017,1705-00517,0.00,195.00,R,All Clear Solutions Ltd,No
Http://opendatacommunities.org/id/metropolitan-district-council/leeds,Leeds City Council,31/05/2017,Environment & Housing,Leeds Building Services,Supplies and Services,Other Hired And Contracted Services,265,26/05/2017,1705-00518,0.00,195.00,R,All Clear Solutions Ltd,No
Http://opendatacommunities.org/id/metropolitan-district-council/leeds,Leeds City Council,31/05/2017,Environment & Housing,Leeds Building Services,Supplies and Services,Other Hired And Contracted Services,265,26/05/2017,1705-00519,0.00,195.00,R,All Clear Solutions Ltd,No
Http://opendatacommunities.org/id/metropolitan-district-council/leeds,Leeds City Council,31/05/2017,Environment & Housing,Leeds Building Services,Supplies and Services,Other Hired And Contracted Services,265,26/05/2017,1705-00520,0.00,195.00,R,All Clear Solutions Ltd,No
Http://opendatacommunities.org/id/metropolitan-district-council/leeds,Leeds City Council,31/05/2017,Environment & Housing,Leeds Building Services,Supplies and Services,Other Hired And Contracted Services,265,26/05/2017,1705-00521,0.00,195.00,R,All Clear Solutions Ltd,No
Http://opendatacommunities.org/id/metropolitan-district-council/leeds,Leeds City Council,31/05/2017,Environment & Housing,Leeds Building Services,Supplies and Services,Other Hired And Contracted Services,265,26/05/2017,1705-00522,0.00,195.00,R,All Clear Solutions Ltd,No
Http://opendatacommunities.org/id/metropolitan-district-council/leeds,Leeds City Council,31/05/2017,Insurance,Insurance,Supplies and Services,Insurance Claims,248,19/05/2017,1705-00523,0.00,150.00,R,REDACTED PERSONAL DATA,No
Http://opendatacommunities.org/id/metropolitan-district-council/leeds,Leeds City Council as Accountable Body,31/05/2017,Social Services Pooled Budgets,Jcs For People With Learning Disabilitie,Third Party Payments,Sheltered Accommodation,569,03/05/2017,1705-00524,0.00,7590.46,R,Allerton Avenue,No
Http://opendatacommunities.org/id/metropolitan-district-council/leeds,Leeds City Council as Accountable Body,31/05/2017,Social Services Pooled Budgets,Jcs For People With Learning Disabilitie,Third Party Payments,Sheltered Accommodation,569,31/05/2017,1705-00525,0.00,12248.52,R,Allerton Avenue,No
Http://opendatacommunities.org/id/metropolitan-district-council/leeds,Leeds City Council,31/05/2017,Adults And Health,Public Health,Third Party Payments,Public Health Commissioned Services,526,18/05/2017,1705-00526,0.00,3241.09,R,Allerton Medical Centre,No
Http://opendatacommunities.org/id/metropolitan-district-council/leeds,Leeds City Council,31/05/2017,Environment & Housing,Parks and Countryside,Supplies and Services,Operational Materials,205,24/05/2017,1705-00527,0.00,27.50,R,Allflex Uk Group Ltd,No
Http://opendatacommunities.org/id/metropolitan-district-council/leeds,Leeds City Council,31/05/2017,Environment & Housing,Parks and Countryside,Supplies and Services,Operational Materials,205,24/05/2017,1705-00528,0.00,99.95,R,Allflex Uk Group Ltd,No
Http://opendatacommunities.org/id/metropolitan-district-council/leeds,Leeds City Council,31/05/2017,Environment & Housing,Parks and Countryside,Supplies and Services,Operational Materials,205,24/05/2017,1705-00529,0.00,3.50,R,Allflex Uk Group Ltd,No
Http://opendatacommunities.org/id/metropolitan-district-council/leeds,Leeds City Council,31/05/2017,Resources And Housing,Finance,Supplies and Services,Bank Charges,263,02/05/2017,1705-00530,0.00,-58.78,R,Alliance & Leicester Commercial Bank,No
Http://opendatacommunities.org/id/metropolitan-district-council/leeds,Leeds City Council,31/05/2017,Resources And Housing,Finance,Supplies and Services,Bank Charges,263,04/05/2017,1705-00531,0.00,685.68,R,Alliance & Leicester Commercial Bank,No
Http://opendatacommunities.org/id/metropolitan-district-council/leeds,Leeds City Council,31/05/2017,Strategic Landlord,Housing Management,Supplies and Services,Other Hired And Contracted Services,265,04/05/2017,1705-00532,0.00,248.78,R,Alliance & Leicester Commercial Bank,No
Http://opendatacommunities.org/id/metropolitan-district-council/leeds,Leeds City Council,31/05/2017,Resources And Housing,Finance,Supplies and Services,Bank Charges,263,04/05/2017,1705-00533,0.00,0.50,R,Alliance & Leicester Commercial Bank,No
Http://opendatacommunities.org/id/metropolitan-district-council/leeds,Leeds City Council,31/05/2017,Resources And Housing,Finance,Supplies and Services,Bank Charges,263,04/05/2017,1705-00534,0.00,226.48,R,Alliance & Leicester Commercial Bank,No
Http://opendatacommunities.org/id/metropolitan-district-council/leeds,Leeds City Council,31/05/2017,Resources And Housing,Finance,Supplies and Services,Bank Charges,263,04/05/2017,1705-00535,0.00,100.10,R,Alliance & Leicester Commercial Bank,No
Http://opendatacommunities.org/id/metropolitan-district-council/leeds,Leeds City Council,31/05/2017,City Development,Recreation,Supplies and Services,Publication And Promotion,267,12/05/2017,1705-00536,0.00,619.00,R,Alliance Leisure Service Ltd,No
Http://opendatacommunities.org/id/metropolitan-district-council/leeds,Leeds City Council,31/05/2017,City Development,Highways,Supplies and Services,Other Hired And Contracted Services,265,03/05/2017,1705-00537,0.00,3021.20,R,Allied Exploration & Geotechnics Ltd,No
Http://opendatacommunities.org/id/metropolitan-district-council/leeds,Leeds City Council,31/05/2017,City Development,Highways,Supplies and Services,Other Hired And Contracted Services,265,03/05/2017,1705-00538,0.00,1960.00,R,Allied Exploration & Geotechnics Ltd,No
Http://opendatacommunities.org/id/metropolitan-district-council/leeds,Leeds City Council,31/05/2017,City Development,Highways,Supplies and Services,Other Hired And Contracted Services,265,04/05/2017,1705-00539,0.00,5077.31,R,Allied Exploration & Geotechnics Ltd,No
Http://opendatacommunities.org/id/metropolitan-district-council/leeds,Leeds City Council,31/05/2017,Resources And Housing,Sustainable Energy & Climate Change,Capital,Construction,3,09/05/2017,1705-00540,0.00,2925.80,C,Allied Exploration & Geotechnics Ltd,No
Http://opendatacommunities.org/id/metropolitan-district-council/leeds,Leeds City Council,31/05/2017,City Development,Highways,Supplies and Services,Other Hired And Contracted Services,265,15/05/2017,1705-00541,0.00,2614.90,R,Allied Exploration & Geotechnics Ltd,No
Http://opendatacommunities.org/id/metropolitan-district-council/leeds,Leeds City Council,31/05/2017,City Development,Highways,Supplies and Services,Other Hired And Contracted Services,265,15/05/2017,1705-00542,0.00,14193.12,R,Allied Exploration & Geotechnics Ltd,No
Http://opendatacommunities.org/id/metropolitan-district-council/leeds,Leeds City Council,31/05/2017,City Development,Highways,Supplies and Services,Other Hired And Contracted Services,265,16/05/2017,1705-00543,0.00,10197.22,R,Allied Exploration & Geotechnics Ltd,No
Http://opendatacommunities.org/id/metropolitan-district-council/leeds,Leeds City Council,31/05/2017,City Development,Highways,Supplies and Services,Other Hired And Contracted Services,265,16/05/2017,1705-00544,0.00,551.40,R,Allied Exploration & Geotechnics Ltd,No
Http://opendatacommunities.org/id/metropolitan-district-council/leeds,Leeds City Council,31/05/2017,Resources And Housing,Sustainable Energy & Climate Change,Capital,Construction,3,19/05/2017,1705-00545,0.00,2184.50,C,Allied Exploration & Geotechnics Ltd,No
Http://opendatacommunities.org/id/metropolitan-district-council/leeds,Leeds City Council,31/05/2017,City Development,Highways,Supplies and Services,Other Hired And Contracted Services,265,23/05/2017,1705-00546,0.00,891.40,R,Allied Exploration & Geotechnics Ltd,No
Http://opendatacommunities.org/id/metropolitan-district-council/leeds,Leeds City Council,31/05/2017,City Development,Highways,Supplies and Services,Other Hired And Contracted Services,265,23/05/2017,1705-00547,0.00,13338.13,R,Allied Exploration & Geotechnics Ltd,No
Http://opendatacommunities.org/id/metropolitan-district-council/leeds,Leeds City Council,31/05/2017,City Development,Highways,Supplies and Services,Other Hired And Contracted Services,265,24/05/2017,1705-00548,0.00,493.20,R,Allied Exploration & Geotechnics Ltd,No
Http://opendatacommunities.org/id/metropolitan-district-council/leeds,Leeds City Council,31/05/2017,City Development,Highways,Supplies and Services,Other Hired And Contracted Services,265,31/05/2017,1705-00549,0.00,772.60,R,Allied Exploration & Geotechnics Ltd,No
Http://opendatacommunities.org/id/metropolitan-district-council/leeds,Leeds City Council,31/05/2017,City Development,Highways,Supplies and Services,Other Hired And Contracted Services,265,31/05/2017,1705-00550,0.00,573.60,R,Allied Exploration & Geotechnics Ltd,No
Http://opendatacommunities.org/id/metropolitan-district-council/leeds,Leeds City Council as Accountable Body,31/05/2017,Social Services Pooled Budgets,Jcs For People With Learning Disabilitie,Third Party Payments,Home Care,568,04/05/2017,1705-00551,0.00,552.20,R,Allied Healthcare,No
Http://opendatacommunities.org/id/metropolitan-district-council/leeds,Leeds City Council as Accountable Body,31/05/2017,Social Services Pooled Budgets,Jcs For People With Learning Disabilitie,Third Party Payments,Home Care,568,11/05/2017,1705-00552,0.00,15158.84,R,Allied Healthcare,No
Http://opendatacommunities.org/id/metropolitan-district-council/leeds,Leeds City Council as Accountable Body,31/05/2017,Social Services Pooled Budgets,Jcs For People With Learning Disabilitie,Third Party Payments,Home Care,568,11/05/2017,1705-00553,0.00,12.55,R,Allied Healthcare,No
Http://opendatacommunities.org/id/metropolitan-district-council/leeds,Leeds City Council as Accountable Body,31/05/2017,Social Services Pooled Budgets,Jcs For People With Learning Disabilitie,Third Party Payments,Home Care,568,11/05/2017,1705-00554,0.00,564.75,R,Allied Healthcare,No
Http://opendatacommunities.org/id/metropolitan-district-council/leeds,Leeds City Council as Accountable Body,31/05/2017,Social Services Pooled Budgets,Jcs For People With Learning Disabilitie,Third Party Payments,Home Care,568,11/05/2017,1705-00555,0.00,79.92,R,Allied Healthcare,No
Http://opendatacommunities.org/id/metropolitan-district-council/leeds,Leeds City Council,31/05/2017,Adults And Health,Other Generic Services,Third Party Payments,Home Care,568,18/05/2017,1705-00556,0.00,19160.73,R,Allied Healthcare,No
Http://opendatacommunities.org/id/metropolitan-district-council/leeds,Leeds City Council,31/05/2017,Adults And Health,Other Generic Services,Third Party Payments,Home Care,568,18/05/2017,1705-00557,0.00,7500.54,R,Allied Healthcare,No
Http://opendatacommunities.org/id/metropolitan-district-council/leeds,Leeds City Council as Accountable Body,31/05/2017,Social Services Pooled Budgets,Jcs For People With Learning Disabilitie,Third Party Payments,Home Care,568,18/05/2017,1705-00558,0.00,618.52,R,Allied Healthcare,No
Http://opendatacommunities.org/id/metropolitan-district-council/leeds,Leeds City Council as Accountable Body,31/05/2017,Social Services Pooled Budgets,Jcs For People With Learning Disabilitie,Third Party Payments,Home Care,568,18/05/2017,1705-00559,0.00,1045.60,R,Allied Healthcare,No
Http://opendatacommunities.org/id/metropolitan-district-council/leeds,Leeds City Council as Accountable Body,31/05/2017,Social Services Pooled Budgets,Jcs For People With Learning Disabilitie,Third Party Payments,Home Care,568,18/05/2017,1705-00560,0.00,222.40,R,Allied Healthcare,No
Http://opendatacommunities.org/id/metropolitan-district-council/leeds,Leeds City Council as Accountable Body,31/05/2017,Social Services Pooled Budgets,Jcs For People With Learning Disabilitie,Third Party Payments,Home Care,568,18/05/2017,1705-00561,0.00,552.20,R,Allied Healthcare,No
Http://opendatacommunities.org/id/metropolitan-district-council/leeds,Leeds City Council as Accountable Body,31/05/2017,Social Services Pooled Budgets,Jcs For People With Learning Disabilitie,Third Party Payments,Home Care,568,31/05/2017,1705-00562,0.00,15514.88,R,Allied Healthcare,No
Http://opendatacommunities.org/id/metropolitan-district-council/leeds,Leeds City Council,31/05/2017,Adults And Health,Services For Older People - 65 And Over,Third Party Payments,Home Care,568,31/05/2017,1705-00563,0.00,2068.61,R,Allied Healthcare,No
Http://opendatacommunities.org/id/metropolitan-district-council/leeds,Leeds City Council,31/05/2017,Adults And Health,Services For Older People - 65 And Over,Third Party Payments,Home Care,568,31/05/2017,1705-00564,0.00,2432.99,R,Allied Healthcare,No
Http://opendatacommunities.org/id/metropolitan-district-council/leeds,Leeds City Council,31/05/2017,Adults And Health,Services For Older People Under 65 P/Dis,Third Party Payments,Home Care,568,31/05/2017,1705-00565,0.00,322.92,R,Allied Healthcare,No
Http://opendatacommunities.org/id/metropolitan-district-council/leeds,Leeds City Council,31/05/2017,City Development,Planning & Sustainable Development,Supplies and Services,Computer Software & Equipment,214,10/05/2017,1705-00566,0.00,1390.00,R,Allied Images Ltd,No
Http://opendatacommunities.org/id/metropolitan-district-council/leeds,Leeds City Council,31/05/2017,Adults And Health,Public Health,Third Party Payments,Public Health Commissioned Services,526,19/05/2017,1705-00567,0.00,575.65,R,Allied Pharmacy Ltd,No
Http://opendatacommunities.org/id/metropolitan-district-council/leeds,Leeds City Council,31/05/2017,Strategic Landlord,Housing Management,Supplies and Services,Other Hired And Contracted Services,265,05/05/2017,1705-00568,0.00,23.01,R,Allpay Limted,No
Http://opendatacommunities.org/id/metropolitan-district-council/leeds,Leeds City Council,31/05/2017,Strategic Landlord,Housing Management,Supplies and Services,Other Hired And Contracted Services,265,05/05/2017,1705-00569,0.00,0.19,R,Allpay Limted,No
Http://opendatacommunities.org/id/metropolitan-district-council/leeds,Leeds City Council,31/05/2017,Strategic Landlord,Housing Management,Supplies and Services,Other Hired And Contracted Services,265,05/05/2017,1705-00570,0.00,375.07,R,Allpay Limted,No
Http://opendatacommunities.org/id/metropolitan-district-council/leeds,Leeds City Council,31/05/2017,Resources And Housing,Democratic Services,Transport,Fuel (Non LCC Supplies),321,08/05/2017,1705-00571,0.00,202.95,R,Allstar Business Solutions Ltd,No
Http://opendatacommunities.org/id/metropolitan-district-council/leeds,Leeds City Council,31/05/2017,Children And Families,Learning Skills & Universal,Transport,Fuel (Non LCC Supplies),321,08/05/2017,1705-00572,0.00,1504.36,R,Allstar Business Solutions Ltd,No
Http://opendatacommunities.org/id/metropolitan-district-council/leeds,Leeds City Council,31/05/2017,Environment & Housing,Parks and Countryside,Transport,Fuel (Non LCC Supplies),321,08/05/2017,1705-00573,0.00,87.23,R,Allstar Business Solutions Ltd,No
Http://opendatacommunities.org/id/metropolitan-district-council/leeds,Leeds City Council,31/05/2017,City Development,Highways,Transport,Fuel (Non LCC Supplies),321,08/05/2017,1705-00574,0.00,225.12,R,Allstar Business Solutions Ltd,No
Http://opendatacommunities.org/id/metropolitan-district-council/leeds,Leeds City Council,31/05/2017,Environment & Housing,Waste Management,Transport,Fuel (Non LCC Supplies),321,08/05/2017,1705-00575,0.00,2.70,R,Allstar Business Solutions Ltd,No
Http://opendatacommunities.org/id/metropolitan-district-council/leeds,Leeds City Council,31/05/2017,Environment & Housing,Leeds Building Services,Transport,Fuel (Non LCC Supplies),321,15/05/2017,1705-00576,0.00,68.69,R,Allstar Business Solutions Ltd,No
Http://opendatacommunities.org/id/metropolitan-district-council/leeds,Leeds City Council,31/05/2017,Environment & Housing,Parks and Countryside,Supplies and Services,Operational Materials,205,12/05/2017,1705-00577,0.00,181.00,R,Alpha Rail Limited,No
Http://opendatacommunities.org/id/metropolitan-district-council/leeds,Leeds City Council,31/05/2017,Childrens Services,Safeguarding Targeted & Specialist,Support Services,Legal Disbursements,411,05/05/2017,1705-00578,0.00,390.00,R,Alphabiolabs,No
Http://opendatacommunities.org/id/metropolitan-district-council/leeds,Leeds City Council,31/05/2017,Childrens Services,Safeguarding Targeted & Specialist,Support Services,Legal Disbursements,411,05/05/2017,1705-00579,0.00,390.00,R,Alphabiolabs,No
Http://opendatacommunities.org/id/metropolitan-district-council/leeds,Leeds City Council,31/05/2017,Childrens Services,Safeguarding Targeted & Specialist,Support Services,Legal Disbursements,411,05/05/2017,1705-00580,0.00,98.75,R,Alphabiolabs,No
Http://opendatacommunities.org/id/metropolitan-district-council/leeds,Leeds City Council,31/05/2017,Childrens Services,Safeguarding Targeted & Specialist,Support Services,Legal Disbursements,411,05/05/2017,1705-00581,0.00,98.75,R,Alphabiolabs,No
Http://opendatacommunities.org/id/metropolitan-district-council/leeds,Leeds City Council,31/05/2017,Children And Families,Safeguarding Targeted & Specialist,Support Services,Legal Disbursements,411,25/05/2017,1705-00582,0.00,165.01,R,Alphabiolabs,No
Http://opendatacommunities.org/id/metropolitan-district-council/leeds,Leeds City Council,31/05/2017,Environment & Housing,Environmental Health,Supplies and Services,Other Hired And Contracted Services,265,15/05/2017,1705-00583,0.00,40.54,R,Als Life Sciences Limited,No
Http://opendatacommunities.org/id/metropolitan-district-council/leeds,Leeds City Council,31/05/2017,Environment & Housing,Environmental Health,Supplies and Services,Other Hired And Contracted Services,265,19/05/2017,1705-00584,0.00,179.41,R,Als Life Sciences Limited,No
Http://opendatacommunities.org/id/metropolitan-district-council/leeds,Leeds City Council,31/05/2017,Environment & Housing,Parks and Countryside,Employees,Training & Development,70,26/05/2017,1705-00585,0.00,220.00,R,Als Safety Ltd,No
Http://opendatacommunities.org/id/metropolitan-district-council/leeds,Leeds City Council,31/05/2017,Adults And Health,Public Health,Third Party Payments,Public Health Commissioned Services,526,19/05/2017,1705-00586,0.00,3715.25,R,Al-Shafa Pharmacy,No
Http://opendatacommunities.org/id/metropolitan-district-council/leeds,Leeds City Council,31/05/2017,Adults And Health,Public Health,Third Party Payments,Public Health Commissioned Services,526,31/05/2017,1705-00587,0.00,3010.55,R,Al-Shafa Pharmacy,No
Http://opendatacommunities.org/id/metropolitan-district-council/leeds,Leeds City Council,31/05/2017,Resources And Housing,Strategic Housing Partnerships,Capital,Construction,3,19/05/2017,1705-00588,0.00,1657.00,C,Alternative Windows (Leeds) Ltd,No
Http://opendatacommunities.org/id/metropolitan-district-council/leeds,Leeds City Council,31/05/2017,Strategic Accounts,Miscellaneous,Supplies and Services,Non-Recurring Grants,227,02/05/2017,1705-00589,0.00,400.00,R,Alwoodley Allotments Association Ltd,No
Http://opendatacommunities.org/id/metropolitan-district-council/leeds,Leeds City Council,31/05/2017,Insurance,Insurance,Supplies and Services,Insurance Claims,248,10/05/2017,1705-00590,0.00,688.32,R,REDACTED PERSONAL DATA,No
Http://opendatacommunities.org/id/metropolitan-district-council/leeds,Leeds City Council,31/05/2017,Environment & Housing,Leeds Building Services,Supplies and Services,Operational Materials,205,31/05/2017,1705-00591,0.00,100.00,R,Amari Plastics Plc,No
Http://opendatacommunities.org/id/metropolitan-district-council/leeds,Leeds City Council,31/05/2017,City Development,Libraries  Arts & Heritage  ,Supplies and Services,Books & Audio-Visual Materials,206,25/04/2017,1705-00592,0.00,6.66,R,Amazon Digital Svcs,Yes
Http://opendatacommunities.org/id/metropolitan-district-council/leeds,Leeds City Council,31/05/2017,City Development,Recreation,Supplies and Services,Operational Furniture And Equipment,203,03/05/2017,1705-00593,0.00,350.00,R,Amazon Leisure Uk Ltd,No
Http://opendatacommunities.org/id/metropolitan-district-council/leeds,Leeds City Council,31/05/2017,City Development,Recreation,Supplies and Services,Operational Furniture And Equipment,203,10/05/2017,1705-00594,0.00,780.11,R,Amazon Leisure Uk Ltd,No
Http://opendatacommunities.org/id/metropolitan-district-council/leeds,Leeds City Council,31/05/2017,City Development,Recreation,Supplies and Services,Operational Furniture And Equipment,203,10/05/2017,1705-00595,0.00,119.85,R,Amazon Leisure Uk Ltd,No
Http://opendatacommunities.org/id/metropolitan-district-council/leeds,Leeds City Council,31/05/2017,City Development,Recreation,Supplies and Services,Operational Furniture And Equipment,203,10/05/2017,1705-00596,0.00,206.25,R,Amazon Leisure Uk Ltd,No
Http://opendatacommunities.org/id/metropolitan-district-council/leeds,Leeds City Council,31/05/2017,City Development,Recreation,Supplies and Services,Operational Furniture And Equipment,203,10/05/2017,1705-00597,0.00,207.67,R,Amazon Leisure Uk Ltd,No
Http://opendatacommunities.org/id/metropolitan-district-council/leeds,Leeds City Council,31/05/2017,City Development,Recreation,Supplies and Services,Operational Furniture And Equipment,203,12/05/2017,1705-00598,0.00,30.92,R,Amazon Leisure Uk Ltd,No
Http://opendatacommunities.org/id/metropolitan-district-council/leeds,Leeds City Council,31/05/2017,City Development,Recreation,Supplies and Services,Operational Furniture And Equipment,203,16/05/2017,1705-00599,0.00,785.33,R,Amazon Leisure Uk Ltd,No
Http://opendatacommunities.org/id/metropolitan-district-council/leeds,Leeds City Council,31/05/2017,City Development,Recreation,Supplies and Services,Operational Furniture And Equipment,203,18/05/2017,1705-00600,0.00,301.54,R,Amazon Leisure Uk Ltd,No
Http://opendatacommunities.org/id/metropolitan-district-council/leeds,Leeds City Council,31/05/2017,City Development,Recreation,Supplies and Services,Operational Furniture And Equipment,203,18/05/2017,1705-00601,0.00,654.49,R,Amazon Leisure Uk Ltd,No
Http://opendatacommunities.org/id/metropolitan-district-council/leeds,Leeds City Council,31/05/2017,City Development,Recreation,Supplies and Services,Operational Furniture And Equipment,203,25/05/2017,1705-00602,0.00,153.04,R,Amazon Leisure Uk Ltd,No
Http://opendatacommunities.org/id/metropolitan-district-council/leeds,Leeds City Council,31/05/2017,City Development,Recreation,Supplies and Services,Operational Furniture And Equipment,203,25/05/2017,1705-00603,0.00,105.00,R,Amazon Leisure Uk Ltd,No
Http://opendatacommunities.org/id/metropolitan-district-council/leeds,Leeds City Council,31/05/2017,City Development,Recreation,Supplies and Services,Operational Furniture And Equipment,203,25/05/2017,1705-00604,0.00,105.00,R,Amazon Leisure Uk Ltd,No
Http://opendatacommunities.org/id/metropolitan-district-council/leeds,Leeds City Council,31/05/2017,City Development,Recreation,Supplies and Services,Operational Furniture And Equipment,203,30/05/2017,1705-00605,0.00,762.50,R,Amazon Leisure Uk Ltd,No
Http://opendatacommunities.org/id/metropolitan-district-council/leeds,Leeds City Council,31/05/2017,Environment & Housing,Parks And Countryside  ,Supplies and Services,Office Consumables,210,01/04/2017,1705-00606,0.00,7.99,R,Amazon Prime,Yes
Http://opendatacommunities.org/id/metropolitan-district-council/leeds,Leeds City Council,31/05/2017,Children And Families,Safeguarding Targeted & Specialist  ,Supplies and Services,Operational Materials,205,20/04/2017,1705-00607,0.00,27.80,R,Amazon Svcs Europe sar,Yes
Http://opendatacommunities.org/id/metropolitan-district-council/leeds,Leeds City Council,31/05/2017,Children And Families,Safeguarding Targeted & Specialist  ,Supplies and Services,Operational Materials,205,22/04/2017,1705-00608,0.00,27.80,R,Amazon Svcs Europe sar,Yes
Http://opendatacommunities.org/id/metropolitan-district-council/leeds,Leeds City Council,31/05/2017,Children And Families,Safeguarding Targeted & Specialist  ,Supplies and Services,Teaching Materials,202,31/03/2017,1705-00609,0.00,3.49,R,Amazon UK Marketplace,Yes
Http://opendatacommunities.org/id/metropolitan-district-council/leeds,Leeds City Council,31/05/2017,City Development,Libraries  Arts & Heritage  ,Supplies and Services,Operational Materials,205,31/03/2017,1705-00610,0.00,28.99,R,Amazon UK Marketplace,Yes
Http://opendatacommunities.org/id/metropolitan-district-council/leeds,Leeds City Council,31/05/2017,City Development,Libraries  Arts & Heritage  ,Supplies and Services,Teaching Materials,202,31/03/2017,1705-00611,0.00,3.74,R,Amazon UK Marketplace,Yes
Http://opendatacommunities.org/id/metropolitan-district-council/leeds,Leeds City Council,31/05/2017,City Development,Libraries  Arts & Heritage  ,Supplies and Services,Teaching Materials,202,31/03/2017,1705-00612,0.00,2.98,R,Amazon UK Marketplace,Yes
Http://opendatacommunities.org/id/metropolitan-district-council/leeds,Leeds City Council,31/05/2017,Civic Enterprise Leeds,Commercial Services  ,Supplies and Services,Office Consumables,210,31/03/2017,1705-00613,0.00,11.68,R,Amazon UK Marketplace,Yes
Http://opendatacommunities.org/id/metropolitan-district-council/leeds,Leeds City Council,31/05/2017,Children And Families,Partnerships  ,Supplies and Services,Office Consumables,210,31/03/2017,1705-00614,0.00,4.16,R,Amazon UK Marketplace,Yes
Http://opendatacommunities.org/id/metropolitan-district-council/leeds,Leeds City Council,31/05/2017,Environment & Housing,Environmental Health  ,Supplies and Services,Operational Furniture And Equipment,203,31/03/2017,1705-00615,0.00,14.49,R,Amazon UK Marketplace,Yes
Http://opendatacommunities.org/id/metropolitan-district-council/leeds,Leeds City Council,31/05/2017,Children And Families,Safeguarding Targeted & Specialist  ,Supplies and Services,Books & Audio-Visual Materials,206,31/03/2017,1705-00616,0.00,24.66,R,Amazon UK Marketplace,Yes
Http://opendatacommunities.org/id/metropolitan-district-council/leeds,Leeds City Council,31/05/2017,City Development,Libraries  Arts & Heritage  ,Supplies and Services,Operational Furniture And Equipment,203,01/04/2017,1705-00617,0.00,5.99,R,Amazon UK Marketplace,Yes
Http://opendatacommunities.org/id/metropolitan-district-council/leeds,Leeds City Council,31/05/2017,City Development,Libraries  Arts & Heritage  ,Supplies and Services,Operational Materials,205,02/04/2017,1705-00618,0.00,15.98,R,Amazon UK Marketplace,Yes
Http://opendatacommunities.org/id/metropolitan-district-council/leeds,Leeds City Council,31/05/2017,City Development,Libraries  Arts & Heritage  ,Supplies and Services,Books & Audio-Visual Materials,206,02/04/2017,1705-00619,0.00,19.11,R,Amazon UK Marketplace,Yes
Http://opendatacommunities.org/id/metropolitan-district-council/leeds,Leeds City Council,31/05/2017,Environment & Housing,Environmental Health  ,Supplies and Services,Operational Furniture And Equipment,203,02/04/2017,1705-00620,0.00,11.24,R,Amazon UK Marketplace,Yes
Http://opendatacommunities.org/id/metropolitan-district-council/leeds,Leeds City Council,31/05/2017,City Development,Libraries  Arts & Heritage  ,Supplies and Services,Operational Materials,205,02/04/2017,1705-00621,0.00,34.53,R,Amazon UK Marketplace,Yes
Http://opendatacommunities.org/id/metropolitan-district-council/leeds,Leeds City Council,31/05/2017,City Development,Libraries  Arts & Heritage  ,Supplies and Services,Books & Audio-Visual Materials,206,03/04/2017,1705-00622,0.00,3.29,R,Amazon UK Marketplace,Yes
Http://opendatacommunities.org/id/metropolitan-district-council/leeds,Leeds City Council,31/05/2017,City Development,Libraries  Arts & Heritage  ,Supplies and Services,Office Consumables,210,03/04/2017,1705-00623,0.00,5.55,R,Amazon UK Marketplace,Yes
Http://opendatacommunities.org/id/metropolitan-district-council/leeds,Leeds City Council,31/05/2017,City Development,Libraries  Arts & Heritage  ,Supplies and Services,Books & Audio-Visual Materials,206,03/04/2017,1705-00624,0.00,50.24,R,Amazon UK Marketplace,Yes
Http://opendatacommunities.org/id/metropolitan-district-council/leeds,Leeds City Council,31/05/2017,Children And Families,Safeguarding Targeted & Specialist  ,Supplies and Services,Teaching Furniture & Equipment,207,03/04/2017,1705-00625,0.00,15.56,R,Amazon UK Marketplace,Yes
Http://opendatacommunities.org/id/metropolitan-district-council/leeds,Leeds City Council,31/05/2017,City Development,Libraries  Arts & Heritage  ,Supplies and Services,Operational Furniture And Equipment,203,03/04/2017,1705-00626,0.00,63.40,R,Amazon UK Marketplace,Yes
Http://opendatacommunities.org/id/metropolitan-district-council/leeds,Leeds City Council,31/05/2017,Communities And Environment,Customer Access  ,Supplies and Services,Operational Materials,205,05/04/2017,1705-00627,0.00,3.99,R,Amazon UK Marketplace,Yes
Http://opendatacommunities.org/id/metropolitan-district-council/leeds,Leeds City Council,31/05/2017,Communities And Environment,Customer Access  ,Supplies and Services,Operational Materials,205,05/04/2017,1705-00628,0.00,4.69,R,Amazon UK Marketplace,Yes
Http://opendatacommunities.org/id/metropolitan-district-council/leeds,Leeds City Council,31/05/2017,City Development,Libraries  Arts & Heritage  ,Supplies and Services,Books & Audio-Visual Materials,206,05/04/2017,1705-00629,0.00,8.79,R,Amazon UK Marketplace,Yes
Http://opendatacommunities.org/id/metropolitan-district-council/leeds,Leeds City Council,31/05/2017,Children And Families,Safeguarding Targeted & Specialist  ,Supplies and Services,Food & Drink,231,05/04/2017,1705-00630,0.00,25.18,R,Amazon UK Marketplace,Yes
Http://opendatacommunities.org/id/metropolitan-district-council/leeds,Leeds City Council,31/05/2017,City Development,Libraries  Arts & Heritage  ,Supplies and Services,Operational Materials,205,05/04/2017,1705-00631,0.00,15.60,R,Amazon UK Marketplace,Yes
Http://opendatacommunities.org/id/metropolitan-district-council/leeds,Leeds City Council,31/05/2017,City Development,Recreation  ,Supplies and Services,Operational Materials,205,05/04/2017,1705-00632,0.00,8.48,R,Amazon UK Marketplace,Yes
Http://opendatacommunities.org/id/metropolitan-district-council/leeds,Leeds City Council,31/05/2017,Strategic Landlord,Housing Management  ,Premises,Cleaning Maintenance & Toiletries,127,05/04/2017,1705-00633,0.00,10.79,R,Amazon UK Marketplace,Yes
Http://opendatacommunities.org/id/metropolitan-district-council/leeds,Leeds City Council,31/05/2017,City Development,Recreation  ,Supplies and Services,Books & Audio-Visual Materials,206,06/04/2017,1705-00634,0.00,99.98,R,Amazon UK Marketplace,Yes
Http://opendatacommunities.org/id/metropolitan-district-council/leeds,Leeds City Council,31/05/2017,Communities And Environment,Customer Access  ,Supplies and Services,Office Consumables,210,06/04/2017,1705-00635,0.00,5.56,R,Amazon UK Marketplace,Yes
Http://opendatacommunities.org/id/metropolitan-district-council/leeds,Leeds City Council,31/05/2017,Communities And Environment,Customer Access  ,Supplies and Services,Office Consumables,210,06/04/2017,1705-00636,0.00,0.89,R,Amazon UK Marketplace,Yes
Http://opendatacommunities.org/id/metropolitan-district-council/leeds,Leeds City Council,31/05/2017,Children And Families,Safeguarding Targeted & Specialist  ,Supplies and Services,Operational Furniture And Equipment,203,06/04/2017,1705-00637,0.00,19.90,R,Amazon UK Marketplace,Yes
Http://opendatacommunities.org/id/metropolitan-district-council/leeds,Leeds City Council,31/05/2017,Children And Families,Safeguarding Targeted & Specialist  ,Supplies and Services,Office Consumables,210,06/04/2017,1705-00638,0.00,20.98,R,Amazon UK Marketplace,Yes
Http://opendatacommunities.org/id/metropolitan-district-council/leeds,Leeds City Council,31/05/2017,City Development,Recreation  ,Supplies and Services,Books & Audio-Visual Materials,206,06/04/2017,1705-00639,0.00,257.00,R,Amazon UK Marketplace,Yes
Http://opendatacommunities.org/id/metropolitan-district-council/leeds,Leeds City Council,31/05/2017,Communities And Environment,Customer Access  ,Supplies and Services,Office Furniture & Equipment,201,06/04/2017,1705-00640,0.00,12.54,R,Amazon UK Marketplace,Yes
Http://opendatacommunities.org/id/metropolitan-district-council/leeds,Leeds City Council,31/05/2017,Children And Families,Safeguarding Targeted & Specialist  ,Supplies and Services,Operational Furniture And Equipment,203,06/04/2017,1705-00641,0.00,151.41,R,Amazon UK Marketplace,Yes
Http://opendatacommunities.org/id/metropolitan-district-council/leeds,Leeds City Council,31/05/2017,City Development,Libraries  Arts & Heritage  ,Supplies and Services,Books & Audio-Visual Materials,206,07/04/2017,1705-00642,0.00,32.80,R,Amazon UK Marketplace,Yes
Http://opendatacommunities.org/id/metropolitan-district-council/leeds,Leeds City Council,31/05/2017,City Development,Libraries  Arts & Heritage  ,Supplies and Services,Operational Materials,205,07/04/2017,1705-00643,0.00,24.61,R,Amazon UK Marketplace,Yes
Http://opendatacommunities.org/id/metropolitan-district-council/leeds,Leeds City Council,31/05/2017,City Development,Libraries  Arts & Heritage  ,Supplies and Services,Operational Materials,205,07/04/2017,1705-00644,0.00,19.99,R,Amazon UK Marketplace,Yes
Http://opendatacommunities.org/id/metropolitan-district-council/leeds,Leeds City Council,31/05/2017,City Development,Libraries  Arts & Heritage  ,Supplies and Services,Books & Audio-Visual Materials,206,07/04/2017,1705-00645,0.00,9.80,R,Amazon UK Marketplace,Yes
Http://opendatacommunities.org/id/metropolitan-district-council/leeds,Leeds City Council,31/05/2017,Adults And Health,Services For Adults Under 65 Mental/Dis  ,Supplies and Services,Telephones,213,07/04/2017,1705-00646,0.00,5.17,R,Amazon UK Marketplace,Yes
Http://opendatacommunities.org/id/metropolitan-district-council/leeds,Leeds City Council,31/05/2017,City Development,Libraries  Arts & Heritage  ,Supplies and Services,Operational Materials,205,07/04/2017,1705-00647,0.00,94.96,R,Amazon UK Marketplace,Yes
Http://opendatacommunities.org/id/metropolitan-district-council/leeds,Leeds City Council,31/05/2017,City Development,Recreation  ,Supplies and Services,Books & Audio-Visual Materials,206,09/04/2017,1705-00648,0.00,46.70,R,Amazon UK Marketplace,Yes
Http://opendatacommunities.org/id/metropolitan-district-council/leeds,Leeds City Council,31/05/2017,Children And Families,Safeguarding Targeted & Specialist  ,Supplies and Services,Teaching Materials,202,09/04/2017,1705-00649,0.00,3.99,R,Amazon UK Marketplace,Yes
Http://opendatacommunities.org/id/metropolitan-district-council/leeds,Leeds City Council,31/05/2017,Civic Enterprise Leeds,Commercial Services  ,Supplies and Services,Office Furniture & Equipment,201,10/04/2017,1705-00650,0.00,27.66,R,Amazon UK Marketplace,Yes
Http://opendatacommunities.org/id/metropolitan-district-council/leeds,Leeds City Council,31/05/2017,Communities And Environment,Communities  ,Supplies and Services,Office Consumables,210,10/04/2017,1705-00651,0.00,5.88,R,Amazon UK Marketplace,Yes
Http://opendatacommunities.org/id/metropolitan-district-council/leeds,Leeds City Council,31/05/2017,City Development,Libraries  Arts & Heritage  ,Supplies and Services,Publication And Promotion,267,10/04/2017,1705-00652,0.00,5.29,R,Amazon UK Marketplace,Yes
Http://opendatacommunities.org/id/metropolitan-district-council/leeds,Leeds City Council,31/05/2017,City Development,Libraries  Arts & Heritage  ,Supplies and Services,Operational Furniture And Equipment,203,10/04/2017,1705-00653,0.00,81.97,R,Amazon UK Marketplace,Yes
Http://opendatacommunities.org/id/metropolitan-district-council/leeds,Leeds City Council,31/05/2017,City Development,Libraries  Arts & Heritage  ,Supplies and Services,Publication And Promotion,267,10/04/2017,1705-00654,0.00,30.63,R,Amazon UK Marketplace,Yes
Http://opendatacommunities.org/id/metropolitan-district-council/leeds,Leeds City Council,31/05/2017,Children And Families,Partnerships  ,Supplies and Services,Teaching Materials,202,10/04/2017,1705-00655,0.00,71.15,R,Amazon UK Marketplace,Yes
Http://opendatacommunities.org/id/metropolitan-district-council/leeds,Leeds City Council,31/05/2017,City Development,Libraries  Arts & Heritage  ,Supplies and Services,Operational Materials,205,10/04/2017,1705-00656,0.00,30.60,R,Amazon UK Marketplace,Yes
Http://opendatacommunities.org/id/metropolitan-district-council/leeds,Leeds City Council,31/05/2017,Communities And Environment,Communities  ,Supplies and Services,Computer Software & Equipment,214,10/04/2017,1705-00657,0.00,19.50,R,Amazon UK Marketplace,Yes
Http://opendatacommunities.org/id/metropolitan-district-council/leeds,Leeds City Council,31/05/2017,Communities And Environment,Customer Access  ,Supplies and Services,Operational Materials,205,11/04/2017,1705-00658,0.00,46.15,R,Amazon UK Marketplace,Yes
Http://opendatacommunities.org/id/metropolitan-district-council/leeds,Leeds City Council,31/05/2017,Children And Families,Partnerships  ,Supplies and Services,Office Furniture & Equipment,201,11/04/2017,1705-00659,0.00,24.99,R,Amazon UK Marketplace,Yes
Http://opendatacommunities.org/id/metropolitan-district-council/leeds,Leeds City Council,31/05/2017,Adults And Health,Assessment And Care Management  ,Supplies and Services,Office Furniture & Equipment,201,11/04/2017,1705-00660,0.00,26.02,R,Amazon UK Marketplace,Yes
Http://opendatacommunities.org/id/metropolitan-district-council/leeds,Leeds City Council,31/05/2017,City Development,Libraries  Arts & Heritage  ,Supplies and Services,Operational Furniture And Equipment,203,11/04/2017,1705-00661,0.00,2.54,R,Amazon UK Marketplace,Yes
Http://opendatacommunities.org/id/metropolitan-district-council/leeds,Leeds City Council,31/05/2017,Children And Families,Safeguarding Targeted & Specialist  ,Supplies and Services,Office Consumables,210,11/04/2017,1705-00662,0.00,23.79,R,Amazon UK Marketplace,Yes
Http://opendatacommunities.org/id/metropolitan-district-council/leeds,Leeds City Council,31/05/2017,City Development,Recreation  ,Supplies and Services,Operational Materials,205,12/04/2017,1705-00663,0.00,35.46,R,Amazon UK Marketplace,Yes
Http://opendatacommunities.org/id/metropolitan-district-council/leeds,Leeds City Council,31/05/2017,Adults And Health,Services For Adults Under 65 Learn/Dis  ,Supplies and Services,Books & Audio-Visual Materials,206,12/04/2017,1705-00664,0.00,100.34,R,Amazon UK Marketplace,Yes
Http://opendatacommunities.org/id/metropolitan-district-council/leeds,Leeds City Council,31/05/2017,Children And Families,Safeguarding Targeted & Specialist  ,Supplies and Services,Crockery  Cutlery & Utensils,221,12/04/2017,1705-00665,0.00,11.65,R,Amazon UK Marketplace,Yes
Http://opendatacommunities.org/id/metropolitan-district-council/leeds,Leeds City Council,31/05/2017,Environment & Housing,Streetscene Environmental Services  ,Supplies and Services,Books & Audio-Visual Materials,206,12/04/2017,1705-00666,0.00,1.86,R,Amazon UK Marketplace,Yes
Http://opendatacommunities.org/id/metropolitan-district-council/leeds,Leeds City Council,31/05/2017,Adults And Health,Services For Adults Under 65 Learn/Dis  ,Employees,Occupational Health,85,12/04/2017,1705-00667,0.00,34.49,R,Amazon UK Marketplace,Yes
Http://opendatacommunities.org/id/metropolitan-district-council/leeds,Leeds City Council,31/05/2017,Resources And Housing,Legal Services  ,Supplies and Services,Operational Furniture And Equipment,203,12/04/2017,1705-00668,0.00,33.27,R,Amazon UK Marketplace,Yes
Http://opendatacommunities.org/id/metropolitan-district-council/leeds,Leeds City Council,31/05/2017,City Development,Recreation  ,Supplies and Services,Operational Furniture And Equipment,203,13/04/2017,1705-00669,0.00,26.93,R,Amazon UK Marketplace,Yes
Http://opendatacommunities.org/id/metropolitan-district-council/leeds,Leeds City Council,31/05/2017,City Development,Recreation  ,Supplies and Services,Books & Audio-Visual Materials,206,13/04/2017,1705-00670,0.00,7.98,R,Amazon UK Marketplace,Yes
Http://opendatacommunities.org/id/metropolitan-district-council/leeds,Leeds City Council,31/05/2017,Children And Families,Safeguarding Targeted & Specialist  ,Supplies and Services,Telephones,213,13/04/2017,1705-00671,0.00,11.25,R,Amazon UK Marketplace,Yes
Http://opendatacommunities.org/id/metropolitan-district-council/leeds,Leeds City Council,31/05/2017,City Development,Recreation  ,Supplies and Services,Books & Audio-Visual Materials,206,13/04/2017,1705-00672,0.00,34.27,R,Amazon UK Marketplace,Yes
Http://opendatacommunities.org/id/metropolitan-district-council/leeds,Leeds City Council,31/05/2017,City Development,Recreation  ,Supplies and Services,Books & Audio-Visual Materials,206,13/04/2017,1705-00673,0.00,16.99,R,Amazon UK Marketplace,Yes
Http://opendatacommunities.org/id/metropolitan-district-council/leeds,Leeds City Council,31/05/2017,Children And Families,Partnerships  ,Supplies and Services,Computer Software & Equipment,214,13/04/2017,1705-00674,0.00,16.65,R,Amazon UK Marketplace,Yes
Http://opendatacommunities.org/id/metropolitan-district-council/leeds,Leeds City Council,31/05/2017,Children And Families,Safeguarding Targeted & Specialist  ,Premises,Furniture And Fittings,195,14/04/2017,1705-00675,0.00,37.49,R,Amazon UK Marketplace,Yes
Http://opendatacommunities.org/id/metropolitan-district-council/leeds,Leeds City Council,31/05/2017,Children And Families,Safeguarding Targeted & Specialist  ,Premises,Furniture And Fittings,195,14/04/2017,1705-00676,0.00,37.93,R,Amazon UK Marketplace,Yes
Http://opendatacommunities.org/id/metropolitan-district-council/leeds,Leeds City Council,31/05/2017,Children And Families,Safeguarding Targeted & Specialist  ,Premises,Furniture And Fittings,195,14/04/2017,1705-00677,0.00,37.93,R,Amazon UK Marketplace,Yes
Http://opendatacommunities.org/id/metropolitan-district-council/leeds,Leeds City Council,31/05/2017,Children And Families,Safeguarding Targeted & Specialist  ,Premises,Furniture And Fittings,195,14/04/2017,1705-00678,0.00,37.93,R,Amazon UK Marketplace,Yes
Http://opendatacommunities.org/id/metropolitan-district-council/leeds,Leeds City Council,31/05/2017,City Development,Libraries  Arts & Heritage  ,Supplies and Services,Office Consumables,210,14/04/2017,1705-00679,0.00,99.99,R,Amazon UK Marketplace,Yes
Http://opendatacommunities.org/id/metropolitan-district-council/leeds,Leeds City Council,31/05/2017,City Development,Recreation  ,Supplies and Services,Operational Materials,205,14/04/2017,1705-00680,0.00,13.16,R,Amazon UK Marketplace,Yes
Http://opendatacommunities.org/id/metropolitan-district-council/leeds,Leeds City Council,31/05/2017,Children And Families,Safeguarding Targeted & Specialist  ,Premises,Furniture And Fittings,195,14/04/2017,1705-00681,0.00,37.49,R,Amazon UK Marketplace,Yes
Http://opendatacommunities.org/id/metropolitan-district-council/leeds,Leeds City Council,31/05/2017,Children And Families,Safeguarding Targeted & Specialist  ,Premises,Furniture And Fittings,195,14/04/2017,1705-00682,0.00,37.49,R,Amazon UK Marketplace,Yes
Http://opendatacommunities.org/id/metropolitan-district-council/leeds,Leeds City Council,31/05/2017,Children And Families,Safeguarding Targeted & Specialist  ,Premises,Furniture And Fittings,195,14/04/2017,1705-00683,0.00,37.49,R,Amazon UK Marketplace,Yes
Http://opendatacommunities.org/id/metropolitan-district-council/leeds,Leeds City Council,31/05/2017,Children And Families,Safeguarding Targeted & Specialist  ,Premises,Furniture And Fittings,195,14/04/2017,1705-00684,0.00,37.93,R,Amazon UK Marketplace,Yes
Http://opendatacommunities.org/id/metropolitan-district-council/leeds,Leeds City Council,31/05/2017,Children And Families,Safeguarding Targeted & Specialist  ,Premises,Furniture And Fittings,195,14/04/2017,1705-00685,0.00,37.93,R,Amazon UK Marketplace,Yes
Http://opendatacommunities.org/id/metropolitan-district-council/leeds,Leeds City Council,31/05/2017,Children And Families,Safeguarding Targeted & Specialist  ,Supplies and Services,Books & Audio-Visual Materials,206,17/04/2017,1705-00686,0.00,9.79,R,Amazon UK Marketplace,Yes
Http://opendatacommunities.org/id/metropolitan-district-council/leeds,Leeds City Council,31/05/2017,Communities And Environment,Customer Access  ,Supplies and Services,Operational Materials,205,17/04/2017,1705-00687,0.00,15.46,R,Amazon UK Marketplace,Yes
Http://opendatacommunities.org/id/metropolitan-district-council/leeds,Leeds City Council,31/05/2017,Civic Enterprise Leeds,Commercial Services  ,Supplies and Services,Operational Furniture And Equipment,203,19/04/2017,1705-00688,0.00,18.99,R,Amazon UK Marketplace,Yes
Http://opendatacommunities.org/id/metropolitan-district-council/leeds,Leeds City Council,31/05/2017,Children And Families,Safeguarding Targeted & Specialist  ,Supplies and Services,Other Hired And Contracted Services,265,19/04/2017,1705-00689,0.00,17.61,R,Amazon UK Marketplace,Yes
Http://opendatacommunities.org/id/metropolitan-district-council/leeds,Leeds City Council,31/05/2017,Environment & Housing,Parks And Countryside  ,Supplies and Services,Office Consumables,210,19/04/2017,1705-00690,0.00,11.88,R,Amazon UK Marketplace,Yes
Http://opendatacommunities.org/id/metropolitan-district-council/leeds,Leeds City Council,31/05/2017,City Development,Libraries  Arts & Heritage  ,Supplies and Services,Operational Materials,205,19/04/2017,1705-00691,0.00,16.71,R,Amazon UK Marketplace,Yes
Http://opendatacommunities.org/id/metropolitan-district-council/leeds,Leeds City Council,31/05/2017,Resources And Housing,Technology  ,Supplies and Services,Office Furniture & Equipment,201,19/04/2017,1705-00692,0.00,29.74,R,Amazon UK Marketplace,Yes
Http://opendatacommunities.org/id/metropolitan-district-council/leeds,Leeds City Council,31/05/2017,City Development,Libraries  Arts & Heritage  ,Supplies and Services,Books & Audio-Visual Materials,206,19/04/2017,1705-00693,0.00,25.30,R,Amazon UK Marketplace,Yes
Http://opendatacommunities.org/id/metropolitan-district-council/leeds,Leeds City Council,31/05/2017,Environment & Housing,Environmental Action (South)  ,Supplies and Services,Operational Materials,205,20/04/2017,1705-00694,0.00,39.45,R,Amazon UK Marketplace,Yes
Http://opendatacommunities.org/id/metropolitan-district-council/leeds,Leeds City Council,31/05/2017,Children And Families,Partnerships  ,Supplies and Services,Office Consumables,210,20/04/2017,1705-00695,0.00,29.50,R,Amazon UK Marketplace,Yes
Http://opendatacommunities.org/id/metropolitan-district-council/leeds,Leeds City Council,31/05/2017,City Development,Libraries  Arts & Heritage  ,Supplies and Services,Operational Materials,205,20/04/2017,1705-00696,0.00,49.98,R,Amazon UK Marketplace,Yes
Http://opendatacommunities.org/id/metropolitan-district-council/leeds,Leeds City Council,31/05/2017,Environment & Housing,Environmental Action (City Centre)  ,Supplies and Services,Operational Materials,205,20/04/2017,1705-00697,0.00,16.65,R,Amazon UK Marketplace,Yes
Http://opendatacommunities.org/id/metropolitan-district-council/leeds,Leeds City Council,31/05/2017,Children And Families,Safeguarding Targeted & Specialist  ,Supplies and Services,Operational Furniture And Equipment,203,20/04/2017,1705-00698,0.00,26.14,R,Amazon UK Marketplace,Yes
Http://opendatacommunities.org/id/metropolitan-district-council/leeds,Leeds City Council,31/05/2017,Children And Families,Safeguarding Targeted & Specialist  ,Supplies and Services,Operational Furniture And Equipment,203,20/04/2017,1705-00699,0.00,18.15,R,Amazon UK Marketplace,Yes
Http://opendatacommunities.org/id/metropolitan-district-council/leeds,Leeds City Council,31/05/2017,Children And Families,Safeguarding Targeted & Specialist  ,Supplies and Services,Books & Audio-Visual Materials,206,20/04/2017,1705-00700,0.00,9.99,R,Amazon UK Marketplace,Yes
Http://opendatacommunities.org/id/metropolitan-district-council/leeds,Leeds City Council,31/05/2017,Communities And Environment,Benefits  Wlefare And Poverty  ,Supplies and Services,Books & Audio-Visual Materials,206,21/04/2017,1705-00701,0.00,2.93,R,Amazon UK Marketplace,Yes
Http://opendatacommunities.org/id/metropolitan-district-council/leeds,Leeds City Council,31/05/2017,City Development,Recreation  ,Supplies and Services,Computer Software & Equipment,214,21/04/2017,1705-00702,0.00,124.94,R,Amazon UK Marketplace,Yes
Http://opendatacommunities.org/id/metropolitan-district-council/leeds,Leeds City Council,31/05/2017,City Development,Libraries  Arts & Heritage  ,Supplies and Services,Teaching Materials,202,21/04/2017,1705-00703,0.00,11.66,R,Amazon UK Marketplace,Yes
Http://opendatacommunities.org/id/metropolitan-district-council/leeds,Leeds City Council,31/05/2017,Communities And Environment,Communities  ,Supplies and Services,Office Consumables,210,21/04/2017,1705-00704,0.00,22.69,R,Amazon UK Marketplace,Yes
Http://opendatacommunities.org/id/metropolitan-district-council/leeds,Leeds City Council,31/05/2017,Children And Families,Safeguarding Targeted & Specialist  ,Premises,Furniture And Fittings,195,22/04/2017,1705-00705,0.00,39.99,R,Amazon UK Marketplace,Yes
Http://opendatacommunities.org/id/metropolitan-district-council/leeds,Leeds City Council,31/05/2017,Strategic Landlord,Housing Management  ,Supplies and Services,Office Consumables,210,23/04/2017,1705-00706,0.00,28.89,R,Amazon UK Marketplace,Yes
Http://opendatacommunities.org/id/metropolitan-district-council/leeds,Leeds City Council,31/05/2017,Children And Families,Safeguarding Targeted & Specialist  ,Supplies and Services,Office Consumables,210,24/04/2017,1705-00707,0.00,16.34,R,Amazon UK Marketplace,Yes
Http://opendatacommunities.org/id/metropolitan-district-council/leeds,Leeds City Council,31/05/2017,Environment & Housing,Leeds Building Services  ,Supplies and Services,Operational Materials,205,24/04/2017,1705-00708,0.00,17.68,R,Amazon UK Marketplace,Yes
Http://opendatacommunities.org/id/metropolitan-district-council/leeds,Leeds City Council,31/05/2017,Environment & Housing,Leeds Building Services  ,Supplies and Services,Operational Materials,205,25/04/2017,1705-00709,0.00,9.00,R,Amazon UK Marketplace,Yes
Http://opendatacommunities.org/id/metropolitan-district-council/leeds,Leeds City Council,31/05/2017,Children And Families,Safeguarding Targeted & Specialist  ,Supplies and Services,Office Consumables,210,25/04/2017,1705-00710,0.00,19.41,R,Amazon UK Marketplace,Yes
Http://opendatacommunities.org/id/metropolitan-district-council/leeds,Leeds City Council,31/05/2017,Environment & Housing,Environmental Action (West North West)  ,Supplies and Services,Operational Furniture And Equipment,203,25/04/2017,1705-00711,0.00,12.86,R,Amazon UK Marketplace,Yes
Http://opendatacommunities.org/id/metropolitan-district-council/leeds,Leeds City Council,31/05/2017,Adults And Health,Services For Adults Under 65 Learn/Dis  ,Employees,Occupational Health,85,25/04/2017,1705-00712,0.00,117.46,R,Amazon UK Marketplace,Yes
Http://opendatacommunities.org/id/metropolitan-district-council/leeds,Leeds City Council,31/05/2017,Children And Families,Safeguarding Targeted & Specialist  ,Supplies and Services,Teaching Materials,202,25/04/2017,1705-00713,0.00,23.34,R,Amazon UK Marketplace,Yes
Http://opendatacommunities.org/id/metropolitan-district-council/leeds,Leeds City Council,31/05/2017,Children And Families,Safeguarding Targeted & Specialist  ,Supplies and Services,Operational Furniture And Equipment,203,25/04/2017,1705-00714,0.00,2.15,R,Amazon UK Marketplace,Yes
Http://opendatacommunities.org/id/metropolitan-district-council/leeds,Leeds City Council,31/05/2017,Environment & Housing,Parks And Countryside  ,Supplies and Services,Operational Materials,205,26/04/2017,1705-00715,0.00,52.80,R,Amazon UK Marketplace,Yes
Http://opendatacommunities.org/id/metropolitan-district-council/leeds,Leeds City Council,31/05/2017,Strategic Landlord,Property And Contracts  ,Supplies and Services,Operational Furniture And Equipment,203,26/04/2017,1705-00716,0.00,59.94,R,Amazon UK Marketplace,Yes
Http://opendatacommunities.org/id/metropolitan-district-council/leeds,Leeds City Council,31/05/2017,City Development,Recreation  ,Supplies and Services,Operational Furniture And Equipment,203,26/04/2017,1705-00717,0.00,69.99,R,Amazon UK Marketplace,Yes
Http://opendatacommunities.org/id/metropolitan-district-council/leeds,Leeds City Council,31/05/2017,Children And Families,Safeguarding Targeted & Specialist  ,Premises,Cleaning Maintenance & Toiletries,127,26/04/2017,1705-00718,0.00,45.43,R,Amazon UK Marketplace,Yes
Http://opendatacommunities.org/id/metropolitan-district-council/leeds,Leeds City Council,31/05/2017,Strategic Landlord,Housing Management  ,Supplies and Services,Operational Furniture And Equipment,203,27/04/2017,1705-00719,0.00,215.83,R,Amazon UK Marketplace,Yes
Http://opendatacommunities.org/id/metropolitan-district-council/leeds,Leeds City Council,31/05/2017,Environment & Housing,Leeds Building Services  ,Supplies and Services,Computer Software & Equipment,214,27/04/2017,1705-00720,0.00,86.80,R,Amazon UK Marketplace,Yes
Http://opendatacommunities.org/id/metropolitan-district-council/leeds,Leeds City Council,31/05/2017,City Development,Highways  ,Supplies and Services,Operational Furniture And Equipment,203,27/04/2017,1705-00721,0.00,8.05,R,Amazon UK Marketplace,Yes
Http://opendatacommunities.org/id/metropolitan-district-council/leeds,Leeds City Council,31/05/2017,Children And Families,Safeguarding Targeted & Specialist  ,Transfer Payments,Leaving Care Grants,635,27/04/2017,1705-00722,0.00,54.95,R,Amazon UK Marketplace,Yes
Http://opendatacommunities.org/id/metropolitan-district-council/leeds,Leeds City Council,31/05/2017,Children And Families,Partnerships  ,Supplies and Services,Teaching Materials,202,27/04/2017,1705-00723,0.00,6.99,R,Amazon UK Marketplace,Yes
Http://opendatacommunities.org/id/metropolitan-district-council/leeds,Leeds City Council,31/05/2017,Communities And Environment,Customer Access  ,Supplies and Services,Office Consumables,210,27/04/2017,1705-00724,0.00,13.89,R,Amazon UK Marketplace,Yes
Http://opendatacommunities.org/id/metropolitan-district-council/leeds,Leeds City Council,31/05/2017,City Development,Libraries  Arts & Heritage  ,Supplies and Services,Other Hired And Contracted Services,265,01/04/2017,1705-00725,0.00,7.99,R,Amazon UK Prime Amzn.Co.U,Yes
Http://opendatacommunities.org/id/metropolitan-district-council/leeds,Leeds City Council,31/05/2017,City Development,Libraries  Arts & Heritage  ,Supplies and Services,Other Hired And Contracted Services,265,06/04/2017,1705-00726,0.00,-7.99,R,Amazon UK Prime Amzn.Co.U,Yes
Http://opendatacommunities.org/id/metropolitan-district-council/leeds,Leeds City Council,31/05/2017,City Development,Libraries  Arts & Heritage  ,Supplies and Services,Office Consumables,210,27/04/2017,1705-00727,0.00,7.99,R,Amazon UK Prime Amzn.Co.U,Yes
Http://opendatacommunities.org/id/metropolitan-district-council/leeds,Leeds City Council,31/05/2017,Environment & Housing,Parks And Countryside  ,Supplies and Services,Operational Furniture And Equipment,203,01/04/2017,1705-00728,0.00,110.00,R,Amazon UK Retail,Yes
Http://opendatacommunities.org/id/metropolitan-district-council/leeds,Leeds City Council,31/05/2017,Environment & Housing,Parks And Countryside  ,Supplies and Services,Office Consumables,210,06/04/2017,1705-00729,0.00,59.40,R,Amazon UK Retail,Yes
Http://opendatacommunities.org/id/metropolitan-district-council/leeds,Leeds City Council,31/05/2017,Children And Families,Learning Skills & Universal  ,Supplies and Services,Teaching Materials,202,11/04/2017,1705-00730,0.00,21.49,R,Amazon UK Retail,Yes
Http://opendatacommunities.org/id/metropolitan-district-council/leeds,Leeds City Council,31/05/2017,Children And Families,Partnerships  ,Supplies and Services,Office Consumables,210,23/04/2017,1705-00731,0.00,22.88,R,Amazon UK Retail,Yes
Http://opendatacommunities.org/id/metropolitan-district-council/leeds,Leeds City Council,31/05/2017,Children And Families,Learning Skills & Universal  ,Supplies and Services,Operational Materials,205,26/04/2017,1705-00732,0.00,16.35,R,Amazon UK Retail,Yes
Http://opendatacommunities.org/id/metropolitan-district-council/leeds,Leeds City Council,31/05/2017,Children And Families,Partnerships  ,Supplies and Services,Office Consumables,210,30/03/2017,1705-00733,0.00,16.45,R,Amazon UK Retail Amazon.C,Yes
Http://opendatacommunities.org/id/metropolitan-district-council/leeds,Leeds City Council,31/05/2017,Children And Families,Safeguarding Targeted & Specialist  ,Supplies and Services,Teaching Materials,202,30/03/2017,1705-00734,0.00,98.83,R,Amazon UK Retail Amazon.C,Yes
Http://opendatacommunities.org/id/metropolitan-district-council/leeds,Leeds City Council,31/05/2017,Civic Enterprise Leeds,Commercial Services  ,Supplies and Services,Operational Materials,205,30/03/2017,1705-00735,0.00,37.48,R,Amazon UK Retail Amazon.C,Yes
Http://opendatacommunities.org/id/metropolitan-district-council/leeds,Leeds City Council,31/05/2017,Children And Families,Safeguarding Targeted & Specialist  ,Supplies and Services,Teaching Furniture & Equipment,207,30/03/2017,1705-00736,0.00,10.00,R,Amazon UK Retail Amazon.C,Yes
Http://opendatacommunities.org/id/metropolitan-district-council/leeds,Leeds City Council,31/05/2017,Communities And Environment,Customer Access  ,Supplies and Services,Operational Materials,205,31/03/2017,1705-00737,0.00,13.16,R,Amazon UK Retail Amazon.C,Yes
Http://opendatacommunities.org/id/metropolitan-district-council/leeds,Leeds City Council,31/05/2017,Strategic Landlord,Property And Contracts  ,Supplies and Services,Office Consumables,210,31/03/2017,1705-00738,0.00,29.20,R,Amazon UK Retail Amazon.C,Yes
Http://opendatacommunities.org/id/metropolitan-district-council/leeds,Leeds City Council,31/05/2017,City Development,Libraries  Arts & Heritage  ,Supplies and Services,Office Consumables,210,01/04/2017,1705-00739,0.00,19.72,R,Amazon UK Retail Amazon.C,Yes
Http://opendatacommunities.org/id/metropolitan-district-council/leeds,Leeds City Council,31/05/2017,Environment & Housing,Parks And Countryside  ,Supplies and Services,Operational Furniture And Equipment,203,02/04/2017,1705-00740,0.00,65.95,R,Amazon UK Retail Amazon.C,Yes
Http://opendatacommunities.org/id/metropolitan-district-council/leeds,Leeds City Council,31/05/2017,City Development,Libraries  Arts & Heritage  ,Supplies and Services,Office Consumables,210,02/04/2017,1705-00741,0.00,24.96,R,Amazon UK Retail Amazon.C,Yes
Http://opendatacommunities.org/id/metropolitan-district-council/leeds,Leeds City Council,31/05/2017,Communities And Environment,Benefits  Wlefare And Poverty  ,Supplies and Services,Office Consumables,210,03/04/2017,1705-00742,0.00,102.95,R,Amazon UK Retail Amazon.C,Yes
Http://opendatacommunities.org/id/metropolitan-district-council/leeds,Leeds City Council,31/05/2017,City Development,Libraries  Arts & Heritage  ,Supplies and Services,Office Consumables,210,03/04/2017,1705-00743,0.00,17.91,R,Amazon UK Retail Amazon.C,Yes
Http://opendatacommunities.org/id/metropolitan-district-council/leeds,Leeds City Council,31/05/2017,Children And Families,Safeguarding Targeted & Specialist  ,Supplies and Services,Teaching Materials,202,05/04/2017,1705-00744,0.00,39.48,R,Amazon UK Retail Amazon.C,Yes
Http://opendatacommunities.org/id/metropolitan-district-council/leeds,Leeds City Council,31/05/2017,Children And Families,Partnerships  ,Supplies and Services,Computer Software & Equipment,214,05/04/2017,1705-00745,0.00,17.62,R,Amazon UK Retail Amazon.C,Yes
Http://opendatacommunities.org/id/metropolitan-district-council/leeds,Leeds City Council,31/05/2017,City Development,Libraries  Arts & Heritage  ,Supplies and Services,Books & Audio-Visual Materials,206,05/04/2017,1705-00746,0.00,14.68,R,Amazon UK Retail Amazon.C,Yes
Http://opendatacommunities.org/id/metropolitan-district-council/leeds,Leeds City Council,31/05/2017,Children And Families,Safeguarding Targeted & Specialist  ,Supplies and Services,Teaching Materials,202,05/04/2017,1705-00747,0.00,9.88,R,Amazon UK Retail Amazon.C,Yes
Http://opendatacommunities.org/id/metropolitan-district-council/leeds,Leeds City Council,31/05/2017,Children And Families,Learning Skills & Universal  ,Supplies and Services,Operational Materials,205,06/04/2017,1705-00748,0.00,30.36,R,Amazon UK Retail Amazon.C,Yes
Http://opendatacommunities.org/id/metropolitan-district-council/leeds,Leeds City Council,31/05/2017,City Development,Libraries  Arts & Heritage  ,Supplies and Services,Operational Materials,205,06/04/2017,1705-00749,0.00,14.42,R,Amazon UK Retail Amazon.C,Yes
Http://opendatacommunities.org/id/metropolitan-district-council/leeds,Leeds City Council,31/05/2017,Environment & Housing,Parks And Countryside  ,Supplies and Services,Office Furniture & Equipment,201,07/04/2017,1705-00750,0.00,78.34,R,Amazon UK Retail Amazon.C,Yes
Http://opendatacommunities.org/id/metropolitan-district-council/leeds,Leeds City Council,31/05/2017,Communities And Environment,Customer Access  ,Supplies and Services,Computer Software & Equipment,214,08/04/2017,1705-00751,0.00,59.99,R,Amazon UK Retail Amazon.C,Yes
Http://opendatacommunities.org/id/metropolitan-district-council/leeds,Leeds City Council,31/05/2017,Civic Enterprise Leeds,Facilities Management  ,Premises,Cleaning Maintenance & Toiletries,127,10/04/2017,1705-00752,0.00,46.99,R,Amazon UK Retail Amazon.C,Yes
Http://opendatacommunities.org/id/metropolitan-district-council/leeds,Leeds City Council,31/05/2017,Children And Families,Safeguarding Targeted & Specialist  ,Transfer Payments,Leaving Care Grants,635,11/04/2017,1705-00753,0.00,14.44,R,Amazon UK Retail Amazon.C,Yes
Http://opendatacommunities.org/id/metropolitan-district-council/leeds,Leeds City Council,31/05/2017,Communities And Environment,Customer Access  ,Supplies and Services,Computer Software & Equipment,214,11/04/2017,1705-00754,0.00,99.98,R,Amazon UK Retail Amazon.C,Yes
Http://opendatacommunities.org/id/metropolitan-district-council/leeds,Leeds City Council,31/05/2017,Environment & Housing,Parks And Countryside  ,Supplies and Services,Operational Furniture And Equipment,203,12/04/2017,1705-00755,0.00,27.63,R,Amazon UK Retail Amazon.C,Yes
Http://opendatacommunities.org/id/metropolitan-district-council/leeds,Leeds City Council,31/05/2017,Children And Families,Partnerships  ,Supplies and Services,Teaching Materials,202,12/04/2017,1705-00756,0.00,28.65,R,Amazon UK Retail Amazon.C,Yes
Http://opendatacommunities.org/id/metropolitan-district-council/leeds,Leeds City Council,31/05/2017,Adults And Health,Services For Adults Under 65 Learn/Dis  ,Employees,Occupational Health,85,12/04/2017,1705-00757,0.00,92.49,R,Amazon UK Retail Amazon.C,Yes
Http://opendatacommunities.org/id/metropolitan-district-council/leeds,Leeds City Council,31/05/2017,Children And Families,Safeguarding Targeted & Specialist  ,Supplies and Services,Crockery  Cutlery & Utensils,221,12/04/2017,1705-00758,0.00,4.98,R,Amazon UK Retail Amazon.C,Yes
Http://opendatacommunities.org/id/metropolitan-district-council/leeds,Leeds City Council,31/05/2017,Children And Families,Safeguarding Targeted & Specialist  ,Supplies and Services,Operational Furniture And Equipment,203,18/04/2017,1705-00759,0.00,329.88,R,Amazon UK Retail Amazon.C,Yes
Http://opendatacommunities.org/id/metropolitan-district-council/leeds,Leeds City Council,31/05/2017,City Development,Libraries  Arts & Heritage  ,Supplies and Services,Books & Audio-Visual Materials,206,20/04/2017,1705-00760,0.00,19.20,R,Amazon UK Retail Amazon.C,Yes
Http://opendatacommunities.org/id/metropolitan-district-council/leeds,Leeds City Council,31/05/2017,Communities And Environment,Benefits  Wlefare And Poverty  ,Supplies and Services,Office Consumables,210,23/04/2017,1705-00761,0.00,46.36,R,Amazon UK Retail Amazon.C,Yes
Http://opendatacommunities.org/id/metropolitan-district-council/leeds,Leeds City Council,31/05/2017,Children And Families,Safeguarding Targeted & Specialist  ,Supplies and Services,Office Consumables,210,24/04/2017,1705-00762,0.00,29.70,R,Amazon UK Retail Amazon.C,Yes
Http://opendatacommunities.org/id/metropolitan-district-council/leeds,Leeds City Council,31/05/2017,Environment & Housing,Leeds Building Services  ,Supplies and Services,Operational Materials,205,24/04/2017,1705-00763,0.00,30.40,R,Amazon UK Retail Amazon.C,Yes
Http://opendatacommunities.org/id/metropolitan-district-council/leeds,Leeds City Council,31/05/2017,Civic Enterprise Leeds,Shared Services  ,Supplies and Services,Office Consumables,210,26/04/2017,1705-00764,0.00,22.33,R,Amazon UK Retail Amazon.C,Yes
Http://opendatacommunities.org/id/metropolitan-district-council/leeds,Leeds City Council,31/05/2017,Environment & Housing,Parks And Countryside  ,Supplies and Services,Office Consumables,210,26/04/2017,1705-00765,0.00,22.05,R,Amazon UK Retail Amazon.C,Yes
Http://opendatacommunities.org/id/metropolitan-district-council/leeds,Leeds City Council,31/05/2017,Adults And Health,Services For Older People - 65 And Over  ,Transport,Public Transport Expenses,310,03/04/2017,1705-00766,0.00,424.74,R,Amber Cars,Yes
